﻿Body Name,Supplier ID,Supplier Name,Transaction Number,Their Ref,Date,Gross Value ,VAT Amount,Service Label,Service Code,Expenditure Code,Expenditure Category,Service Division Label
Blackpool Council,1048456,R T C,484434,7146,03/10/2018,1722,287,CX4005,Care & Repair Grants,6502,Grants & Advances,Capital - Adult Social Care
Blackpool Council,1006576,The Helping Hand Company Ltd,492076,322890,19/10/2018,2758.8,459.8,CWAN,Children With Additional Needs,3008,Educational Equipment,Children'S Services
Blackpool Council,1064012,Trueform Engineering Ltd,492314,INV02521,03/10/2018,12265.2,2044.2,TRC,Travel & Safety,4501,Private Contractors,Community & Env Services
Blackpool Council,1083035,Skips Units Ltd,493708,43226,19/10/2018,2352,392,CWASTE,Commercial Waste,4514,Contract 'E',Community & Env Services
Blackpool Council,1116330,Faros Engineering Ltd,494142,7705,16/10/2018,456,76,AEB,Buildings,1202,Electricity,Resources
Blackpool Council,1100201,D & A Scrivens And Son,494332,6776,18/10/2018,259.2,43.2,CWASTE,Commercial Waste,1021,Growing,Community & Env Services
Blackpool Council,1006586,H Jenkinson & Co Ltd,494525,SINV00815151,02/10/2018,1122.58,187.1,BSTPRJ,Better Start Projects,3020,Furniture - Purchase,Better Start Projects
Blackpool Council,1008512,Killgerm Chemicals Ltd,494810,SI02-0197463,19/10/2018,284.76,47.46,PEST,Pest Control,3041,Other Materials,Community & Env Services
Blackpool Council,1106104,Bergmann Direct Ltd,494968,20512,19/10/2018,260.4,43.4,CWASTE,Commercial Waste,2002,Repairs And Maintenance,Community & Env Services
Blackpool Council,1049304,Insight Direct (Uk) Ltd,495151,4022246,17/10/2018,2735.88,455.98,FGAC,Ict Technical Support,3531,Computer-H'Ware Purchase,Resources
Blackpool Council,1053453,Brenntag Uk Ltd,495187,32SI3273878,17/10/2018,345.12,57.52,LEISUR,Leisure Management,3060,Chemicals,Community & Env Services
Blackpool Council,1009763,Curtins Consulting Limited,495752,0025465,08/10/2018,2400,400,CGIBAA,Land Release Fund,6506,Consultants Fees,Capital - Commnctn & Regen
Blackpool Council,1009763,Curtins Consulting Limited,495753,0025486,16/10/2018,2700,450,CGIBAA,Land Release Fund,6506,Consultants Fees,Capital - Commnctn & Regen
Blackpool Council,1011970,A1 Streamline Road Markings Ltd,495808,3202,04/10/2018,6676.39,1112.73,TRB,Maintenance & Works,4501,Private Contractors,Community & Env Services
Blackpool Council,1044756,Northgate Public Services (Uk) Ltd,495834,91411068,01/10/2018,1617.36,269.56,FC1404,Blue Badge Reform,3401,General Services,Resources
Blackpool Council,1116759,Route Nine Studios,495908,18012,03/10/2018,2352,0,PBF,Communications,3801,Other Expenses,Chief Executive
Blackpool Council,1111146,Jade Parsleyt/A Flash Run Digital Productions,495966,43,05/10/2018,500,0,PRL,Marketing,3401,General Services,Places
Blackpool Council,1113169,Waterman Infrastructure & Environment Ltd,495968,3123787,03/10/2018,5212.2,868.7,CTABVA,Ltp Scheme 16/17,6501,Contract Payments,Capital - Commnctn & Regen
Blackpool Council,1058510,Lifeline Language Services Ltd,496059,1118154,05/10/2018,303.84,50.64,JEA,Senior Management,5507,Personal,Children'S Services
Blackpool Council,1101740,Ken Taylor Supplies Limited,496089,0278413,05/10/2018,260,0,ZM0018,Highways & Engineering,9773,Orders Received Not Invoiced,Blackpool Services
Blackpool Council,1101740,Ken Taylor Supplies Limited,496089,0278413,05/10/2018,312,52,ZM0018,Highways & Engineering,9511A,Stocks Efin,Blackpool Services
Blackpool Council,1114832,Able 2 Occupational Therapy Services Ltd,496178,18037,05/10/2018,333.48,0,FC1404,Blue Badge Reform,3401,General Services,Resources
Blackpool Council,1006633,Technology Services Ltd T/A The Lock Shop,496182,29537,04/10/2018,358.38,0,ZM0018,Highways & Engineering,9773,Orders Received Not Invoiced,Blackpool Services
Blackpool Council,1006633,Technology Services Ltd T/A The Lock Shop,496182,29537,04/10/2018,430.06,71.68,ZM0018,Highways & Engineering,9511A,Stocks Efin,Blackpool Services
Blackpool Council,1058510,Lifeline Language Services Ltd,496240,6/09/2018121801,05/10/2018,277.2,46.2,JEA,Senior Management,5507,Personal,Children'S Services
Blackpool Council,1084671,Autocross Euroshel Limited,496260,7830,04/10/2018,594,99,TRC,Travel & Safety,4501,Private Contractors,Community & Env Services
Blackpool Council,1042356,Emma Taylor Presents,496265,ETP091802,05/10/2018,548,0,BCA,Corp And Member Services,0911,Training Expenses,Governance & Partnerships
Blackpool Council,1092789,P T Winchester Ltd,496287,243842,05/10/2018,306.5,51.08,PJOA,Commercial & Marketing,3041,Other Materials,Community & Env Services
Blackpool Council,1076264,Alliance Disposables Ltd,496288,I7062285,04/10/2018,432,72,HOMECA,Homecare,1601,Consumable Supplies,Adult & Families
Blackpool Council,1115317,Wakefield Council,496320,91311804218,18/10/2018,12000,2000,FD0021,Subscriptions,3711,Subscriptions,Budgets Outside Cash Limits
Blackpool Council,1098569,The Card Network,496328,INV-5281,05/10/2018,343.08,57.18,AEB,Buildings,3012,Other Equipment,Resources
Blackpool Council,1010687,Sirsi Ltd,496375,INVIS014788,05/10/2018,912,152,LBF,Library Management,3532,Comp-Running & License Costs,Places
Blackpool Council,1006419,Tunstall Healthcare (Uk) Ltd,496397,3IN/10323856,05/10/2018,372,62,APFBAB,Vitaline,4501,Private Contractors,Adult & Families
Blackpool Council,1114036,Odlings Ltd T/A The Columbaria Co,496424,INV0062502,05/10/2018,522,87,CEMCRE,Cems Crems Etc,3454,Remove And Refix Memorials,Governance & Partnerships
Blackpool Council,1098897,Mike Kidd Horse Power Ltd,496425,1047,05/10/2018,12750,0,EDDIV,Education Diversity,4101,Other Local Authorities,Children'S Services
Blackpool Council,1102823,Wilde Consultants Limited,496437,WPCON 16552,10/10/2018,9242.56,1540.43,CGOAAA,Quality Corridor,6501,Contract Payments,Capital - Commnctn & Regen
Blackpool Council,1102823,Wilde Consultants Limited,496438,WPCON 16554,10/10/2018,7189.06,1198.18,CTBRAA,Bridges (Growth Fund),6501,Contract Payments,Capital - Comm & Environ
Blackpool Council,1102823,Wilde Consultants Limited,496439,WPCON 16555,10/10/2018,4194.64,699.11,TRB,Maintenance & Works,4501,Private Contractors,Community & Env Services
Blackpool Council,1076264,Alliance Disposables Ltd,496444,I7076259,10/10/2018,749,0,ZM0018,Highways & Engineering,9773,Orders Received Not Invoiced,Blackpool Services
Blackpool Council,1076264,Alliance Disposables Ltd,496444,I7076259,10/10/2018,898.8,149.8,ZM0018,Highways & Engineering,9511A,Stocks Efin,Blackpool Services
Blackpool Council,1103650,Westec,496448,16846,01/10/2018,627.51,104.58,PJHA,"Depot, Management & Admin",3301,Printing,Community & Env Services
Blackpool Council,1094424,The Networking People,496501,SI105471,10/10/2018,14305.88,2384.31,FGAA,Ict Corporate Services,3527,Communication Lines,Resources
Blackpool Council,1032271,Fenland Leisure Products Ltd,496508,SIN027406,02/10/2018,312,52,PRKTEC,Parks Terchnician Manager,3041,Other Materials,Community & Env Services
Blackpool Council,1036301,4imprint Direct Ltd,496513,1314918,10/10/2018,2227.2,371.2,PU0001,Public Health Team,4501,Private Contractors,Public Health
Blackpool Council,1057663,Wilde Recruitment Ltd,496523,33603,05/10/2018,517.86,86.31,CTAHHA,Tramway Emergency Works,6501,Contract Payments,Capital - Commnctn & Regen
Blackpool Council,1070177,The Noisy Drinks Co. North West Ltd,496532,59530,03/10/2018,455.97,75.99,CATERG,Catering Services,3101,Provisions,Community & Env Services
Blackpool Council,1072627,Gb Sport And Leisure Uk Ltd,496591,1448,11/10/2018,756,126,ENGINE,Engineering,3041,Other Materials,Community & Env Services
Blackpool Council,1031475,Jenx Ltd,496596,213925,22/10/2018,3941.52,656.92,CWAN,Children With Additional Needs,3008,Educational Equipment,Children'S Services
Blackpool Council,1102627,Fresh Pastures Processing Ltd,496693,29204020918,02/10/2018,374.22,0,APDBBB,Arc,3101,Provisions,Adult & Families
Blackpool Council,1079070,Story Contracting Ltd,496699,CSI004/SR20190,03/10/2018,116691.82,19448.64,SCHEME,Highways Schemes,1012,Premises Maint-Priv.Contractor,Community & Env Services
Blackpool Council,1049304,Insight Direct (Uk) Ltd,496707,4050097,12/10/2018,509.94,84.99,CS0739,Ict Refresh,6525,I.T. Hardware Purchase,Capital - Resources
Blackpool Council,1049304,Insight Direct (Uk) Ltd,496708,4050148,12/10/2018,365.62,60.94,AHG,Art Gallery Summary,3533,Computer S/W Purchases,Places
Blackpool Council,1049304,Insight Direct (Uk) Ltd,496708,4050148,12/10/2018,854.21,142.37,EYT,Early Years Team,3533,Computer S/W Purchases,Children'S Services
Blackpool Council,1049304,Insight Direct (Uk) Ltd,496708,4050148,12/10/2018,673.92,112.32,FGAA,Ict Corporate Services,3533,Computer S/W Purchases,Resources
Blackpool Council,1049304,Insight Direct (Uk) Ltd,496708,4050148,12/10/2018,854.21,142.37,MPB,Edc - Economic Dev Company,3533,Computer S/W Purchases,Places
Blackpool Council,1049304,Insight Direct (Uk) Ltd,496708,4050148,12/10/2018,3416.82,569.46,PJHA,"Depot, Management & Admin",3533,Computer S/W Purchases,Community & Env Services
Blackpool Council,1049304,Insight Direct (Uk) Ltd,496708,4050148,12/10/2018,1708.42,284.74,PRG,Tourism General,3533,Computer S/W Purchases,Places
Blackpool Council,1097234,Ieg4 Limited,496740,IEG4001658,11/10/2018,1545.6,257.6,FBBEA,"Income, Recovery & Debtors",3532,Comp-Running & License Costs,Resources
Blackpool Council,1097234,Ieg4 Limited,496740,IEG4001658,11/10/2018,15374.4,2562.4,FCACA,Benefits - Admin,3532,Comp-Running & License Costs,Resources
Blackpool Council,1039155,South Bank Centre,496747,SIN1809C02621,12/10/2018,487.18,0,AHG,Art Gallery Summary,3304,Books And Periodicals,Places
Blackpool Council,1093763,Shapemaster Global Ltd,496750,SI-1034,05/10/2018,300,50,LEISUR,Leisure Management,3007,Recreational Equipment,Community & Env Services
Blackpool Council,1116507,Cameron S Crook & Associates,496754,453,30/10/2018,1200,200,CGIBAA,Land Release Fund,6506,Consultants Fees,Capital - Commnctn & Regen
Blackpool Council,1006576,The Helping Hand Company Ltd,496767,326781,12/10/2018,572.4,0,ZM0018,Highways & Engineering,9773,Orders Received Not Invoiced,Blackpool Services
Blackpool Council,1006576,The Helping Hand Company Ltd,496767,326781,12/10/2018,686.88,114.48,ZM0018,Highways & Engineering,9511A,Stocks Efin,Blackpool Services
Blackpool Council,1006196,Prism Medical Uk,496800,5283849,09/10/2018,4030.75,0,CX4002,Disabled Facilities Grants,6501,Contract Payments,Capital - Adult Social Care
Blackpool Council,1006196,Prism Medical Uk,496804,5283838,09/10/2018,5022.75,0,CX4002,Disabled Facilities Grants,6501,Contract Payments,Capital - Adult Social Care
Blackpool Council,1115873,Daniel David Ingham,496808,1006,05/10/2018,3234,0,CX4002,Disabled Facilities Grants,6501,Contract Payments,Capital - Adult Social Care
Blackpool Council,1067624,Institute Of Licensing (Events) Ltd,496817,EVE25209,12/10/2018,610.8,101.8,PYLA,Licencing,3605,Confs & Short Courses,Community & Env Services
Blackpool Council,1067624,Institute Of Licensing (Events) Ltd,496817,EVE25209,12/10/2018,610.8,101.8,PYTA,Trading Standards,3605,Confs & Short Courses,Community & Env Services
Blackpool Council,1088636,Tarmac Building Products Ltd,496818,SI01440074,05/10/2018,1054,0,ZM0018,Highways & Engineering,9773,Orders Received Not Invoiced,Blackpool Services
Blackpool Council,1088636,Tarmac Building Products Ltd,496818,SI01440074,05/10/2018,1264.8,210.8,ZM0018,Highways & Engineering,9511A,Stocks Efin,Blackpool Services
Blackpool Council,1103650,Westec,496827,16879,12/10/2018,1058.4,176.4,PJOA,Commercial & Marketing,3301,Printing,Community & Env Services
Blackpool Council,1006586,H Jenkinson & Co Ltd,496831,SINV/00817576,11/10/2018,480,80,AEB,Buildings,3302,Stationery,Resources
Blackpool Council,1099966,Dortek Limited,496836,24180,10/10/2018,522,87,CEMCRE,Cems Crems Etc,1111,Cremators,Governance & Partnerships
Blackpool Council,1081237,The Speech Bubble Ltd,496840,TSBI-2298,02/10/2018,4730,0,EDDIV,Education Diversity,3412,Therapeutic Work,Children'S Services
Blackpool Council,1008843,Itsa Limited,496848,84501,11/10/2018,780,130,PYTA,Trading Standards,3711,Subscriptions,Community & Env Services
Blackpool Council,1048970,Smartwater Technology Ltd,496849,952396,04/10/2018,624,104,AEB,Buildings,3801,Other Expenses,Resources
Blackpool Council,1116543,REDACTED PERSONAL DATA,496856,VH/PB/02,12/10/2018,295.61,0,AHG,Art Gallery Summary,2211,Casual Hire,Places
Blackpool Council,1006985,Servicemaster,496857,8659,01/10/2018,473.56,78.93,AEB,Buildings,3401,General Services,Resources
Blackpool Council,1009144,Greenwoods Transport,496864,188,11/10/2018,376.2,62.7,SCHEME,Highways Schemes,4501,Private Contractors,Community & Env Services
Blackpool Council,1114036,Odlings Ltd T/A The Columbaria Co,496865,INV0062596,12/10/2018,522,87,CEMCRE,Cems Crems Etc,3454,Remove And Refix Memorials,Governance & Partnerships
Blackpool Council,1025240,Key Engineering Supplies Ltd,496876,8646,12/10/2018,678.24,0,ZM0018,Highways & Engineering,9773,Orders Received Not Invoiced,Blackpool Services
Blackpool Council,1025240,Key Engineering Supplies Ltd,496876,8646,12/10/2018,813.89,135.65,ZM0018,Highways & Engineering,9511A,Stocks Efin,Blackpool Services
Blackpool Council,1058510,Lifeline Language Services Ltd,496877,1018096,17/10/2018,296.76,49.46,JEA,Senior Management,5507,Personal,Children'S Services
Blackpool Council,1058510,Lifeline Language Services Ltd,496883,1218020,17/10/2018,261.6,43.6,JEA,Senior Management,5507,Personal,Children'S Services
Blackpool Council,1010619,Askews And Holts Library Services Ltd,496975,5829256,05/10/2018,367.49,0,LBB,Central Library,3304,Books And Periodicals,Places
Blackpool Council,1007206,Road Safety Services Ltd,496976,83990,04/10/2018,405.6,67.6,TRA,Traffic Management,4501,Private Contractors,Community & Env Services
Blackpool Council,1086156,Water Saving Techniques Limited,496994,3982,08/10/2018,12052.8,2008.8,PARADE,Parades & Seawall,1012,Premises Maint-Priv.Contractor,Community & Env Services
Blackpool Council,1088636,Tarmac Building Products Ltd,497007,SI01441867,11/10/2018,511.2,0,ZM0018,Highways & Engineering,9773,Orders Received Not Invoiced,Blackpool Services
Blackpool Council,1088636,Tarmac Building Products Ltd,497007,SI01441867,11/10/2018,613.44,102.24,ZM0018,Highways & Engineering,9511A,Stocks Efin,Blackpool Services
Blackpool Council,1102823,Wilde Consultants Limited,497011,WPCON 16638,12/10/2018,2427.05,404.51,CTBRAA,Bridges (Growth Fund),6501,Contract Payments,Capital - Comm & Environ
Blackpool Council,1099411,Lgg Legal Training,497012,05397,11/10/2018,474,79,BAAA,Legal Services,0915,Conferences,Governance & Partnerships
Blackpool Council,1099411,Lgg Legal Training,497012,05397,11/10/2018,948,158,BEA,Democratic Services & Admin,0915,Conferences,Governance & Partnerships
Blackpool Council,1044690,Lesar Uk Ltd,497015,62341,15/10/2018,1194,199,PYLA,Licencing,3711,Subscriptions,Community & Env Services
Blackpool Council,1019374,Fibrous Limited,497018,INV-0148,04/10/2018,362.88,60.48,CEMCRE,Cems Crems Etc,3041,Other Materials,Governance & Partnerships
Blackpool Council,1048456,R T C,497027,7332,03/10/2018,6636,1106,CXB71,Hra Capital Programme 2018/19,6501,Contract Payments,Capital - Chief Executive
Blackpool Council,1017832,Dick Leigh Chainsaw Specialist,497056,198022,16/10/2018,1233,205.5,PRKDEV,Parks Development,3041,Other Materials,Community & Env Services
Blackpool Council,1076264,Alliance Disposables Ltd,497058,I7094601,17/10/2018,299.6,0,ZM0018,Highways & Engineering,9773,Orders Received Not Invoiced,Blackpool Services
Blackpool Council,1076264,Alliance Disposables Ltd,497058,I7094601,17/10/2018,657.84,109.64,ZM0018,Highways & Engineering,9511A,Stocks Efin,Blackpool Services
Blackpool Council,1102823,Wilde Consultants Limited,497062,WPCON 16553,18/10/2018,6660,1110,CGOAAA,Quality Corridor,6501,Contract Payments,Capital - Commnctn & Regen
Blackpool Council,1064012,Trueform Engineering Ltd,497063,INV02609,04/10/2018,4152,692,TRC,Travel & Safety,4501,Private Contractors,Community & Env Services
Blackpool Council,1006940,Smiths Equipment Hire Ltd,497064,V12-650827,19/10/2018,2488.5,118.5,PJAA,"Erection, Operation & Dismantl",2211,Casual Hire,Community & Env Services
Blackpool Council,1116927,Creative Tourist,497065,INV-0641,18/10/2018,420,70,PJW,Management - Places - Illumina,3315,Marketing,Places
Blackpool Council,1058510,Lifeline Language Services Ltd,497077,0918131,18/10/2018,282,47,JEA,Senior Management,5507,Personal,Children'S Services
Blackpool Council,1101740,Ken Taylor Supplies Limited,497082,0279206,18/10/2018,279,0,ZM0018,Highways & Engineering,9773,Orders Received Not Invoiced,Blackpool Services
Blackpool Council,1101740,Ken Taylor Supplies Limited,497082,0279206,18/10/2018,334.8,55.8,ZM0018,Highways & Engineering,9511A,Stocks Efin,Blackpool Services
Blackpool Council,1058510,Lifeline Language Services Ltd,497086,1218083,18/10/2018,852,142,JEA,Senior Management,5507,Personal,Children'S Services
Blackpool Council,1049304,Insight Direct (Uk) Ltd,497092,4055625,17/10/2018,14670,2445,CS0739,Ict Refresh,6525,I.T. Hardware Purchase,Capital - Resources
Blackpool Council,1112921,REDACTED PERSONAL DATA,497172,0000254170,11/10/2018,576,96,FK0013,Corporate Health,0911,Training Expenses,Chief Executive
Blackpool Council,1058510,Lifeline Language Services Ltd,497184,1218099,19/10/2018,277.2,46.2,JEA,Senior Management,5507,Personal,Children'S Services
Blackpool Council,1023161,Suez Recycling And Recovery Uk Ltd,497197,80117272,05/10/2018,13071.12,2178.52,CWASTE,Commercial Waste,4514,Contract 'E',Community & Env Services
Blackpool Council,1114541,Integrity Print Ltd,497202,1236035,19/10/2018,1338.24,223.04,PARADM,Parking Administration,3801,Other Expenses,Budgets Outside Cash Limits
Blackpool Council,1023161,Suez Recycling And Recovery Uk Ltd,497204,80117273,05/10/2018,8946.24,1491.04,CWASTE,Commercial Waste,4514,Contract 'E',Community & Env Services
Blackpool Council,1053453,Brenntag Uk Ltd,497207,32SI 3275275,03/10/2018,345.12,57.52,LEISUR,Leisure Management,3060,Chemicals,Community & Env Services
Blackpool Council,1006586,H Jenkinson & Co Ltd,497239,SINV00818519,17/10/2018,480,80,AEB,Buildings,3302,Stationery,Resources
Blackpool Council,1076264,Alliance Disposables Ltd,497244,I7100940,08/10/2018,374,0,ZM0018,Highways & Engineering,9773,Orders Received Not Invoiced,Blackpool Services
Blackpool Council,1076264,Alliance Disposables Ltd,497244,I7100940,08/10/2018,711.6,118.6,ZM0018,Highways & Engineering,9511A,Stocks Efin,Blackpool Services
Blackpool Council,1013064,Tarmac Lafarge Trading Limited,497260,9038779990,05/10/2018,311.73,51.95,ENGINE,Engineering,3041,Other Materials,Community & Env Services
Blackpool Council,1013064,Tarmac Lafarge Trading Limited,497262,9038771923,03/10/2018,314.84,52.47,ENGINE,Engineering,3041,Other Materials,Community & Env Services
Blackpool Council,1088636,Tarmac Building Products Ltd,497263,SI01446293,18/10/2018,475.28,0,ZM0018,Highways & Engineering,9773,Orders Received Not Invoiced,Blackpool Services
Blackpool Council,1088636,Tarmac Building Products Ltd,497263,SI01446293,18/10/2018,570.33,95.05,ZM0018,Highways & Engineering,9511A,Stocks Efin,Blackpool Services
Blackpool Council,1088636,Tarmac Building Products Ltd,497264,SI01442798,12/10/2018,640,0,ZM0018,Highways & Engineering,9773,Orders Received Not Invoiced,Blackpool Services
Blackpool Council,1088636,Tarmac Building Products Ltd,497264,SI01442798,12/10/2018,768,128,ZM0018,Highways & Engineering,9511A,Stocks Efin,Blackpool Services
Blackpool Council,1108275,Bircham Dyson Bell Llp,497271,1190223,17/10/2018,363.12,60.52,CTAHHA,Tramway Emergency Works,6506,Consultants Fees,Capital - Commnctn & Regen
Blackpool Council,1013064,Tarmac Lafarge Trading Limited,497285,9038802458,10/10/2018,873.28,145.54,ENGINE,Engineering,3041,Other Materials,Community & Env Services
Blackpool Council,1013064,Tarmac Lafarge Trading Limited,497287,9038802456,05/10/2018,607.03,101.17,ENGINE,Engineering,3041,Other Materials,Community & Env Services
Blackpool Council,1072081,Investec Asset Finance,497292,MI/1458989,17/10/2018,1500,250,FCADA,Customer Services,3801,Other Expenses,Resources
Blackpool Council,1094277,Aitkens Sportsturf Ltd,497293,5550,08/10/2018,936,156,PRKOP1,Parks Operational Manager  1,4571,Bowling Turf Maintenance,Community & Env Services
Blackpool Council,1078657,4tech Training Ltd,497295,241,18/10/2018,31239,5206.5,EDDIV,Education Diversity,4101,Other Local Authorities,Children'S Services
Blackpool Council,1012839,George Cox & Sons Ltd,497322,10108,10/10/2018,20162.92,3360.49,TRB,Maintenance & Works,4501,Private Contractors,Community & Env Services
Blackpool Council,1008175,Manns Music,497331,116895,12/10/2018,1195.2,199.2,MUSIC,Music & Cultural Education,3008,Educational Equipment,Children'S Services
Blackpool Council,1116932,Inquest Canine Detection & Security Ltd,497337,VISITBPOOL00101,03/10/2018,720,120,PRB,Events,3401,General Services,Places
Blackpool Council,1007385,R S Components Ltd,497345,291385390,12/10/2018,544.56,90.76,PJNA,New Features / Schemes - C & E,3041,Other Materials,Community & Env Services
Blackpool Council,1006599,The Boro Foundry Ltd,497347,IN/78193,12/10/2018,6654.36,1109.06,PARADE,Parades & Seawall,1012,Premises Maint-Priv.Contractor,Community & Env Services
Blackpool Council,1107790,Taylek Ltd,497355,INV-09584,09/10/2018,540,90,PJOA,Commercial & Marketing,3041,Other Materials,Community & Env Services
Blackpool Council,1107790,Taylek Ltd,497356,INV-09677,11/10/2018,915.96,152.66,PJOA,Commercial & Marketing,3041,Other Materials,Community & Env Services
Blackpool Council,1107790,Taylek Ltd,497358,INV-09681,22/10/2018,744,124,PJLA,Maintenance,3041,Other Materials,Community & Env Services
Blackpool Council,1107790,Taylek Ltd,497359,INV-09702,22/10/2018,462.44,77.07,PJLA,Maintenance,3041,Other Materials,Community & Env Services
Blackpool Council,1107790,Taylek Ltd,497362,INV-09717,22/10/2018,611.88,101.98,PJLA,Maintenance,3041,Other Materials,Community & Env Services
Blackpool Council,1031698,Facultatieve Technologies Ltd,497367,18104017,25/10/2018,22480,3746.67,CN2016,Carleton Crem Works 2018-20,6501,Contract Payments,Capital - Governance & Partner
Blackpool Council,1031698,Facultatieve Technologies Ltd,497368,18104018,25/10/2018,22480,3746.67,CN2016,Carleton Crem Works 2018-20,6501,Contract Payments,Capital - Governance & Partner
Blackpool Council,1076264,Alliance Disposables Ltd,497370,I7101552,19/10/2018,336,0,ZM0018,Highways & Engineering,9773,Orders Received Not Invoiced,Blackpool Services
Blackpool Council,1076264,Alliance Disposables Ltd,497370,I7101552,19/10/2018,403.2,67.2,ZM0018,Highways & Engineering,9511A,Stocks Efin,Blackpool Services
Blackpool Council,1009819,Crelling Harness For Disabled Limited,497371,144646,25/10/2018,432,72,INTRAD,Integrated Transport Admin,3010,Safety Equipment,Community & Env Services
Blackpool Council,1044756,Northgate Public Services (Uk) Ltd,497372,91411665,18/10/2018,284.65,47.44,EM1032,Client Finances,3532,Comp-Running & License Costs,Resources
Blackpool Council,1044756,Northgate Public Services (Uk) Ltd,497372,91411665,18/10/2018,1470.72,245.12,FBBEA,"Income, Recovery & Debtors",3532,Comp-Running & License Costs,Resources
Blackpool Council,1044756,Northgate Public Services (Uk) Ltd,497372,91411665,18/10/2018,4554.43,759.08,FCACA,Benefits - Admin,3532,Comp-Running & License Costs,Resources
Blackpool Council,1044756,Northgate Public Services (Uk) Ltd,497372,91411665,18/10/2018,1328.35,221.39,FCADA,Customer Services,3532,Comp-Running & License Costs,Resources
Blackpool Council,1097930,Bcs Learning & Developement Limited,497373,INV61415,19/10/2018,1102.5,183.75,ALEARN,Adult Learning,3711,Subscriptions,Places
Blackpool Council,1106606,Senses Web Solutions Ltd,497387,0001988,19/10/2018,3000,500,LEISUR,Leisure Management,3801,Other Expenses,Community & Env Services
Blackpool Council,1005071,Blackpool Transport Services Limited,497390,I0000852,01/10/2018,880,0,VA0010,Vah Management & Admin,2301,Bus & Tram Fares,Children'S Services
Blackpool Council,1088658,D-Tech International Ltd,497396,6680,18/10/2018,2502,417,LBF,Library Management,3532,Comp-Running & License Costs,Places
Blackpool Council,1062176,Gmbg Ltd T/A Civils & Lintels,497410,FNW/369661,19/10/2018,1080.72,180.12,ENGINE,Engineering,3041,Other Materials,Community & Env Services
Blackpool Council,1092207,P&A Food Management Services,497412,15049,04/10/2018,6784.14,1130.69,SCHBRK,Free School Breakfasts,4501,Private Contractors,Community & Env Services
Blackpool Council,1053453,Brenntag Uk Ltd,497413,32SI 3275401,05/10/2018,345.12,57.52,LEISUR,Leisure Management,3060,Chemicals,Community & Env Services
Blackpool Council,1022781,Moore Readymix Ltd,497415,92725,17/10/2018,276.6,46.1,ENGINE,Engineering,3041,Other Materials,Community & Env Services
Blackpool Council,1013064,Tarmac Lafarge Trading Limited,497447,9038802457,05/10/2018,269.16,44.86,ENGINE,Engineering,3041,Other Materials,Community & Env Services
Blackpool Council,1013064,Tarmac Lafarge Trading Limited,497448,9038779989,05/10/2018,305.04,50.84,ENGINE,Engineering,3041,Other Materials,Community & Env Services
Blackpool Council,1080418,Skv Communications Limited,497450,61769,01/10/2018,1980,330,CGTBBB,Conference Centre,6501,Contract Payments,Capital - Commnctn & Regen
Blackpool Council,1116476,Handheld Image,497452,1918,02/10/2018,377.53,0,AHG,Art Gallery Summary,3304,Books And Periodicals,Places
Blackpool Council,1011970,A1 Streamline Road Markings Ltd,497455,3304,04/10/2018,596.35,99.39,CTBRAA,Bridges (Growth Fund),6501,Contract Payments,Capital - Comm & Environ
Blackpool Council,1058510,Lifeline Language Services Ltd,497465,1218138,24/10/2018,327.36,54.56,JEA,Senior Management,5507,Personal,Children'S Services
Blackpool Council,1008733,Jon-Paul Jackson,497469,35401,02/10/2018,395,0,EM1031,Refugee Funding,4501,Private Contractors,Adult & Families
Blackpool Council,1008052,Midland Signs (Leicester) Ltd T/A G & G Signs,497475,39547,19/10/2018,290.78,48.46,ENGINE,Engineering,3041,Other Materials,Community & Env Services
Blackpool Council,1090812,Imperial Polythene Products Ltd,497476,SIN097086,25/10/2018,3349.01,558.17,CWASTE,Commercial Waste,3801,Other Expenses,Community & Env Services
Blackpool Council,1096607,Cutlers Property Consultancy (Services),497477,0070433,12/10/2018,4160,0,AEE,Estates,0781,Contracted,Resources
Blackpool Council,1090587,M E S Marine Ltd,497478,493,25/10/2018,321.1,53.52,BEACHP,Beach Patrol,3010,Safety Equipment,Places
Blackpool Council,1071702,Links Signs & Graphics Ltd,497480,LSGI25085,04/10/2018,338.4,56.4,PU1013,Public Health Misc,4501,Private Contractors,Public Health
Blackpool Council,1086156,Water Saving Techniques Limited,497485,3988,08/10/2018,384,64,PARADE,Parades & Seawall,1012,Premises Maint-Priv.Contractor,Community & Env Services
Blackpool Council,1027246,Active Lancashire Ltd,497487,660,08/10/2018,3000,0,LEISUR,Leisure Management,3801,Other Expenses,Community & Env Services
Blackpool Council,1074052,Brent Stevenson Memorials Ltd,497493,19305,16/10/2018,769.68,128.28,CEMCRE,Cems Crems Etc,3454,Remove And Refix Memorials,Governance & Partnerships
Blackpool Council,1078657,4tech Training Ltd,497494,246,19/10/2018,5040,840,EDDIV,Education Diversity,4101,Other Local Authorities,Children'S Services
Blackpool Council,1095739,Pac2015 Ltd T/A Pac Wristbands Limited,497495,0000036905,24/10/2018,266.4,44.4,CATERG,Catering Services,3101,Provisions,Community & Env Services
Blackpool Council,1109889,REDACTED PERSONAL DATA,497497,198,02/10/2018,859,0,AHG,Art Gallery Summary,3456,Payment To Artists,Places
Blackpool Council,1090902,Anderson & Sons Contracting & Turf Care,497498,209,01/10/2018,2330,0,TRB,Maintenance & Works,4501,Private Contractors,Community & Env Services
Blackpool Council,1043974,Plastic Omnium Urban Systems Limited,497499,46787,19/10/2018,876.74,146.12,DOMPFI,Domestic Waste & Waste Pfi,3041,Other Materials,Community & Env Services
Blackpool Council,1109820,Klein Imaging Limited,497504,15206,02/10/2018,296.29,49.38,AHG,Art Gallery Summary,3817,Artwork,Places
Blackpool Council,1043974,Plastic Omnium Urban Systems Limited,497508,46728,18/10/2018,12170.2,2028.37,DOMPFI,Domestic Waste & Waste Pfi,3041,Other Materials,Community & Env Services
Blackpool Council,1110786,Evolution Internet Ltd,497509,INV-25239,01/10/2018,3600,600,MNGMT,Central Management,5555,Educational Support,Children'S Services
Blackpool Council,1116474,S O Painting & Decorating Ltd,497523,3,02/10/2018,450,0,FMAK,Acquisitions 9/10,1131,Electrical Equipment - Repairs,Places
Blackpool Council,1071702,Links Signs & Graphics Ltd,497525,LSGI25461,05/10/2018,360,60,AHG,Art Gallery Summary,3301,Printing,Places
Blackpool Council,1104398,Dennis G Abbott T/A Butter Fingers Blackpool,497528,0053,02/10/2018,351.25,0,PTA,Economic Development,6215,Catering Services,Places
Blackpool Council,1006292,Vodafone Corporate Ltd,497532,LK24217,12/10/2018,666,111,HJA,Growth,3531,Computer-H'Ware Purchase,Places
Blackpool Council,1006292,Vodafone Corporate Ltd,497535,LK24216,12/10/2018,5994,999,PYDA,Housing Enforcement,3531,Computer-H'Ware Purchase,Community & Env Services
Blackpool Council,1109814,Nickelodeon Uk Limited,497537,1800000384,05/10/2018,120000,20000,PRD,Switch On,3401,General Services,Places
Blackpool Council,1116995,Illuminos,497538,2018018,02/10/2018,1200,200,PJW,Management - Places - Illumina,3401,General Services,Places
Blackpool Council,1087305,Ellis & York Ltd,497559,4510,05/10/2018,456,76,APCBBE,Extra Support,2002,Repairs And Maintenance,Adult & Families
Blackpool Council,1031475,Jenx Ltd,497560,214204,25/10/2018,368.4,61.4,MTE,Undefined Age Group,5401,Aids To Daily Living,Adult & Families
Blackpool Council,1103692,Calico Enterprise Limited,497561,SINV20/00000619,24/10/2018,28395.6,4732.6,DOMPFI,Domestic Waste & Waste Pfi,4501,Private Contractors,Community & Env Services
Blackpool Council,1103692,Calico Enterprise Limited,497562,SINV20/00000618,24/10/2018,12780.54,2130.09,DOMPFI,Domestic Waste & Waste Pfi,4501,Private Contractors,Community & Env Services
Blackpool Council,1103692,Calico Enterprise Limited,497563,SINV20/00000617,24/10/2018,8079.65,1346.61,DOMPFI,Domestic Waste & Waste Pfi,4501,Private Contractors,Community & Env Services
Blackpool Council,1060135,Happy Creative Ltd,497564,H4684,02/10/2018,996,166,PU0001,Public Health Team,4501,Private Contractors,Public Health
Blackpool Council,1049304,Insight Direct (Uk) Ltd,497568,4050420,12/10/2018,1564.25,260.7,FGAA,Ict Corporate Services,3532,Comp-Running & License Costs,Resources
Blackpool Council,1092816,Cdec Limited,497570,22745,02/10/2018,5632.32,938.72,FGAA,Ict Corporate Services,3531,Computer-H'Ware Purchase,Resources
Blackpool Council,1114036,Odlings Ltd T/A The Columbaria Co,497606,INV0062768,19/10/2018,522,87,CEMCRE,Cems Crems Etc,3454,Remove And Refix Memorials,Governance & Partnerships
Blackpool Council,1094424,The Networking People,497607,SI105508,19/10/2018,8400,1400,FGAA,Ict Corporate Services,3527,Communication Lines,Resources
Blackpool Council,1094424,The Networking People,497608,SI105495,12/10/2018,2084.02,347.34,FGAA,Ict Corporate Services,3521,Landline - Line Rental,Resources
Blackpool Council,1094424,The Networking People,497609,SI105494,12/10/2018,3035.89,505.98,FGAA,Ict Corporate Services,3521,Landline - Line Rental,Resources
Blackpool Council,1094424,The Networking People,497610,SI105493,12/10/2018,2917.62,486.27,FGAA,Ict Corporate Services,3521,Landline - Line Rental,Resources
Blackpool Council,1094424,The Networking People,497611,SI105492,12/10/2018,2745.65,457.61,FGAA,Ict Corporate Services,3521,Landline - Line Rental,Resources
Blackpool Council,1094424,The Networking People,497612,SI105491,12/10/2018,2596.13,432.69,FGAA,Ict Corporate Services,3521,Landline - Line Rental,Resources
Blackpool Council,1094424,The Networking People,497613,SI105490,12/10/2018,2706.55,451.09,FGAA,Ict Corporate Services,3521,Landline - Line Rental,Resources
Blackpool Council,1008105,Mercer & Sons Ltd,497618,830285,09/10/2018,1797,299.5,PARADE,Parades & Seawall,3041,Other Materials,Community & Env Services
Blackpool Council,1011868,W H Tarmacadam Limited,497619,7001,09/10/2018,46596,7766,ENGINE,Engineering,1012,Premises Maint-Priv.Contractor,Community & Env Services
Blackpool Council,1053261,Ad Systems (Uk) Limited,497626,4702,02/10/2018,1836,306,CCTV,Cctv,3003,Equipt-Mtce Repairs,Public Health
Blackpool Council,1049304,Insight Direct (Uk) Ltd,497627,4070556,26/10/2018,1968.66,328.11,PRG,Tourism General,3531,Computer-H'Ware Purchase,Places
Blackpool Council,1049304,Insight Direct (Uk) Ltd,497632,4071544,26/10/2018,3335.76,555.96,CS0739,Ict Refresh,6525,I.T. Hardware Purchase,Capital - Resources
Blackpool Council,1114704,Morson Human Resources Ltd,497633,HS196234,03/10/2018,1980,330,CTAHHA,Tramway Emergency Works,6506,Consultants Fees,Capital - Commnctn & Regen
Blackpool Council,1010667,Argos Business Solutions Ltd,497643,01692025,04/10/2018,407.08,67.84,FC1802,Social Fund - Client,5210,Community Care Support,Resources
Blackpool Council,1103450,Blackpool Entertainment Company Limited,497671,INV003824,02/10/2018,1000,166.67,MUSIC,Music & Cultural Education,3801,Other Expenses,Children'S Services
Blackpool Council,1116525,R5 Air Displays Ltd,497674,1007,02/10/2018,10265.93,1666.73,PRB,Events,3401,General Services,Places
Blackpool Council,1008817,Radio J  Cabs,497676,515483,02/10/2018,298.95,0,TRCHIL,Integrated Transport Children,2201,Contract Hire,Community & Env Services
Blackpool Council,1008817,Radio J  Cabs,497678,515468,02/10/2018,3004.07,0,INTRAD,Integrated Transport Admin,2201,Contract Hire,Community & Env Services
Blackpool Council,1010138,C Cabs,497679,03027,02/10/2018,389.04,0,TRCHIL,Integrated Transport Children,2201,Contract Hire,Community & Env Services
Blackpool Council,1010138,C Cabs,497680,03052,02/10/2018,777,0,TRCHIL,Integrated Transport Children,2201,Contract Hire,Community & Env Services
Blackpool Council,1010138,C Cabs,497681,03019,02/10/2018,288,0,TRCHIL,Integrated Transport Children,2201,Contract Hire,Community & Env Services
Blackpool Council,1011057,Phs Group Ltd,497785,66152375,12/10/2018,1077.88,179.65,AEB,Buildings,3401,General Services,Resources
Blackpool Council,1011057,Phs Group Ltd,497787,66152374,12/10/2018,894.41,149.07,AEB,Buildings,3401,General Services,Resources
Blackpool Council,1066073,Blackpool Coastal Housing,497788,30001473,02/10/2018,224119.2,37353.2,MVE,Undefined Age Group,4512,Other Care Block Payments,Adult & Families
Blackpool Council,1057663,Wilde Recruitment Ltd,497790,33677,19/10/2018,517.86,86.31,CTAHHA,Tramway Emergency Works,6501,Contract Payments,Capital - Commnctn & Regen
Blackpool Council,1044711,Atg Access Ltd,497791,MS1802405,04/10/2018,28800,4800,PTC,"A.C.E. Regen, Tourism & Cultur",3801,Other Expenses,Places
Blackpool Council,1115940,Naomi Korn Associates,497795,INV-0456,05/10/2018,2100,350,AHH,Heritage,3413,Consultants,Places
Blackpool Council,1108764,Fitsense Ltd T/A Premier Sports,497796,SI-1000356,02/10/2018,2430,405,LEISUR,Leisure Management,2008,Running Costs-Licences,Community & Env Services
Blackpool Council,1108764,Fitsense Ltd T/A Premier Sports,497797,SI-1000357,02/10/2018,2430,405,LEISUR,Leisure Management,2008,Running Costs-Licences,Community & Env Services
Blackpool Council,1101740,Ken Taylor Supplies Limited,497798,0279717,26/10/2018,694.8,115.8,PJLA,Maintenance,3041,Other Materials,Community & Env Services
Blackpool Council,1112198,Kkc Engineering Consultants Limited,497799,837/18,29/10/2018,10332,1722,CTAHHA,Tramway Emergency Works,6506,Consultants Fees,Capital - Commnctn & Regen
Blackpool Council,1005071,Blackpool Transport Services Limited,497801,I0000867,05/10/2018,1084.8,0,JEA,Senior Management,5552,Bus Pass / Travel,Children'S Services
Blackpool Council,1076264,Alliance Disposables Ltd,497804,I7123183,26/10/2018,262.8,43.8,ZM0018,Highways & Engineering,9511A,Stocks Efin,Blackpool Services
Blackpool Council,1022781,Moore Readymix Ltd,497811,92830,24/10/2018,284.53,47.42,ENGINE,Engineering,3041,Other Materials,Community & Env Services
Blackpool Council,1022781,Moore Readymix Ltd,497812,92873,25/10/2018,309.06,51.51,ENGINE,Engineering,3041,Other Materials,Community & Env Services
Blackpool Council,1058510,Lifeline Language Services Ltd,497817,1218139,26/10/2018,277.2,46.2,JEA,Senior Management,5507,Personal,Children'S Services
Blackpool Council,1058510,Lifeline Language Services Ltd,497818,1218028,26/10/2018,270.12,45.02,JEA,Senior Management,5507,Personal,Children'S Services
Blackpool Council,1010314,Blackpool Grand Theatre,497819,AE424,04/10/2018,12000,2000,AHM,Arts Miscellaneous,3701,Grants,Places
Blackpool Council,1008817,Radio J  Cabs,497824,515466,02/10/2018,750.38,0,TRCHIL,Integrated Transport Children,2201,Contract Hire,Community & Env Services
Blackpool Council,1063755,Park Retail Ltd,497825,24779823,01/10/2018,4900,0,PU1013,Public Health Misc,4501,Private Contractors,Public Health
Blackpool Council,1006944,Siemens Financial Services Ltd,497839,244/18/0292361,18/10/2018,2519.68,419.94,APFBAB,Vitaline,4501,Private Contractors,Adult & Families
Blackpool Council,1100372,Scheidt & Bachmann Uk Ltd,497840,SB-GB210658,19/10/2018,19712.16,3285.36,PAROPE,Parking Operational,2002,Repairs And Maintenance,Budgets Outside Cash Limits
Blackpool Council,1006944,Siemens Financial Services Ltd,497841,244/18/0291543,17/10/2018,2154.45,359.07,APFBAB,Vitaline,4501,Private Contractors,Adult & Families
Blackpool Council,1004963,F Parkinson Ltd,497842,9082,02/10/2018,1929.05,321.51,CB4301,Office Redevmnt 1 Clifton St,6501,Contract Payments,Capital - Completed Schemes
Blackpool Council,1004963,F Parkinson Ltd,497842,9082,02/10/2018,1607.54,0,ZF0001,"Insurance,Dso,Banking",97A6,Retention Monies - Capital,Total Reconciliations
Blackpool Council,1113243,Mclaughlin & Harvey Ltd,497843,21992,02/10/2018,716369.24,119394.87,CGTBBB,Conference Centre,6501,Contract Payments,Capital - Commnctn & Regen
Blackpool Council,1113243,Mclaughlin & Harvey Ltd,497843,21992,02/10/2018,18463.12,0,ZF0001,"Insurance,Dso,Banking",97B6,Retention Monies - Cap Trsfr,Total Reconciliations
Blackpool Council,1087316,Lovell Partnership Ltd,497844,INTERIM 34,02/10/2018,327552.06,0,CXC11,Site Development,6501,Contract Payments,Capital - Chief Executive
Blackpool Council,1087316,Lovell Partnership Ltd,497844,INTERIM 34,02/10/2018,8890.14,0,ZH0001,Housing Revenue Account,97A6,Retention Monies - Capital,Housing Revenue Account
Blackpool Council,1116762,Dt Electrical (Uk) Ltd,497845,1055,03/10/2018,5096.4,849.4,PJII,Prom Collections,3041,Other Materials,Community & Env Services
Blackpool Council,1082523,The Hub Events Limited,497882,INV-18/5886,15/10/2018,594,99,BCA,Corp And Member Services,0911,Training Expenses,Governance & Partnerships
Blackpool Council,1102943,Titanium Fireworks Ltd,497886,1925,08/10/2018,35361,5893.5,PRB,Events,3401,General Services,Places
Blackpool Council,1106482,Charles Alexander T/A Everything Branded,497887,INV031528,04/10/2018,1110,185,PUBH24,Miscellaneous,4501,Private Contractors,Public Health
Blackpool Council,1092816,Cdec Limited,497893,23121,09/10/2018,2430.66,405.11,AEB,Buildings,3531,Computer-H'Ware Purchase,Resources
Blackpool Council,1092816,Cdec Limited,497895,23105,04/10/2018,3642,607,APDBBB,Arc,3531,Computer-H'Ware Purchase,Adult & Families
Blackpool Council,1092816,Cdec Limited,497896,22908,09/10/2018,714,119,SCLEAN,Street Cleaning,3531,Computer-H'Ware Purchase,Community & Env Services
Blackpool Council,1009247,G J Brookes Ltd,497898,1304,05/10/2018,3600,600,CXC11,Site Development,6514,B.Holes/Site Investgtn/Surveys,Capital - Chief Executive
Blackpool Council,1049304,Insight Direct (Uk) Ltd,497902,4072339,26/10/2018,3965.66,660.94,CS0739,Ict Refresh,6525,I.T. Hardware Purchase,Capital - Resources
Blackpool Council,1049304,Insight Direct (Uk) Ltd,497903,4072421,26/10/2018,468.19,78.03,FGAA,Ict Corporate Services,3533,Computer S/W Purchases,Resources
Blackpool Council,1049304,Insight Direct (Uk) Ltd,497904,4072208,26/10/2018,365.4,60.9,FGAA,Ict Corporate Services,3533,Computer S/W Purchases,Resources
Blackpool Council,1009751,Bt Business Direct Limited,497905,IN04213578,04/10/2018,527.36,87.89,CCTV,Cctv,3003,Equipt-Mtce Repairs,Public Health
Blackpool Council,1023161,Suez Recycling And Recovery Uk Ltd,497907,80110629,04/10/2018,1866.48,311.08,CWASTE,Commercial Waste,4514,Contract 'E',Community & Env Services
Blackpool Council,1080563,Bay Media,497912,1627,26/10/2018,1160.4,193.4,PRL,Marketing,3401,General Services,Places
Blackpool Council,1080563,Bay Media,497914,1631,26/10/2018,1430.4,238.4,PRL,Marketing,3401,General Services,Places
Blackpool Council,1025240,Key Engineering Supplies Ltd,497920,9180,26/10/2018,578.2,0,ZM0018,Highways & Engineering,9773,Orders Received Not Invoiced,Blackpool Services
Blackpool Council,1025240,Key Engineering Supplies Ltd,497920,9180,26/10/2018,693.84,115.64,ZM0018,Highways & Engineering,9511A,Stocks Efin,Blackpool Services
Blackpool Council,1025240,Key Engineering Supplies Ltd,497921,9174,26/10/2018,315.84,52.64,BEACHP,Beach Patrol,3010,Safety Equipment,Places
Blackpool Council,1026738,Cassidy + Ashton,497927,16437,04/10/2018,1980,330,CORSAA,Remodelling Clc Gr Park,6506,Consultants Fees,Capital - Resources
Blackpool Council,1114727,Elliott Wood Partnership Ltd,497930,INV007588,09/10/2018,11301.6,1883.6,FMAK,Acquisitions 9/10,3801,Other Expenses,Places
Blackpool Council,1013326,Dsg Retail Ltd,497934,16011528,26/10/2018,329.98,54.99,JEA,Senior Management,5555,Educational Support,Children'S Services
Blackpool Council,1008743,James Leckey Design Ltd T/A Vida Global,497938,OP/I140855,12/10/2018,619.2,103.2,MTE,Undefined Age Group,5401,Aids To Daily Living,Adult & Families
Blackpool Council,1008743,James Leckey Design Ltd T/A Vida Global,497939,OP/I140856,12/10/2018,619.2,103.2,MTE,Undefined Age Group,5401,Aids To Daily Living,Adult & Families
Blackpool Council,1111928,Newlyn Healthcare Specialist Equipment Ltd,497941,23162,05/10/2018,252,42,MTE,Undefined Age Group,5401,Aids To Daily Living,Adult & Families
Blackpool Council,1071702,Links Signs & Graphics Ltd,497947,LSGI25435,10/10/2018,252,42,PU1013,Public Health Misc,4501,Private Contractors,Public Health
Blackpool Council,1071702,Links Signs & Graphics Ltd,497948,LSGI25412,08/10/2018,372,62,PRG,Tourism General,3301,Printing,Places
Blackpool Council,1110202,Preston Bus Ltd,497953,103837,05/10/2018,2052,342,TRCHIL,Integrated Transport Children,2201,Contract Hire,Community & Env Services
Blackpool Council,1110202,Preston Bus Ltd,497954,103838,05/10/2018,2052,342,TRCHIL,Integrated Transport Children,2201,Contract Hire,Community & Env Services
Blackpool Council,1006636,Tts Group Ltd,497955,DE5488266,26/10/2018,359.7,59.95,LBF,Library Management,3819,Events Support,Places
Blackpool Council,1031983,Olympic Lock & Safeguards Ltd,497959,7086,05/10/2018,1237.27,206.21,GATE,Alleygates,3041,Other Materials,Community & Env Services
Blackpool Council,1031983,Olympic Lock & Safeguards Ltd,497960,7121,25/10/2018,495,82.5,GATE,Alleygates,3041,Other Materials,Community & Env Services
Blackpool Council,1090902,Anderson & Sons Contracting & Turf Care,497961,210,09/10/2018,380,0,PRKTEC,Parks Terchnician Manager,1012,Premises Maint-Priv.Contractor,Community & Env Services
Blackpool Council,1116974,Mason Creative Ltd,497962,LO_01,26/10/2018,1000,0,PJW,Management - Places - Illumina,3401,General Services,Places
Blackpool Council,1085092,Lancashire Mind Ltd,497966,541,05/10/2018,14759.33,0,HS0003,Headstart Commissioning,3401,General Services,Children'S Services
Blackpool Council,1115226,Baker Lomax & Shackley Ltd,497967,B1367,26/10/2018,2502,417,BCA,Corp And Member Services,3413,Consultants,Governance & Partnerships
Blackpool Council,1108220,Clarks Removals,497970,D1641,04/10/2018,2640,0,AEB,Buildings,3020,Furniture - Purchase,Resources
Blackpool Council,1069719,Conservatives,497971,30157,04/10/2018,8280,1380,PRA,Conferences,3015,Exhibitions Equipment,Places
Blackpool Council,1060990,Kantar Uk Ltd T/A Kantar Tns,497973,401094594,19/10/2018,3900,650,PPA,Head Of Tourism Services,3401,General Services,Places
Blackpool Council,1078971,Network Rail Infrastructure Ltd,497976,1234988,19/10/2018,88912.86,14818.81,CTBRAA,Bridges (Growth Fund),6501,Contract Payments,Capital - Comm & Environ
Blackpool Council,1116780,Core Industrial Solutions Ltd,497977,6273,08/10/2018,2160,360,PRKOP1,Parks Operational Manager  1,3041,Other Materials,Community & Env Services
Blackpool Council,1006940,Smiths Equipment Hire Ltd,497978,V12-653077,10/10/2018,1644,274,PJAA,"Erection, Operation & Dismantl",2211,Casual Hire,Community & Env Services
Blackpool Council,1058510,Lifeline Language Services Ltd,498007,1218127,26/10/2018,252.36,42.06,JEA,Senior Management,3419,Interpreters Fees,Children'S Services
Blackpool Council,1095165,Tower Learning Centre Ltd,498009,290-702,05/10/2018,384,64,EDDIV,Education Diversity,4101,Other Local Authorities,Children'S Services
Blackpool Council,1116774,Greenway Associates Ltd,498013,1481,29/10/2018,10800,1800,EC7011,Museum - Professional Fees,3413,Consultants,Places
Blackpool Council,1006292,Vodafone Corporate Ltd,498015,LK73350,19/10/2018,960,160,HOMECA,Homecare,3531,Computer-H'Ware Purchase,Adult & Families
Blackpool Council,1006292,Vodafone Corporate Ltd,498016,LK73349,19/10/2018,1536,256,HOMECA,Homecare,3531,Computer-H'Ware Purchase,Adult & Families
Blackpool Council,1006292,Vodafone Corporate Ltd,498017,LK73347,19/10/2018,960,160,HOMECA,Homecare,3531,Computer-H'Ware Purchase,Adult & Families
Blackpool Council,1006292,Vodafone Corporate Ltd,498018,LK73345,19/10/2018,960,160,HOMECA,Homecare,3531,Computer-H'Ware Purchase,Adult & Families
Blackpool Council,1006292,Vodafone Corporate Ltd,498019,LK39323,12/10/2018,444,74,FGAA,Ict Corporate Services,3531,Computer-H'Ware Purchase,Resources
Blackpool Council,1006292,Vodafone Corporate Ltd,498021,LK73346,19/10/2018,444,74,FGAA,Ict Corporate Services,3531,Computer-H'Ware Purchase,Resources
Blackpool Council,1006292,Vodafone Corporate Ltd,498022,LK73343,19/10/2018,1182,197,FGAA,Ict Corporate Services,3531,Computer-H'Ware Purchase,Resources
Blackpool Council,1006292,Vodafone Corporate Ltd,498023,LK66279,19/10/2018,1182,197,FGAA,Ict Corporate Services,3531,Computer-H'Ware Purchase,Resources
Blackpool Council,1006586,H Jenkinson & Co Ltd,498027,SINV00819871,26/10/2018,480,80,AEB,Buildings,3302,Stationery,Resources
Blackpool Council,1006586,H Jenkinson & Co Ltd,498028,SINV00819872,26/10/2018,480,80,AEB,Buildings,3302,Stationery,Resources
Blackpool Council,1035017,Newauto Ltd T/A Mogo Uk,498030,T28579,04/10/2018,1132.32,188.72,PYLA,Licencing,3041,Other Materials,Community & Env Services
Blackpool Council,1019773,"Bradshaw Electric Vehs, John Bradshaw Ltd",498032,109871,09/10/2018,619.91,103.32,SCLEAN,Street Cleaning,4501,Private Contractors,Community & Env Services
Blackpool Council,1019773,"Bradshaw Electric Vehs, John Bradshaw Ltd",498033,109872,15/10/2018,715.25,119.21,SCLEAN,Street Cleaning,4501,Private Contractors,Community & Env Services
Blackpool Council,1006419,Tunstall Healthcare (Uk) Ltd,498039,3IN/10324173,12/10/2018,2979.6,496.6,APFBAB,Vitaline,4501,Private Contractors,Adult & Families
Blackpool Council,1006940,Smiths Equipment Hire Ltd,498041,V12-653078,10/10/2018,260.16,43.36,PJNB,Lightpool,3041,Other Materials,Community & Env Services
Blackpool Council,1102328,Revoe Learning Academy,498042,RLA053,04/10/2018,8500,0,OPAREA,Opportunity Areas,4515,Contract Services,Places
Blackpool Council,1057808,Institute Of Risk Management,498052,EDU014755,17/10/2018,625,0,FBBBB,"Insur, Scrutiny & Emerg Planin",3404,Exam Fees & Exps (Sch),Resources
Blackpool Council,1049304,Insight Direct (Uk) Ltd,498054,4064929,22/10/2018,2845.64,474.27,FGAA,Ict Corporate Services,3532,Comp-Running & License Costs,Resources
Blackpool Council,1092816,Cdec Limited,498055,22834,05/10/2018,660,110,AEF,Facilities,3531,Computer-H'Ware Purchase,Resources
Blackpool Council,1078971,Network Rail Infrastructure Ltd,498056,1234838,19/10/2018,6095.88,1015.98,CTBRAA,Bridges (Growth Fund),6501,Contract Payments,Capital - Comm & Environ
Blackpool Council,1049152,Marwood Group Ltd,498057,1069175,26/10/2018,4014.36,669.06,SCHEME,Highways Schemes,3041,Other Materials,Community & Env Services
Blackpool Council,1078971,Network Rail Infrastructure Ltd,498060,1235054,26/10/2018,92347.4,15391.23,CTBRAA,Bridges (Growth Fund),6501,Contract Payments,Capital - Comm & Environ
Blackpool Council,1013705,Stadia Sports/ Broxap Limited,498062,INV236040,26/10/2018,1485,0,ZM0018,Highways & Engineering,9773,Orders Received Not Invoiced,Blackpool Services
Blackpool Council,1013705,Stadia Sports/ Broxap Limited,498062,INV236040,26/10/2018,1782,297,ZM0018,Highways & Engineering,9511A,Stocks Efin,Blackpool Services
Blackpool Council,1116828,Hydron Protective Coatings Limited,498066,10422,25/10/2018,2931.6,488.6,CTBRAA,Bridges (Growth Fund),6501,Contract Payments,Capital - Comm & Environ
Blackpool Council,1058510,Lifeline Language Services Ltd,498067,1218128,26/10/2018,252.36,42.06,JEA,Senior Management,3419,Interpreters Fees,Children'S Services
Blackpool Council,1011737,Blackpool Audio Visual Limited,498073,12662,05/10/2018,2520,420,FK0071,Corporate Training,0911,Training Expenses,Chief Executive
Blackpool Council,1071432,Cpi - Crisis Preventions Insititute,498074,CUK0016315,18/10/2018,1800,300,JA0505,Children'S Training,0911,Training Expenses,Children'S Services
Blackpool Council,1116224,Bluegrass Research Ltd,498075,1014,25/10/2018,4828.8,804.8,BSTPRJ,Better Start Projects,3401,General Services,Better Start Projects
Blackpool Council,1071432,Cpi - Crisis Preventions Insititute,498077,CUK0016383,24/10/2018,1800,300,JA0505,Children'S Training,0911,Training Expenses,Children'S Services
Blackpool Council,1117004,Atanto Ltd,498078,180903,05/10/2018,1095,0,BSTPRJ,Better Start Projects,3401,General Services,Better Start Projects
Blackpool Council,1097997,Szpunar & Associates Ltd,498079,19/014/0004,19/10/2018,2600,0,JA0505,Children'S Training,0911,Training Expenses,Children'S Services
Blackpool Council,1082067,Squire Patton Boggs (Uk) Llp,498084,2634149,25/10/2018,30792.2,5132.03,CTAHHA,Tramway Emergency Works,6506,Consultants Fees,Capital - Commnctn & Regen
Blackpool Council,1082067,Squire Patton Boggs (Uk) Llp,498086,2634151,25/10/2018,5141.4,856.9,CP0511,Anchorsholme Seawall Scheme,6506,Consultants Fees,Capital - Comm & Environ
Blackpool Council,1010311,Boc Limited,498088,3049290239,24/10/2018,406.41,67.74,LEISUR,Leisure Management,3060,Chemicals,Community & Env Services
Blackpool Council,1102627,Fresh Pastures Processing Ltd,498090,29204300918,30/10/2018,304.92,0,APDBBB,Arc,3107,Milk For Drinking,Adult & Families
Blackpool Council,1066729,Equis Associates Limited,498091,12-42-PG-BC,12/10/2018,16200,2700,CTAHHI,Tramway Extention,6506,Consultants Fees,Capital - Commnctn & Regen
Blackpool Council,1008039,Woodswaste Ltd,498094,029142,10/10/2018,544.32,90.72,CEMCRE,Cems Crems Etc,3801,Other Expenses,Governance & Partnerships
Blackpool Council,1005067,Blackpool Pleasure Beach Ltd,498096,18338,11/10/2018,805.5,134.25,PPA,Head Of Tourism Services,3401,General Services,Places
Blackpool Council,1041157,5-Am Contact Contract Cleaning Ltd,498099,2091,08/10/2018,360,60,APEBBA,Whitegate Cil,1608,Other Cleaning Works,Adult & Families
Blackpool Council,1060135,Happy Creative Ltd,498101,H4696,09/10/2018,3318,553,PU0001,Public Health Team,4501,Private Contractors,Public Health
Blackpool Council,1080460,Future Safety Limited,498102,4618,26/10/2018,265.8,44.3,BEACHP,Beach Patrol,3010,Safety Equipment,Places
Blackpool Council,1044756,Northgate Public Services (Uk) Ltd,498103,91412182,29/10/2018,1374.48,229.08,FC1404,Blue Badge Reform,3401,General Services,Resources
Blackpool Council,1008878,Cipfa Business Limited,498108,3138522,08/10/2018,1170,195,TRB,Maintenance & Works,3711,Subscriptions,Community & Env Services
Blackpool Council,1060135,Happy Creative Ltd,498110,H4677,09/10/2018,2028,338,PTA,Economic Development,3315,Marketing,Places
Blackpool Council,1060135,Happy Creative Ltd,498111,H4678,09/10/2018,780,130,PTA,Economic Development,3315,Marketing,Places
Blackpool Council,1053198,Robinson Mitchell Ltd  (Refbla044),498113,0000088075,15/10/2018,504,84,DOMPFI,Domestic Waste & Waste Pfi,4501,Private Contractors,Community & Env Services
Blackpool Council,1007206,Road Safety Services Ltd,498116,84039,22/10/2018,343.2,57.2,TRA,Traffic Management,4501,Private Contractors,Community & Env Services
Blackpool Council,1007206,Road Safety Services Ltd,498117,84040,22/10/2018,624,104,TRA,Traffic Management,4501,Private Contractors,Community & Env Services
Blackpool Council,1009763,Curtins Consulting Limited,498168,0026194,30/10/2018,4800,800,CGIBAA,Land Release Fund,6506,Consultants Fees,Capital - Commnctn & Regen
Blackpool Council,1010667,Argos Business Solutions Ltd,498179,01683539,09/10/2018,285.09,47.51,FC1802,Social Fund - Client,5210,Community Care Support,Resources
Blackpool Council,1018184,Blackpool Skip Hire,498184,5832,26/10/2018,2646,441,SCLEAN,Street Cleaning,4514,Contract 'E',Community & Env Services
Blackpool Council,1018184,Blackpool Skip Hire,498185,5831,10/10/2018,603.91,100.65,CWASTE,Commercial Waste,4514,Contract 'E',Community & Env Services
Blackpool Council,1070036,Gaist Solutions Ltd,498187,10593,08/10/2018,8400,1400,TRB,Maintenance & Works,4501,Private Contractors,Community & Env Services
Blackpool Council,1070036,Gaist Solutions Ltd,498188,10592,08/10/2018,50400,8400,TRB,Maintenance & Works,4501,Private Contractors,Community & Env Services
Blackpool Council,1103692,Calico Enterprise Limited,498190,SINV20/00000632,26/10/2018,3000,500,CWASTE,Commercial Waste,4501,Private Contractors,Community & Env Services
Blackpool Council,1100542,Caroline Horn T/A Bentley Training,498191,BEN/369,08/10/2018,520,0,LEISUR,Leisure Management,0911,Training Expenses,Community & Env Services
Blackpool Council,1009166,Glasdon Uk Ltd,498193,759948,12/10/2018,7444.8,1240.8,SCLEAN,Street Cleaning,3041,Other Materials,Community & Env Services
Blackpool Council,1009751,Bt Business Direct Limited,498195,IN04217071,09/10/2018,318.3,53.05,CCTV,Cctv,3003,Equipt-Mtce Repairs,Public Health
Blackpool Council,1114704,Morson Human Resources Ltd,498197,HS197656,10/10/2018,1980,330,CTAHHA,Tramway Emergency Works,6506,Consultants Fees,Capital - Commnctn & Regen
Blackpool Council,1110996,Philip Holmes T/A Dragon Creative,498201,BC0013,10/10/2018,4102.29,0,PJW,Management - Places - Illumina,3401,General Services,Places
Blackpool Council,1027764,Colins Travel,498204,COL01,08/10/2018,4225,0,TRCHIL,Integrated Transport Children,2201,Contract Hire,Community & Env Services
Blackpool Council,1114541,Integrity Print Ltd,498205,1235193,08/10/2018,627.6,104.6,PARADM,Parking Administration,3041,Other Materials,Budgets Outside Cash Limits
Blackpool Council,1114541,Integrity Print Ltd,498206,1235418,12/10/2018,1824,304,PARADM,Parking Administration,3302,Stationery,Budgets Outside Cash Limits
Blackpool Council,1114541,Integrity Print Ltd,498207,1235545,12/10/2018,806.4,134.4,PARADM,Parking Administration,3302,Stationery,Budgets Outside Cash Limits
Blackpool Council,1011868,W H Tarmacadam Limited,498208,7003,09/10/2018,10800,1800,ENGINE,Engineering,1012,Premises Maint-Priv.Contractor,Community & Env Services
Blackpool Council,1117033,New Century T/A Crowne Plaza Felbridge,498209,MM261118-291118,24/10/2018,380,63.33,PYTA,Trading Standards,1704,Bed & Breakfast Accomm.,Community & Env Services
Blackpool Council,1117033,New Century T/A Crowne Plaza Felbridge,498210,LP261118-291118,24/10/2018,380,63.33,PYLA,Licencing,1704,Bed & Breakfast Accomm.,Community & Env Services
Blackpool Council,1053261,Ad Systems (Uk) Limited,498211,4744,09/10/2018,3432,572,CCTV,Cctv,3003,Equipt-Mtce Repairs,Public Health
Blackpool Council,1053261,Ad Systems (Uk) Limited,498212,4745,09/10/2018,1110,185,CCTV,Cctv,3003,Equipt-Mtce Repairs,Public Health
Blackpool Council,1075645,Total Merchandise Ltd,498214,236084,12/10/2018,727.2,121.2,PRA,Conferences,3313,General Expenses,Places
Blackpool Council,1005071,Blackpool Transport Services Limited,498215,I0000881,12/10/2018,324,54,SCLEAN,Street Cleaning,4501,Private Contractors,Community & Env Services
Blackpool Council,1100004,Zoggs International Ltd,498223,I-0530666,08/10/2018,498.6,83.1,LEISUR,Leisure Management,3815,Saleable Goods,Community & Env Services
Blackpool Council,1100004,Zoggs International Ltd,498224,I-0520838,08/10/2018,846.6,141.1,LEISUR,Leisure Management,3815,Saleable Goods,Community & Env Services
Blackpool Council,1008440,Lancashire County Council,498225,5200172852,11/10/2018,10620,1770,CTABXA,Ltp Scheme 18/19,6501,Contract Payments,Capital - Commnctn & Regen
Blackpool Council,1079898,Mhc Traffic Ltd (Payment To Factor Fac005),498288,MHC/481/18,10/10/2018,13104,2184,TRA,Traffic Management,4501,Private Contractors,Community & Env Services
Blackpool Council,1006944,Siemens Financial Services Ltd,498290,244/18/0273297,09/10/2018,2383.84,397.3,APFBAB,Vitaline,4501,Private Contractors,Adult & Families
Blackpool Council,1071925,Groundwork Cheshire Lancs And Merseyside,498320,0000001764,24/10/2018,8062.2,1343.7,AEB,Buildings,3413,Consultants,Resources
Blackpool Council,1076636,Chicken Joes Ltd,498325,503535,26/10/2018,342.24,0,CATERG,Catering Services,3101,Provisions,Community & Env Services
Blackpool Council,1111501,Impact Fundraising,498334,1061,18/10/2018,12000,2000,EC7011,Museum - Professional Fees,3413,Consultants,Places
Blackpool Council,1103450,Blackpool Entertainment Company Limited,498335,INV003849,10/10/2018,10171.2,1695.2,FK0071,Corporate Training,0911,Training Expenses,Chief Executive
Blackpool Council,1099209,REDACTED PERSONAL DATA,498336,BL0005,12/10/2018,450,0,LM0420,Adults Training,0911,Training Expenses,Adult & Families
Blackpool Council,1018184,Blackpool Skip Hire,498342,5833,10/10/2018,12384,2064,CWASTE,Commercial Waste,4514,Contract 'E',Community & Env Services
Blackpool Council,1082493,Tick The Publicity Box Cic,498343,BCGS02-09-18,26/10/2018,300,0,PTA,Economic Development,3401,General Services,Places
Blackpool Council,1110576,De Pol Associates Ltd,498348,1889/18-122,26/10/2018,4615.58,769.26,CGIBAA,Land Release Fund,6506,Consultants Fees,Capital - Commnctn & Regen
Blackpool Council,1110576,De Pol Associates Ltd,498349,1886/18-121,26/10/2018,5468.64,911.44,CGIBAA,Land Release Fund,6506,Consultants Fees,Capital - Commnctn & Regen
Blackpool Council,1018039,Wayne Bagnall Ltd,498352,4070,09/10/2018,648,108,HJA,Growth,3605,Confs & Short Courses,Places
Blackpool Council,1012839,George Cox & Sons Ltd,498353,10119,16/10/2018,267612.2,44602.03,CGOAAA,Quality Corridor,6501,Contract Payments,Capital - Commnctn & Regen
Blackpool Council,1098897,Mike Kidd Horse Power Ltd,498355,1048,26/10/2018,350,0,EDDIV,Education Diversity,4101,Other Local Authorities,Children'S Services
Blackpool Council,1102627,Fresh Pastures Processing Ltd,498362,BLACKPOOL300918,30/10/2018,686.7,0,CATERG,Catering Services,3101,Provisions,Community & Env Services
Blackpool Council,1098897,Mike Kidd Horse Power Ltd,498363,1049,26/10/2018,3750,0,EDDIV,Education Diversity,4101,Other Local Authorities,Children'S Services
Blackpool Council,1006460,Total Hygiene Ltd,498366,OP/I145613,10/10/2018,3420,0,CXAAA,Local Authority Dwellings,6501,Contract Payments,Capital - Chief Executive
Blackpool Council,1006196,Prism Medical Uk,498367,5285934,18/10/2018,1410,235,CXAAA,Local Authority Dwellings,6501,Contract Payments,Capital - Chief Executive
Blackpool Council,1006196,Prism Medical Uk,498368,5284697,12/10/2018,3450,0,CX4002,Disabled Facilities Grants,6501,Contract Payments,Capital - Adult Social Care
Blackpool Council,1006196,Prism Medical Uk,498369,5284996,15/10/2018,1959.37,0,CX4002,Disabled Facilities Grants,6501,Contract Payments,Capital - Adult Social Care
Blackpool Council,1006196,Prism Medical Uk,498370,5285375,16/10/2018,3807,0,CX4002,Disabled Facilities Grants,6501,Contract Payments,Capital - Adult Social Care
Blackpool Council,1102943,Titanium Fireworks Ltd,498371,1951,09/10/2018,5166,861,PRD,Switch On,3401,General Services,Places
Blackpool Council,1008088,Meadow Kindergarten Ltd,498372,JJA001,09/10/2018,440,0,ALEARN,Adult Learning,0917,Other Exps,Places
Blackpool Council,1114120,Timotay Landscapes Ltd,498375,12626,18/10/2018,2496,416,PRKDEV,Parks Development,1012,Premises Maint-Priv.Contractor,Community & Env Services
Blackpool Council,1006944,Siemens Financial Services Ltd,498376,244/18/0294057,19/10/2018,3830.69,638.44,APFBAB,Vitaline,4501,Private Contractors,Adult & Families
Blackpool Council,1006196,Prism Medical Uk,498377,5286057,19/10/2018,1891,0,CX4002,Disabled Facilities Grants,6501,Contract Payments,Capital - Adult Social Care
Blackpool Council,1006419,Tunstall Healthcare (Uk) Ltd,498382,3IN/10325063,26/10/2018,3156,526,APFBAB,Vitaline,4501,Private Contractors,Adult & Families
Blackpool Council,1103543,Sailflags,498383,00104334,09/10/2018,2298.6,383.1,SCLEAN,Street Cleaning,3041,Other Materials,Community & Env Services
Blackpool Council,1011369,Lancashire County Council,498386,5200172903,09/10/2018,2010422,0,DOMPFI,Domestic Waste & Waste Pfi,4513,Contract 'A',Community & Env Services
Blackpool Council,1011269,Fylde Borough Council,498387,73240458,09/10/2018,34566,0,CPAABK,Sand Dunes Env Wrk Ph105,6506,Consultants Fees,Capital - Comm & Environ
Blackpool Council,1035120,Talking Life (Fac068 Payment),498388,S004987/S004384,10/10/2018,900,150,FK0071,Corporate Training,0911,Training Expenses,Chief Executive
Blackpool Council,1104094,Fair Train (Group Training Association) Ltd,498431,454,10/10/2018,500,0,PVA,Other External Funding,3711,Subscriptions,Places
Blackpool Council,1092351,Local Registration Services Association,498432,12872,26/10/2018,312,52,LIFEVE,Life Events Reg & Care,3801,Other Expenses,Governance & Partnerships
Blackpool Council,1088636,Tarmac Building Products Ltd,498442,SI01453714,31/10/2018,640,0,ZM0018,Highways & Engineering,9773,Orders Received Not Invoiced,Blackpool Services
Blackpool Council,1088636,Tarmac Building Products Ltd,498442,SI01453714,31/10/2018,768,128,ZM0018,Highways & Engineering,9511A,Stocks Efin,Blackpool Services
Blackpool Council,1110406,Simone Griffin T/A Caffe C Ltd,498446,SO911,19/10/2018,291.9,48.65,CWAN,Children With Additional Needs,3803,Hospitality,Children'S Services
Blackpool Council,1086156,Water Saving Techniques Limited,498448,4015,11/10/2018,6000,1000,CTABXA,Ltp Scheme 18/19,6501,Contract Payments,Capital - Commnctn & Regen
Blackpool Council,1086156,Water Saving Techniques Limited,498449,4011,11/10/2018,576,96,TRB,Maintenance & Works,4501,Private Contractors,Community & Env Services
Blackpool Council,1004960,Drugline Lancashire Ltd,498453,1038,10/10/2018,4800,0,PU0001,Public Health Team,4501,Private Contractors,Public Health
Blackpool Council,1103918,Itg Connect Ltd,498455,133345,26/10/2018,1443.6,240.6,TRB,Maintenance & Works,4501,Private Contractors,Community & Env Services
Blackpool Council,1115537,Strange Corporation,498457,H031,30/10/2018,1412.52,235.42,PRL,Marketing,3315,Marketing,Places
Blackpool Council,1007856,Nilfisk Limited,498459,3024350004,15/10/2018,1152,0,ZM0018,Highways & Engineering,9773,Orders Received Not Invoiced,Blackpool Services
Blackpool Council,1007856,Nilfisk Limited,498459,3024350004,15/10/2018,1382.4,230.4,ZM0018,Highways & Engineering,9511A,Stocks Efin,Blackpool Services
Blackpool Council,1005071,Blackpool Transport Services Limited,498465,I0000891,15/10/2018,1504.4,0,VA0010,Vah Management & Admin,2301,Bus & Tram Fares,Children'S Services
Blackpool Council,1076316,(Radio Wave) News Uk & Ireland Limited,498467,600241963,10/10/2018,260.82,43.47,PJW,Management - Places - Illumina,3315,Marketing,Places
Blackpool Council,1094424,The Networking People,498472,SI105559,30/10/2018,11999.1,1999.85,FGAA,Ict Corporate Services,3527,Communication Lines,Resources
Blackpool Council,1085357,Trinity College London,498477,00202980A,30/10/2018,1020,0,AHM,Arts Miscellaneous,0911,Training Expenses,Places
Blackpool Council,1075164,G4s Secure Solutions (Uk) Ltd,498478,90308131,30/10/2018,18109.01,3018.17,FMAB,Commercial Propereties,3418,Security Services,Resources
Blackpool Council,1011369,Lancashire County Council,498480,5200172902,10/10/2018,1105323.48,0,DOMPFI,Domestic Waste & Waste Pfi,4513,Contract 'A',Community & Env Services
Blackpool Council,1086714,Liveasy Ltd,498482,BP0117,10/10/2018,345.6,57.6,APDBBB,Arc,3408,Services To Clients,Adult & Families
Blackpool Council,1009234,Gary Roy Kirkham,498483,GK 01,10/10/2018,432,0,TRCHIL,Integrated Transport Children,2201,Contract Hire,Community & Env Services
Blackpool Council,1006460,Total Hygiene Ltd,498487,OP/I145714,10/10/2018,540,90,CXAAA,Local Authority Dwellings,6502,Grants & Advances,Capital - Chief Executive
Blackpool Council,1006196,Prism Medical Uk,498488,5288335,26/10/2018,7884,1314,MTE,Undefined Age Group,5401,Aids To Daily Living,Adult & Families
Blackpool Council,1006196,Prism Medical Uk,498489,885214,26/10/2018,1222.08,203.68,MTE,Undefined Age Group,5401,Aids To Daily Living,Adult & Families
Blackpool Council,1080563,Bay Media,498492,1511,26/10/2018,8290.8,1381.8,PRL,Marketing,3401,General Services,Places
Blackpool Council,1116781,Osprey Sling Company,498496,21888,24/10/2018,492,82,MTE,Undefined Age Group,5401,Aids To Daily Living,Adult & Families
Blackpool Council,1085637,Safespaces (Cornholme) Ltd,498497,INV-7519,10/10/2018,1920,320,CXAAA,Local Authority Dwellings,6501,Contract Payments,Capital - Chief Executive
Blackpool Council,1011779,Northern Security National Limited,498498,22539,10/10/2018,924,154,PRB,Events,3401,General Services,Places
Blackpool Council,1016998,Danvic Turf Care Limited,498504,4907,15/10/2018,9360,1560,PRKOP1,Parks Operational Manager  1,4570,Football Turf Maintenance,Community & Env Services
Blackpool Council,1109724,Park Circus Limited,498508,1031668,11/10/2018,274.5,45.75,AEH,Built Heritage,0981,Professional Fees,Places
Blackpool Council,1019622,Stephen  Floweth,498513,HT0003,11/10/2018,792,0,TRCHIL,Integrated Transport Children,2201,Contract Hire,Community & Env Services
Blackpool Council,1019622,Stephen  Floweth,498514,HT0001,11/10/2018,792,0,TRCHIL,Integrated Transport Children,2201,Contract Hire,Community & Env Services
Blackpool Council,1019622,Stephen  Floweth,498516,HT0002,11/10/2018,792,0,TRCHIL,Integrated Transport Children,2201,Contract Hire,Community & Env Services
Blackpool Council,1072848,Peter Rhodes,498517,01/001,11/10/2018,1706.2,0,TRCHIL,Integrated Transport Children,2201,Contract Hire,Community & Env Services
Blackpool Council,1072848,Peter Rhodes,498518,01/017,12/10/2018,1691,0,TRCHIL,Integrated Transport Children,2201,Contract Hire,Community & Env Services
Blackpool Council,1085660,Bisset Adams Ltd,498522,07385,26/10/2018,17282.28,2880.38,FMAK,Acquisitions 9/10,3801,Other Expenses,Places
Blackpool Council,1080418,Skv Communications Limited,498523,61793,31/10/2018,1980,330,CGTBBB,Conference Centre,6501,Contract Payments,Capital - Commnctn & Regen
Blackpool Council,1098105,Brightprint Ltd(Non Factor Payments Only),498524,26983,18/10/2018,288,48,TRC,Travel & Safety,4501,Private Contractors,Community & Env Services
Blackpool Council,1071928,Civica Uk Limited,498535,M/CM054646,30/10/2018,268.08,44.68,PARADM,Parking Administration,4501,Private Contractors,Budgets Outside Cash Limits
Blackpool Council,1022781,Moore Readymix Ltd,498543,93141,31/10/2018,304.26,50.71,ENGINE,Engineering,3041,Other Materials,Community & Env Services
Blackpool Council,1022781,Moore Readymix Ltd,498544,93113,31/10/2018,525.54,87.59,ENGINE,Engineering,3041,Other Materials,Community & Env Services
Blackpool Council,1107804,Actionwork Worldwide,498546,451,15/10/2018,2100,0,EDDIV,Education Diversity,3413,Consultants,Children'S Services
Blackpool Council,1028641,New Mind Internet Consultancy Ltd,498548,NM32403,31/10/2018,2983.5,497.25,PRJAAA,Website Team,3535,Website Costs,Places
Blackpool Council,1006292,Vodafone Corporate Ltd,498553,LL24921,26/10/2018,546,91,CWAN,Children With Additional Needs,3531,Computer-H'Ware Purchase,Children'S Services
Blackpool Council,1006292,Vodafone Corporate Ltd,498554,LL33485,26/10/2018,546,91,TRB,Maintenance & Works,3531,Computer-H'Ware Purchase,Community & Env Services
Blackpool Council,1009234,Gary Roy Kirkham,498556,GK 02,11/10/2018,330,0,TRCHIL,Integrated Transport Children,2201,Contract Hire,Community & Env Services
Blackpool Council,1010667,Argos Business Solutions Ltd,498557,01696339,19/10/2018,309.78,51.65,FC1802,Social Fund - Client,5210,Community Care Support,Resources
Blackpool Council,1010667,Argos Business Solutions Ltd,498558,01694161,24/10/2018,961.62,160.26,FC1802,Social Fund - Client,5210,Community Care Support,Resources
Blackpool Council,1006292,Vodafone Corporate Ltd,498560,LL02910,24/10/2018,1418.4,236.4,FGAA,Ict Corporate Services,3531,Computer-H'Ware Purchase,Resources
Blackpool Council,1006940,Smiths Equipment Hire Ltd,498618,V01-653740,11/10/2018,276.89,46.15,ENGINE,Engineering,3041,Other Materials,Community & Env Services
Blackpool Council,1013064,Tarmac Lafarge Trading Limited,498623,9038868763,19/10/2018,629.3,104.88,ENGINE,Engineering,3041,Other Materials,Community & Env Services
Blackpool Council,1013064,Tarmac Lafarge Trading Limited,498624,9038868762,19/10/2018,686.34,114.39,ENGINE,Engineering,3041,Other Materials,Community & Env Services
Blackpool Council,1013064,Tarmac Lafarge Trading Limited,498625,9038876307,19/10/2018,368.86,61.47,ENGINE,Engineering,3041,Other Materials,Community & Env Services
Blackpool Council,1013064,Tarmac Lafarge Trading Limited,498626,9038886500,24/10/2018,443.41,73.9,ENGINE,Engineering,3041,Other Materials,Community & Env Services
Blackpool Council,1011714,Michael Hope Haulage Limited,498630,001362,11/10/2018,1920,320,SCHEME,Highways Schemes,1012,Premises Maint-Priv.Contractor,Community & Env Services
Blackpool Council,1011714,Michael Hope Haulage Limited,498631,001363,11/10/2018,1728,288,SCHEME,Highways Schemes,1012,Premises Maint-Priv.Contractor,Community & Env Services
Blackpool Council,1007206,Road Safety Services Ltd,498634,84036,11/10/2018,11010.6,1835.1,PRB,Events,3006,Hire Of Equipment,Places
Blackpool Council,1007206,Road Safety Services Ltd,498635,84034,11/10/2018,3838.32,639.72,PRB,Events,3401,General Services,Places
Blackpool Council,1007385,R S Components Ltd,498643,291586990,31/10/2018,585.51,97.58,FMAK,Acquisitions 9/10,1131,Electrical Equipment - Repairs,Places
Blackpool Council,1010090,Vodafone Limited,498644,UK10/1020183352,15/10/2018,5119.93,853.32,FGAA,Ict Corporate Services,3527,Communication Lines,Resources
Blackpool Council,1042794,Carlton Fuels Limited,498652,1305979,11/10/2018,19089.49,0,ZF0001,"Insurance,Dso,Banking",9773,Orders Received Not Invoiced,Total Reconciliations
Blackpool Council,1042794,Carlton Fuels Limited,498652,1305979,11/10/2018,22907.39,3817.9,ZF0001,"Insurance,Dso,Banking",9511A,Stocks Efin,Total Reconciliations
Blackpool Council,1087034,Cool Milk Limited,498664,CML00023736,11/10/2018,18620.89,0,SCHBRK,Free School Breakfasts,3107,Milk For Drinking,Community & Env Services
Blackpool Council,1060135,Happy Creative Ltd,498665,H4725,18/10/2018,390,65,PUBH18,Stop Smoking Services & Interv,4501,Private Contractors,Public Health
Blackpool Council,1060135,Happy Creative Ltd,498666,H4723,18/10/2018,1500,250,PU0001,Public Health Team,4501,Private Contractors,Public Health
Blackpool Council,1117086,Milburn Browning Associates,498670,3176,17/10/2018,2400,400,TRB,Maintenance & Works,4501,Private Contractors,Community & Env Services
Blackpool Council,1079898,Mhc Traffic Ltd (Payment To Factor Fac005),498671,MHC/511/18,11/10/2018,5256,876,TRB,Maintenance & Works,4501,Private Contractors,Community & Env Services
Blackpool Council,1006940,Smiths Equipment Hire Ltd,498673,V12-656941,30/10/2018,934.5,44.5,PJNB,Lightpool,3041,Other Materials,Community & Env Services
Blackpool Council,1071447,Love Displays Ltd,498677,2293,26/10/2018,519.6,86.6,PRA,Conferences,3315,Marketing,Places
Blackpool Council,1009009,Hermolle Associates Ltd,498679,9553,12/10/2018,396,66,CTABWA,Ltp Scheme 17/18,6522,Land / Premises - Misc,Capital - Commnctn & Regen
Blackpool Council,1043974,Plastic Omnium Urban Systems Limited,498683,46870,31/10/2018,2850,475,DOMPFI,Domestic Waste & Waste Pfi,3041,Other Materials,Community & Env Services
Blackpool Council,1009166,Glasdon Uk Ltd,498692,760489,19/10/2018,600,100,SCLEAN,Street Cleaning,4501,Private Contractors,Community & Env Services
Blackpool Council,1098899,Browne Jacobson Llp,498696,392591,11/10/2018,1632,272,FL1259,Pfi Management Costs,4501,Private Contractors,Community & Env Services
Blackpool Council,1057663,Wilde Recruitment Ltd,498718,33717,29/10/2018,517.86,86.31,CTAHHA,Tramway Emergency Works,6501,Contract Payments,Capital - Commnctn & Regen
Blackpool Council,1044156,Pell Frischmann,498721,W18 0405,16/10/2018,2610.82,435.14,CGOAAA,Quality Corridor,6501,Contract Payments,Capital - Commnctn & Regen
Blackpool Council,1010619,Askews And Holts Library Services Ltd,498725,5848706,26/10/2018,320.88,0,LBB,Central Library,3304,Books And Periodicals,Places
Blackpool Council,1008540,Konica Minolta Business (Uk) Ltd,498729,1140061727,26/10/2018,32071.36,5345.23,FGBA,Specific (Directorate)-Service,3305,Photocopying Charges,Resources
Blackpool Council,1008540,Konica Minolta Business (Uk) Ltd,498730,1140055272,26/10/2018,32715.85,5452.64,FGBA,Specific (Directorate)-Service,3305,Photocopying Charges,Resources
Blackpool Council,1114521,Therichworks.Co.Uk,498731,R1081,12/10/2018,570.5,0,TRB,Maintenance & Works,4501,Private Contractors,Community & Env Services
Blackpool Council,1090628,The Furniture Recycling Group,498732,INV16620,26/10/2018,269.28,44.88,CWASTE,Commercial Waste,4514,Contract 'E',Community & Env Services
Blackpool Council,1008743,James Leckey Design Ltd T/A Vida Global,498777,OP/I141146,19/10/2018,3338.4,556.4,MTE,Undefined Age Group,5401,Aids To Daily Living,Adult & Families
Blackpool Council,1030119,Generation Hire & Sale Ltd,498785,H2074344,30/10/2018,3527.12,587.85,PJAA,"Erection, Operation & Dismantl",3041,Other Materials,Community & Env Services
Blackpool Council,1088020,Electricty North West (Const & Maint) Ltd,498787,COM5014617,26/10/2018,10815.32,1802.55,PJRA,Electrical Infra - Places,3041,Other Materials,Community & Env Services
Blackpool Council,1030119,Generation Hire & Sale Ltd,498790,H2074343,30/10/2018,462.85,77.14,PJAA,"Erection, Operation & Dismantl",3041,Other Materials,Community & Env Services
Blackpool Council,1106471,Mayne Special Needs,498791,MSN-BES360,17/10/2018,400,0,MTE,Undefined Age Group,5401,Aids To Daily Living,Adult & Families
Blackpool Council,1005071,Blackpool Transport Services Limited,498794,I0000905,29/10/2018,252,42,SCLEAN,Street Cleaning,4501,Private Contractors,Community & Env Services
Blackpool Council,1005071,Blackpool Transport Services Limited,498795,I0000904,19/10/2018,300,0,BSTPRJ,Better Start Projects,3006,Hire Of Equipment,Better Start Projects
Blackpool Council,1006196,Prism Medical Uk,498796,5283628,17/10/2018,343.73,57.29,MVA,18-64,5401,Aids To Daily Living,Adult & Families
Blackpool Council,1028228,Danfo (Uk) Ltd,498800,0000004207,12/10/2018,55000,9166.67,PUBCON,Public Conveniences,4501,Private Contractors,Community & Env Services
Blackpool Council,1116270,Paul Barnes T/A We Are Brave,498801,INV-01133,23/10/2018,14400,2400,BSTPRJ,Better Start Projects,3401,General Services,Better Start Projects
Blackpool Council,1060135,Happy Creative Ltd,498803,H4717,16/10/2018,3480,580,PTA,Economic Development,3315,Marketing,Places
Blackpool Council,1007206,Road Safety Services Ltd,498810,84133,16/10/2018,2020.8,336.8,SCHEME,Highways Schemes,1012,Premises Maint-Priv.Contractor,Community & Env Services
Blackpool Council,1097806,Aaa Safety Training Limited,498813,112,12/10/2018,3740,0,PYAA,Head Of Environmental Health,3605,Confs & Short Courses,Community & Env Services
Blackpool Council,1007980,Myerscough College,498814,INV267175,18/10/2018,760,0,PRKDEV,Parks Development,0911,Training Expenses,Community & Env Services
Blackpool Council,1008878,Cipfa Business Limited,498819,3138279,12/10/2018,450,75,AEF,Facilities,0914,Training Exp-Seminars,Resources
Blackpool Council,1044156,Pell Frischmann,498820,W18 0406,26/10/2018,2621.52,436.92,CTAHHA,Tramway Emergency Works,6506,Consultants Fees,Capital - Commnctn & Regen
Blackpool Council,1008865,Intrak,498831,BBC/2809,15/10/2018,2400,400,PRB,Events,3401,General Services,Places
Blackpool Council,1006449,Tmp (Uk) Ltd,498833,100001184204,17/10/2018,354.96,59.16,PBF,Communications,3425,Statutory Notices Etc,Chief Executive
Blackpool Council,1033190,Apse,498900,1819/931,15/10/2018,600,100,SCLEAN,Street Cleaning,3711,Subscriptions,Community & Env Services
Blackpool Council,1008440,Lancashire County Council,498908,5200173914,29/10/2018,2916.72,328.62,FK1006,Head Of Workforce & Org Dev,0911,Training Expenses,Chief Executive
Blackpool Council,1057663,Wilde Recruitment Ltd,498909,33642,29/10/2018,517.86,86.31,CTAHHA,Tramway Emergency Works,6501,Contract Payments,Capital - Commnctn & Regen
Blackpool Council,1114704,Morson Human Resources Ltd,498910,HS198761,26/10/2018,2376,396,CTAHHA,Tramway Emergency Works,6506,Consultants Fees,Capital - Commnctn & Regen
Blackpool Council,1060135,Happy Creative Ltd,498939,H4675,16/10/2018,2700,450,PTA,Economic Development,3315,Marketing,Places
Blackpool Council,1116785,Core Assets Childrens Services Limited,498941,9380,16/10/2018,12000,2000,JA2021,Sexual Health,4501,Private Contractors,Children'S Services
Blackpool Council,1113660,Cc2i Limited,498942,INV-0093,23/10/2018,594,99,FK0071,Corporate Training,3532,Comp-Running & License Costs,Chief Executive
Blackpool Council,1057761,Bikeright Limited,498943,7456,19/10/2018,588,98,LEISUR,Leisure Management,3007,Recreational Equipment,Community & Env Services
Blackpool Council,1086156,Water Saving Techniques Limited,498951,3975,23/10/2018,1536,256,PARADE,Parades & Seawall,1012,Premises Maint-Priv.Contractor,Community & Env Services
Blackpool Council,1100770,Batanai Arts,498959,BA 153,29/10/2018,3200,0,MUSIC,Music & Cultural Education,3801,Other Expenses,Children'S Services
Blackpool Council,1094424,The Networking People,498961,SI105583,30/10/2018,3199.68,533.28,FGAA,Ict Corporate Services,0791,Temp/Relief (Bureau Staff),Resources
Blackpool Council,1097195,Fylde Coast Academy Trust,498971,0000000159,17/10/2018,7750,0,OPAREA,Opportunity Areas,4515,Contract Services,Places
Blackpool Council,1006264,Westcoast Group Ltd,498973,INV-3011,19/10/2018,3000,500,PRB,Events,3006,Hire Of Equipment,Places
Blackpool Council,1023362,Jewson Limited,498981,0181/00186041,22/10/2018,274.8,0,ZM0018,Highways & Engineering,9773,Orders Received Not Invoiced,Blackpool Services
Blackpool Council,1023362,Jewson Limited,498981,0181/00186041,22/10/2018,329.76,54.96,ZM0018,Highways & Engineering,9511A,Stocks Efin,Blackpool Services
Blackpool Council,1011121,Fylde Coast Gate Ltd,498984,28036,29/10/2018,7192.26,1198.71,GATE,Alleygates,1012,Premises Maint-Priv.Contractor,Community & Env Services
Blackpool Council,1086156,Water Saving Techniques Limited,498985,4017,23/10/2018,3456,576,PARADE,Parades & Seawall,1012,Premises Maint-Priv.Contractor,Community & Env Services
Blackpool Council,1057573,Bwb Consulting Limited,498991,TPL0918006,26/10/2018,12600,2100,MPB,Edc - Economic Dev Company,3413,Consultants,Places
Blackpool Council,1023161,Suez Recycling And Recovery Uk Ltd,499000,80119053,26/10/2018,66138.98,11023.16,DOMPFI,Domestic Waste & Waste Pfi,4501,Private Contractors,Community & Env Services
Blackpool Council,1115995,REDACTED PERSONAL DATA,499001,1115995,30/10/2018,1440,0,HS0005,Whole School Approach,0911,Training Expenses,Children'S Services
Blackpool Council,1105990,Fylde Environmental Services Ltd,499002,BC/364/2018,16/10/2018,2908,0,SCLEAN,Street Cleaning,4501,Private Contractors,Community & Env Services
Blackpool Council,1053191,Veolia Es (Uk) Limited,499003,OP/I532445,16/10/2018,395859.32,65976.55,DOMPFI,Domestic Waste & Waste Pfi,4501,Private Contractors,Community & Env Services
Blackpool Council,1025402,South Ribble Borough Council,499006,9500171366,16/10/2018,420,70,PYTA,Trading Standards,3605,Confs & Short Courses,Community & Env Services
Blackpool Council,1010138,C Cabs,499009,03210,18/10/2018,1425,0,TRCHIL,Integrated Transport Children,2201,Contract Hire,Community & Env Services
Blackpool Council,1010138,C Cabs,499010,03236,18/10/2018,570,0,TRCHIL,Integrated Transport Children,2201,Contract Hire,Community & Env Services
Blackpool Council,1117089,Hpl (Olympia) Ltd T/A Hilton Olympia,499019,3472330572,17/10/2018,1375,229.17,MPB,Edc - Economic Dev Company,0915,Conferences,Places
Blackpool Council,1116960,220 Soft Ltd,499020,817,17/10/2018,3600,600,FC1391,Universal Credit - Blackpool,3532,Comp-Running & License Costs,Resources
Blackpool Council,1023161,Suez Recycling And Recovery Uk Ltd,499049,80120556,26/10/2018,8782.08,1463.68,CWASTE,Commercial Waste,4514,Contract 'E',Community & Env Services
Blackpool Council,1086003,Ncfe,499050,SI00062249,30/10/2018,1100,0,ALEARN,Adult Learning,6273,Miscellaneous,Places
Blackpool Council,1006385,University Of Central Lancashire,499052,5099202,17/10/2018,275,0,JA0505,Children'S Training,0911,Training Expenses,Children'S Services
Blackpool Council,1007183,Royal Mail Group Ltd,499055,1109383651,19/10/2018,672.32,112.05,CWASTE,Commercial Waste,3511,Postages,Community & Env Services
Blackpool Council,1008817,Radio J  Cabs,499057,515512,18/10/2018,1728,0,TRCHIL,Integrated Transport Children,2201,Contract Hire,Community & Env Services
Blackpool Council,1008817,Radio J  Cabs,499058,515515,18/10/2018,870,0,TRCHIL,Integrated Transport Children,2201,Contract Hire,Community & Env Services
Blackpool Council,1008817,Radio J  Cabs,499059,515513,18/10/2018,960,0,TRCHIL,Integrated Transport Children,2201,Contract Hire,Community & Env Services
Blackpool Council,1008817,Radio J  Cabs,499060,515514,18/10/2018,1018,0,TRCHIL,Integrated Transport Children,2201,Contract Hire,Community & Env Services
Blackpool Council,1023362,Jewson Limited,499065,0181/00301849,22/10/2018,2096.25,0,ZM0018,Highways & Engineering,9773,Orders Received Not Invoiced,Blackpool Services
Blackpool Council,1023362,Jewson Limited,499065,0181/00301849,22/10/2018,2515.5,419.25,ZM0018,Highways & Engineering,9511A,Stocks Efin,Blackpool Services
Blackpool Council,1094002,Waterloo Primary Academy,499074,WPSI 2,17/10/2018,13312,0,OPAREA,Opportunity Areas,4515,Contract Services,Places
Blackpool Council,1010372,Christ The King Catholic Academy,499075,0000000021,17/10/2018,4190,0,OPAREA,Opportunity Areas,4515,Contract Services,Places
Blackpool Council,1071918,St Cuthberts Catholic Academy,499076,0000000016,17/10/2018,3621,0,OPAREA,Opportunity Areas,4515,Contract Services,Places
Blackpool Council,1008508,Essentra Components Limited,499077,145936,19/10/2018,1639,273.17,OTHL,Other Learning,6272,Administration,Children'S Services
Blackpool Council,1008419,Lcr Limited,499078,E001018,23/10/2018,3264,544,CATERG,Catering Services,3532,Comp-Running & License Costs,Community & Env Services
Blackpool Council,1010604,Asdan Limited,499096,277849,31/10/2018,1507.2,251.2,HS0003,Headstart Commissioning,3401,General Services,Children'S Services
Blackpool Council,1051299,Leisure Travel,499102,INV00353,18/10/2018,1292,0,TRCHIL,Integrated Transport Children,2201,Contract Hire,Community & Env Services
Blackpool Council,1051299,Leisure Travel,499103,INV00356,18/10/2018,1900,0,TRCHIL,Integrated Transport Children,2201,Contract Hire,Community & Env Services
Blackpool Council,1051299,Leisure Travel,499104,INV00355,18/10/2018,1900,0,TRCHIL,Integrated Transport Children,2201,Contract Hire,Community & Env Services
Blackpool Council,1007270,Rics,499110,095437,22/10/2018,3840,640,AED,Capital Projects,3532,Comp-Running & License Costs,Resources
Blackpool Council,1011269,Fylde Borough Council,499123,73241419,18/10/2018,900,0,BAAA,Legal Services,3801,Other Expenses,Governance & Partnerships
Blackpool Council,1087953,Blackpool Local Education Partnership Ltd,499125,SI10027,18/10/2018,10825.98,1804.33,EM1028,St Marys,4515,Contract Services,Children'S Services
Blackpool Council,1087034,Cool Milk Limited,499130,CML00023744,24/10/2018,20460.48,0,SCHBRK,Free School Breakfasts,3107,Milk For Drinking,Community & Env Services
Blackpool Council,1116813,Qed Productions Ltd,499133,59364,19/10/2018,48000,8000,PJW,Management - Places - Illumina,3041,Other Materials,Places
Blackpool Council,1011970,A1 Streamline Road Markings Ltd,499164,3382,25/10/2018,961.39,160.23,PARADM,Parking Administration,2002,Repairs And Maintenance,Budgets Outside Cash Limits
Blackpool Council,1090902,Anderson & Sons Contracting & Turf Care,499166,211,18/10/2018,2080,0,TRB,Maintenance & Works,4501,Private Contractors,Community & Env Services
Blackpool Council,1102434,Inform Cpi Limited,499167,AL57474,19/10/2018,1320,220,FC2011,Nndr Collection Costs,3401,General Services,Budgets Outside Cash Limits
Blackpool Council,1102434,Inform Cpi Limited,499168,AL57539,24/10/2018,840,140,FC2011,Nndr Collection Costs,3401,General Services,Budgets Outside Cash Limits
Blackpool Council,1013064,Tarmac Lafarge Trading Limited,499177,9038844704,18/10/2018,568.22,94.7,ENGINE,Engineering,3041,Other Materials,Community & Env Services
Blackpool Council,1013064,Tarmac Lafarge Trading Limited,499178,9038923839,30/10/2018,641.66,106.94,ENGINE,Engineering,3041,Other Materials,Community & Env Services
Blackpool Council,1013064,Tarmac Lafarge Trading Limited,499180,9038906592,26/10/2018,457.56,76.26,ENGINE,Engineering,3041,Other Materials,Community & Env Services
Blackpool Council,1013064,Tarmac Lafarge Trading Limited,499181,9038844805,18/10/2018,350.79,58.46,ENGINE,Engineering,3041,Other Materials,Community & Env Services
Blackpool Council,1013064,Tarmac Lafarge Trading Limited,499182,9038923837,30/10/2018,484.08,80.68,ENGINE,Engineering,3041,Other Materials,Community & Env Services
Blackpool Council,1016258,M J Teale Plant Hire Ltd,499183,B8297,18/10/2018,1260.29,210.05,ENGINE,Engineering,1012,Premises Maint-Priv.Contractor,Community & Env Services
Blackpool Council,1011714,Michael Hope Haulage Limited,499184,001364,18/10/2018,1728,288,SCHEME,Highways Schemes,1012,Premises Maint-Priv.Contractor,Community & Env Services
Blackpool Council,1009079,Pearson Education Ltd,499188,IUK194_VOC,23/10/2018,271.95,0,EDDIV,Education Diversity,3404,Exam Fees & Exps (Sch),Children'S Services
Blackpool Council,1013064,Tarmac Lafarge Trading Limited,499189,9038906594,26/10/2018,336.92,56.15,ENGINE,Engineering,3041,Other Materials,Community & Env Services
Blackpool Council,1008817,Radio J  Cabs,499190,515542,19/10/2018,3023.88,0,EDDIV,Education Diversity,2201,Contract Hire,Children'S Services
Blackpool Council,1011970,A1 Streamline Road Markings Ltd,499192,3384,29/10/2018,637.25,106.21,ENGINE,Engineering,1012,Premises Maint-Priv.Contractor,Community & Env Services
Blackpool Council,1011970,A1 Streamline Road Markings Ltd,499195,3387,29/10/2018,1310.21,218.37,ENGINE,Engineering,1012,Premises Maint-Priv.Contractor,Community & Env Services
Blackpool Council,1006944,Siemens Financial Services Ltd,499201,244/18/0301186,26/10/2018,1819.59,303.26,APFBAB,Vitaline,4501,Private Contractors,Adult & Families
Blackpool Council,1006944,Siemens Financial Services Ltd,499202,244/18/0303265,30/10/2018,4442.29,740.38,APFBAB,Vitaline,4501,Private Contractors,Adult & Families
Blackpool Council,1010509,Balloonatics,499204,BBC 310818,23/10/2018,600,0,PRD,Switch On,3401,General Services,Places
Blackpool Council,1011369,Lancashire County Council,499210,5200173938,18/10/2018,349582,0,FR5001,Concessionary Fares,3401,General Services,Budgets Outside Cash Limits
Blackpool Council,1011369,Lancashire County Council,499211,5200172812,18/10/2018,358054,0,FR5001,Concessionary Fares,3401,General Services,Budgets Outside Cash Limits
Blackpool Council,1011369,Lancashire County Council,499212,5200172805,18/10/2018,3339,0,FR5001,Concessionary Fares,3401,General Services,Budgets Outside Cash Limits
Blackpool Council,1116767,Ibi Group Ltd,499216,10001932,30/10/2018,5400,900,MPB,Edc - Economic Dev Company,3413,Consultants,Places
Blackpool Council,1091773,Highfield Awarding Body For Comp. Ltd,499226,0005998529,18/10/2018,480,80,PYCA,Public Protection - Food,3313,General Expenses,Community & Env Services
Blackpool Council,1096486,Roseacre Primary Academy,499229,RPA/1117,18/10/2018,8202,0,OPAREA,Opportunity Areas,4515,Contract Services,Places
Blackpool Council,1105580,Buttress Architects Limited,499232,14089,18/10/2018,56657.57,9442.93,EC7013,Museum- Other Costs,3413,Consultants,Places
Blackpool Council,1117002,Redraw Travel Ltd T/A Blackpool Minibuses,499233,INV-2229,26/10/2018,1235,0,TRCHIL,Integrated Transport Children,2201,Contract Hire,Community & Env Services
Blackpool Council,1117002,Redraw Travel Ltd T/A Blackpool Minibuses,499234,INV-2232,26/10/2018,2280,0,TRCHIL,Integrated Transport Children,2201,Contract Hire,Community & Env Services
Blackpool Council,1060135,Happy Creative Ltd,499235,H4712,22/10/2018,2028,338,PTA,Economic Development,3315,Marketing,Places
Blackpool Council,1113560,Iese Transformation Limited,499236,928,22/10/2018,5079.6,846.6,DOMPFI,Domestic Waste & Waste Pfi,3711,Subscriptions,Community & Env Services
Blackpool Council,1113560,Iese Transformation Limited,499242,927,22/10/2018,7228.8,1204.8,DOMPFI,Domestic Waste & Waste Pfi,3711,Subscriptions,Community & Env Services
Blackpool Council,1117002,Redraw Travel Ltd T/A Blackpool Minibuses,499243,INV-2231,26/10/2018,1235,0,TRCHIL,Integrated Transport Children,2201,Contract Hire,Community & Env Services
Blackpool Council,1117002,Redraw Travel Ltd T/A Blackpool Minibuses,499244,INV-2230,26/10/2018,1520,0,TRCHIL,Integrated Transport Children,2201,Contract Hire,Community & Env Services
Blackpool Council,1095218,Arbtech Consulting Ltd,499246,25458,18/10/2018,11398.8,1899.8,CXC11,Site Development,6514,B.Holes/Site Investgtn/Surveys,Capital - Chief Executive
Blackpool Council,1011369,Lancashire County Council,499248,5200173919,18/10/2018,2931,0,FR5001,Concessionary Fares,3401,General Services,Budgets Outside Cash Limits
Blackpool Council,1007270,Rics,499255,02054722FTI,26/10/2018,558,93,HJA,Growth,3711,Subscriptions,Places
Blackpool Council,1018967,British Sports Trust Ltd,499261,INV26962/18,18/10/2018,287,0,PESPRT,Pe And Sport Team,3801,Other Expenses,Community & Env Services
Blackpool Council,1107445,REDACTED PERSONAL DATA,499263,JH178,18/10/2018,1581.2,0,JA0505,Children'S Training,0911,Training Expenses,Children'S Services
Blackpool Council,1010604,Asdan Limited,499266,277606,30/10/2018,862.15,0,JA0505,Children'S Training,0911,Training Expenses,Children'S Services
Blackpool Council,1106094,Casson Mann Ltd,499273,2341,29/10/2018,46800,7800,EC7011,Museum - Professional Fees,3413,Consultants,Places
Blackpool Council,1106094,Casson Mann Ltd,499274,2340,29/10/2018,116868,19478,EC7011,Museum - Professional Fees,3413,Consultants,Places
Blackpool Council,1051299,Leisure Travel,499278,INV00354,22/10/2018,1900,0,TRCHIL,Integrated Transport Children,2201,Contract Hire,Community & Env Services
Blackpool Council,1094424,The Networking People,499281,SI105611,30/10/2018,14520,2420,FGAA,Ict Corporate Services,3532,Comp-Running & License Costs,Resources
Blackpool Council,1094424,The Networking People,499282,SI105612,30/10/2018,23760,3960,FGAA,Ict Corporate Services,3532,Comp-Running & License Costs,Resources
Blackpool Council,1008878,Cipfa Business Limited,499285,3138604,19/10/2018,450,75,AEE,Estates,0914,Training Exp-Seminars,Resources
Blackpool Council,1010300,Blacktax Radio Taxis T/A Blackpool Courier,499293,12597,19/10/2018,1254,0,TRCHIL,Integrated Transport Children,2201,Contract Hire,Community & Env Services
Blackpool Council,1010300,Blacktax Radio Taxis T/A Blackpool Courier,499294,12598,19/10/2018,1222,0,TRCHIL,Integrated Transport Children,2201,Contract Hire,Community & Env Services
Blackpool Council,1046723,Brightprint (Fac008 Payment Only),499295,27016,30/10/2018,300,0,PRG,Tourism General,3301,Printing,Places
Blackpool Council,1009326,Flowers Galore,499360,FG100,18/10/2018,460,76.67,TRB,Maintenance & Works,4501,Private Contractors,Community & Env Services
Blackpool Council,1053592,Tfs Training Consultants Ltd,499382,960,26/10/2018,660,110,FK0071,Corporate Training,0911,Training Expenses,Chief Executive
Blackpool Council,1006644,Telewest/Virgin Media Payments Ltd,499399,081127901504,22/10/2018,887.4,147.9,FGAA,Ict Corporate Services,3521,Landline - Line Rental,Resources
Blackpool Council,1006644,Telewest/Virgin Media Payments Ltd,499400,080868701864,22/10/2018,268.02,44.67,FGAA,Ict Corporate Services,3521,Landline - Line Rental,Resources
Blackpool Council,1006644,Telewest/Virgin Media Payments Ltd,499401,067437901506,22/10/2018,2420.09,403.35,FGAA,Ict Corporate Services,3521,Landline - Line Rental,Resources
Blackpool Council,1006644,Telewest/Virgin Media Payments Ltd,499402,067437901003,30/10/2018,3545.71,590.95,FGAA,Ict Corporate Services,3521,Landline - Line Rental,Resources
Blackpool Council,1114704,Morson Human Resources Ltd,499411,HS199732,26/10/2018,2376,396,CTAHHA,Tramway Emergency Works,6506,Consultants Fees,Capital - Commnctn & Regen
Blackpool Council,1109682,Entertainment Concepts Ltd,499415,145,26/10/2018,799.99,133.33,FMAK,Acquisitions 9/10,1012,Premises Maint-Priv.Contractor,Places
Blackpool Council,1102943,Titanium Fireworks Ltd,499417,1990,22/10/2018,480,80,PRB,Events,3401,General Services,Places
Blackpool Council,1102943,Titanium Fireworks Ltd,499418,1989,22/10/2018,15600,2600,PRB,Events,3401,General Services,Places
Blackpool Council,1009166,Glasdon Uk Ltd,499423,761086,29/10/2018,6204,1034,SCLEAN,Street Cleaning,3041,Other Materials,Community & Env Services
Blackpool Council,1011970,A1 Streamline Road Markings Ltd,499431,3417,26/10/2018,302.27,50.38,PARADM,Parking Administration,3801,Other Expenses,Budgets Outside Cash Limits
Blackpool Council,1006264,Westcoast Group Ltd,499503,INV-2824,23/10/2018,3480,580,PRD,Switch On,3401,General Services,Places
Blackpool Council,1005071,Blackpool Transport Services Limited,499504,I0000871,23/10/2018,1643.83,0,FRAEA,Public Transport Contracts,2201,Contract Hire,Community & Env Services
Blackpool Council,1112477,Big Wave Media (Fac060),499538,59538,24/10/2018,7018,1169.67,LEISUR,Leisure Management,3801,Other Expenses,Community & Env Services
Blackpool Council,1040364,Conlon Construction Ltd,499541,10458,23/10/2018,215457.73,35909.62,CGTABA,Spanish Hall & Cs Façade,6501,Contract Payments,Capital - Commnctn & Regen
Blackpool Council,1040364,Conlon Construction Ltd,499541,10458,23/10/2018,5228.84,0,ZF0001,"Insurance,Dso,Banking",97B6,Retention Monies - Cap Trsfr,Total Reconciliations
Blackpool Council,1005071,Blackpool Transport Services Limited,499554,I0000925,26/10/2018,792,0,JEA,Senior Management,5552,Bus Pass / Travel,Children'S Services
Blackpool Council,1103450,Blackpool Entertainment Company Limited,499559,INV003866,23/10/2018,9570,1595,BSTPRJ,Better Start Projects,3401,General Services,Better Start Projects
Blackpool Council,1010830,Ace Radio Cabs Limited,499565,BC/01/006SEPT18,26/10/2018,1330,0,TRCHIL,Integrated Transport Children,2201,Contract Hire,Community & Env Services
Blackpool Council,1010830,Ace Radio Cabs Limited,499566,BC/26/001SEPT18,26/10/2018,1078,0,TRCHIL,Integrated Transport Children,2201,Contract Hire,Community & Env Services
Blackpool Council,1113560,Iese Transformation Limited,499569,943,25/10/2018,3842.4,640.4,DOMPFI,Domestic Waste & Waste Pfi,3711,Subscriptions,Community & Env Services
Blackpool Council,1113560,Iese Transformation Limited,499571,942,25/10/2018,2963.1,493.85,DOMPFI,Domestic Waste & Waste Pfi,3711,Subscriptions,Community & Env Services
Blackpool Council,1091050,Howard Palmer T/A Trojan Travel,499577,001,26/10/2018,1620,0,TRCHIL,Integrated Transport Children,2201,Contract Hire,Community & Env Services
Blackpool Council,1091050,Howard Palmer T/A Trojan Travel,499579,002,26/10/2018,1350,0,TRCHIL,Integrated Transport Children,2201,Contract Hire,Community & Env Services
Blackpool Council,1060135,Happy Creative Ltd,499581,H4729,26/10/2018,802.8,133.8,PU0001,Public Health Team,4501,Private Contractors,Public Health
Blackpool Council,1060135,Happy Creative Ltd,499582,H4725,26/10/2018,448.8,74.8,PU0001,Public Health Team,4501,Private Contractors,Public Health
Blackpool Council,1103450,Blackpool Entertainment Company Limited,499583,INV003848,30/10/2018,260.7,43.45,MNGMT,Central Management,5555,Educational Support,Children'S Services
Blackpool Council,1010616,Ashtead Plant Hire Company Ltd,499588,17596657,24/10/2018,858,143,PJNA,New Features / Schemes - C & E,3041,Other Materials,Community & Env Services
Blackpool Council,1099262,Nhs Blackpool Ccg,499622,7011210849,23/10/2018,650971,0,LM9027,Bcf Control,5101,Transfer Payments - General,Bcf General And Control
Blackpool Council,1099262,Nhs Blackpool Ccg,499623,7011210540,23/10/2018,388740,0,LM9027,Bcf Control,5101,Transfer Payments - General,Bcf General And Control
Blackpool Council,1090774,Richardson Traction Limited,499626,20543,24/10/2018,720,120,PJAA,"Erection, Operation & Dismantl",3041,Other Materials,Community & Env Services
Blackpool Council,1090774,Richardson Traction Limited,499627,20603,24/10/2018,450,75,PJAA,"Erection, Operation & Dismantl",3041,Other Materials,Community & Env Services
Blackpool Council,1116936,Pirapora Uk Ltd T/A Autoplot,499628,1066,30/10/2018,3200,0,PJW,Management - Places - Illumina,3041,Other Materials,Places
Blackpool Council,1070719,Teachers 2 Parents Ltd,499631,10063852/1,24/10/2018,598.8,99.8,EDDIV,Education Diversity,3711,Subscriptions,Children'S Services
Blackpool Council,1008865,Intrak,499638,BBC/1310,26/10/2018,2400,400,PRB,Events,3006,Hire Of Equipment,Places
Blackpool Council,1008865,Intrak,499639,BBC/0510,26/10/2018,2400,400,PRB,Events,3006,Hire Of Equipment,Places
Blackpool Council,1011121,Fylde Coast Gate Ltd,499640,28064,29/10/2018,330,55,GATE,Alleygates,3041,Other Materials,Community & Env Services
Blackpool Council,1071702,Links Signs & Graphics Ltd,499644,LSGI24901,25/10/2018,782.4,130.4,PU0001,Public Health Team,4501,Private Contractors,Public Health
Blackpool Council,1033190,Apse,499649,1819/1231,26/10/2018,420,70,CEMCRE,Cems Crems Etc,3605,Confs & Short Courses,Governance & Partnerships
Blackpool Council,1011730,Metric Group Limited,499653,157482,25/10/2018,34416,5736,CGOAAA,Quality Corridor,6501,Contract Payments,Capital - Commnctn & Regen
Blackpool Council,1010138,C Cabs,499654,03151,25/10/2018,1074.2,0,TRCHIL,Integrated Transport Children,2201,Contract Hire,Community & Env Services
Blackpool Council,1008817,Radio J  Cabs,499655,515527,25/10/2018,3616.35,0,TRCHIL,Integrated Transport Children,2201,Contract Hire,Community & Env Services
Blackpool Council,1008817,Radio J  Cabs,499656,515526,25/10/2018,3011.1,0,TRCHIL,Integrated Transport Children,2201,Contract Hire,Community & Env Services
Blackpool Council,1008817,Radio J  Cabs,499659,515511,25/10/2018,1406.7,0,EDDIV,Education Diversity,2201,Contract Hire,Children'S Services
Blackpool Council,1071288,Wyg Environment Planning Transport Ltd,499660,856887,24/10/2018,8748,1458,CX4030,Psh - Tyldesley/Rigby Rd Redev,6503,Capital Salaries (Pro Advance),Capital - Chief Executive
Blackpool Council,1006196,Prism Medical Uk,499662,5288742,30/10/2018,330.28,55.05,MVB,65-74,5401,Aids To Daily Living,Adult & Families
Blackpool Council,1078418,Lisclare Limited,499665,SINV03084687,24/10/2018,3243.25,540.54,MTE,Undefined Age Group,3006,Hire Of Equipment,Adult & Families
Blackpool Council,1086714,Liveasy Ltd,499667,BK0436A,24/10/2018,23283.42,3880.57,MTE,Undefined Age Group,5401,Aids To Daily Living,Adult & Families
Blackpool Council,1086714,Liveasy Ltd,499668,BK0436B,24/10/2018,18491.6,3081.93,MTE,Undefined Age Group,5401,Aids To Daily Living,Adult & Families
Blackpool Council,1086714,Liveasy Ltd,499669,BK0436C,24/10/2018,7874.87,1312.48,MTE,Undefined Age Group,5401,Aids To Daily Living,Adult & Families
Blackpool Council,1086714,Liveasy Ltd,499670,BK0436D,24/10/2018,12141.55,2023.59,MTE,Undefined Age Group,5401,Aids To Daily Living,Adult & Families
Blackpool Council,1084663,Garmendale Engineering Limited,499710,11160,26/10/2018,9051.6,1508.6,PJLA,Maintenance,1012,Premises Maint-Priv.Contractor,Community & Env Services
Blackpool Council,1006986,Shorrock Trichem Limited,499713,1252297,26/10/2018,274.87,45.81,LEISUR,Leisure Management,1608,Other Cleaning Works,Community & Env Services
Blackpool Council,1086156,Water Saving Techniques Limited,499720,4027,31/10/2018,12945.6,2157.6,PARADE,Parades & Seawall,1012,Premises Maint-Priv.Contractor,Community & Env Services
Blackpool Council,1114736,Geminus Training Limited,499721,INV-00165,26/10/2018,4320,720,PTA,Economic Development,3413,Consultants,Places
Blackpool Council,1078779,Tesco Stores Limited - Gift Card,499722,TFB-111780,26/10/2018,1000,0,JEA,Senior Management,5507,Personal,Children'S Services
Blackpool Council,1102823,Wilde Consultants Limited,499723,WPCON 16639,26/10/2018,1022.22,170.37,CTBRAA,Bridges (Growth Fund),6501,Contract Payments,Capital - Comm & Environ
Blackpool Council,1081205,The Excellent Ramp System Ltd,499725,1359,25/10/2018,2280,0,CXAAA,Local Authority Dwellings,6501,Contract Payments,Capital - Chief Executive
Blackpool Council,1081205,The Excellent Ramp System Ltd,499726,1361,25/10/2018,2900,0,CXAAA,Local Authority Dwellings,6501,Contract Payments,Capital - Chief Executive
Blackpool Council,1081205,The Excellent Ramp System Ltd,499727,1360,25/10/2018,1680,0,CX4002,Disabled Facilities Grants,6501,Contract Payments,Capital - Adult Social Care
Blackpool Council,1008817,Radio J  Cabs,499736,515525,26/10/2018,1278.67,0,TRCHIL,Integrated Transport Children,2201,Contract Hire,Community & Env Services
Blackpool Council,1008817,Radio J  Cabs,499739,515547,26/10/2018,515.93,0,TRCHIL,Integrated Transport Children,2201,Contract Hire,Community & Env Services
Blackpool Council,1065725,REDACTED PERSONAL DATA,499747,HK034,26/10/2018,500,0,PRL,Marketing,3401,General Services,Places
Blackpool Council,1009755,D Kirkham,499749,001,26/10/2018,2300,0,TRCHIL,Integrated Transport Children,2201,Contract Hire,Community & Env Services
Blackpool Council,1009922,Cipfa,499764,5245102,26/10/2018,1142.4,190.4,FBBCA,Accountancy,0911,Training Expenses,Resources
Blackpool Council,1009922,Cipfa,499765,5245103,26/10/2018,1142.4,190.4,FBBCA,Accountancy,0911,Training Expenses,Resources
Blackpool Council,1009922,Cipfa,499766,5245279,26/10/2018,2035.2,339.2,FBBCA,Accountancy,0911,Training Expenses,Resources
Blackpool Council,1066073,Blackpool Coastal Housing,499771,30001498,26/10/2018,988.01,164.67,FMAB,Commercial Propereties,1064,Delegated Maintenance,Resources
Blackpool Council,1114521,Therichworks.Co.Uk,499772,R1082,26/10/2018,8332.8,0,TRB,Maintenance & Works,4501,Private Contractors,Community & Env Services
Blackpool Council,1096607,Cutlers Property Consultancy (Services),499774,0070444,26/10/2018,4160,0,AEE,Estates,0781,Contracted,Resources
Blackpool Council,1103450,Blackpool Entertainment Company Limited,499786,INV003906,26/10/2018,3716,619.33,MUSIC,Music & Cultural Education,3801,Other Expenses,Children'S Services
Blackpool Council,1117059,Viv West Associates,499789,0125,26/10/2018,281.2,0,AHM,Arts Miscellaneous,0911,Training Expenses,Places
Blackpool Council,1089205,REDACTED PERSONAL DATA,499793,00000020,30/10/2018,300,0,AHG,Art Gallery Summary,3456,Payment To Artists,Places
Blackpool Council,1011868,W H Tarmacadam Limited,499800,7417,30/10/2018,13152,2192,TRB,Maintenance & Works,4501,Private Contractors,Community & Env Services
Blackpool Council,1114664,REDACTED PERSONAL DATA,499804,010,26/10/2018,1750,0,HS0005,Whole School Approach,0911,Training Expenses,Children'S Services
Blackpool Council,1069873,U-Save Ltd,499805,15307,29/10/2018,312,52,PBF,Communications,3806,Advertising-General,Chief Executive
Blackpool Council,1052187,The Arthington Guest House,499811,8636,29/10/2018,600,0,PJW,Management - Places - Illumina,1704,Bed & Breakfast Accomm.,Places
Blackpool Council,1030730,Springfield Methodist Church,499813,1018,29/10/2018,666.66,0,FC1802,Social Fund - Client,5209,Crisis/Emergency Support,Resources
Blackpool Council,1081237,The Speech Bubble Ltd,499854,TSBI-2305,26/10/2018,9460,0,HS0003,Headstart Commissioning,3401,General Services,Children'S Services
Blackpool Council,1006099,Blackpool Teaching Hospitals Nhs Ft,499855,1110039158,26/10/2018,13718,0,HS0003,Headstart Commissioning,3401,General Services,Children'S Services
Blackpool Council,1006099,Blackpool Teaching Hospitals Nhs Ft,499856,1110039481,26/10/2018,13718,0,HS0003,Headstart Commissioning,3401,General Services,Children'S Services
Blackpool Council,1006099,Blackpool Teaching Hospitals Nhs Ft,499857,1110040111,26/10/2018,13718,0,HS0003,Headstart Commissioning,3401,General Services,Children'S Services
Blackpool Council,1085092,Lancashire Mind Ltd,499858,527,26/10/2018,14759.33,0,HS0003,Headstart Commissioning,3401,General Services,Children'S Services
Blackpool Council,1085092,Lancashire Mind Ltd,499859,528,26/10/2018,14759.33,0,HS0003,Headstart Commissioning,3401,General Services,Children'S Services
Blackpool Council,1085092,Lancashire Mind Ltd,499860,529,26/10/2018,14759.33,0,HS0003,Headstart Commissioning,3401,General Services,Children'S Services
Blackpool Council,1117191,The Original Double Red Ltd T/A Kamara,499893,INV-20324,26/10/2018,738,123,TRB,Maintenance & Works,4501,Private Contractors,Community & Env Services
Blackpool Council,1018184,Blackpool Skip Hire,499897,009682,26/10/2018,456,76,ENGINE,Engineering,1012,Premises Maint-Priv.Contractor,Community & Env Services
Blackpool Council,1011714,Michael Hope Haulage Limited,499898,001365,26/10/2018,1920,320,SCHEME,Highways Schemes,1012,Premises Maint-Priv.Contractor,Community & Env Services
Blackpool Council,1112636,Robinson Low Francis Llp,499907,SIN050928,30/10/2018,9469.8,1578.3,PRKOP1,Parks Operational Manager  1,1012,Premises Maint-Priv.Contractor,Community & Env Services
Blackpool Council,1011970,A1 Streamline Road Markings Ltd,499912,3255,26/10/2018,708.48,118.08,TRA,Traffic Management,4501,Private Contractors,Community & Env Services
Blackpool Council,1011970,A1 Streamline Road Markings Ltd,499913,3253,26/10/2018,1511.14,251.86,TRA,Traffic Management,4501,Private Contractors,Community & Env Services
Blackpool Council,1011970,A1 Streamline Road Markings Ltd,499915,3259,26/10/2018,1335.16,222.52,TRA,Traffic Management,4501,Private Contractors,Community & Env Services
Blackpool Council,1008865,Intrak,499917,BBC/1409,26/10/2018,2400,400,PRB,Events,3006,Hire Of Equipment,Places
Blackpool Council,1006385,University Of Central Lancashire,499918,TUI225000003,26/10/2018,350,0,LM0420,Adults Training,0911,Training Expenses,Adult & Families
Blackpool Council,1011923,Rp Tyson Construction Ltd,499919,IN2475,26/10/2018,196555.65,0,CXC11,Site Development,6501,Contract Payments,Capital - Chief Executive
Blackpool Council,1011923,Rp Tyson Construction Ltd,499919,IN2475,26/10/2018,6079.04,0,ZH0001,Housing Revenue Account,97B6,Retention Monies - Cap Trsfr,Housing Revenue Account
Blackpool Council,1071702,Links Signs & Graphics Ltd,499920,LSGI25630,29/10/2018,971.4,161.9,PRG,Tourism General,3301,Printing,Places
Blackpool Council,1114521,Therichworks.Co.Uk,499925,R1083,29/10/2018,19546.4,0,TRB,Maintenance & Works,4501,Private Contractors,Community & Env Services
Blackpool Council,1103450,Blackpool Entertainment Company Limited,499926,INV003831,29/10/2018,10851,1808.5,TRB,Maintenance & Works,4501,Private Contractors,Community & Env Services
Blackpool Council,1011970,A1 Streamline Road Markings Ltd,499936,3257,29/10/2018,621.7,103.62,TRA,Traffic Management,4501,Private Contractors,Community & Env Services
Blackpool Council,1011970,A1 Streamline Road Markings Ltd,499937,3258,29/10/2018,1087.75,181.29,TRA,Traffic Management,4501,Private Contractors,Community & Env Services
Blackpool Council,1033894,Gl Education Group Limited,499939,SINV00192537,26/10/2018,28666.8,4777.8,OPAREA,Opportunity Areas,4515,Contract Services,Places
Blackpool Council,1083256,Community Lighting Partnership (Bpool) Ltd,499940,106,26/10/2018,503790.44,83965.07,FL1259,Pfi Management Costs,4501,Private Contractors,Community & Env Services
Blackpool Council,1115939,REDACTED PERSONAL DATA,499941,023,26/10/2018,3000,0,AHHBA,Blackpool Museum,3821,Research,Places
Blackpool Council,1011730,Metric Group Limited,500061,C48162,30/10/2018,13116.34,2186.06,PARADM,Parking Administration,3801,Other Expenses,Budgets Outside Cash Limits
Blackpool Council,1095986,Hawes Side Academy,500062,HSAI0033,30/10/2018,10489,0,OPAREA,Opportunity Areas,4515,Contract Services,Places
Blackpool Council,1006196,Prism Medical Uk,500122,5283854,30/10/2018,5085.6,0,CX4002,Disabled Facilities Grants,6501,Contract Payments,Capital - Adult Social Care
Blackpool Council,1006196,Prism Medical Uk,500123,5284997,30/10/2018,2193.62,0,CX4002,Disabled Facilities Grants,6501,Contract Payments,Capital - Adult Social Care
Blackpool Council,1006196,Prism Medical Uk,500132,5288099,30/10/2018,1095,0,CX4002,Disabled Facilities Grants,6501,Contract Payments,Capital - Adult Social Care
Blackpool Council,1114118,Medequip Assistive Technology Limited,500145,42897,30/10/2018,539.88,89.98,MTE,Undefined Age Group,3006,Hire Of Equipment,Adult & Families
Blackpool Council,1114118,Medequip Assistive Technology Limited,500146,42935,30/10/2018,556.6,92.77,MTE,Undefined Age Group,3006,Hire Of Equipment,Adult & Families
Blackpool Council,1114118,Medequip Assistive Technology Limited,500149,42937,30/10/2018,10107.14,1684.52,MTE,Undefined Age Group,3006,Hire Of Equipment,Adult & Families
Blackpool Council,1086714,Liveasy Ltd,500150,BK0436E,30/10/2018,6660,1110,MTE,Undefined Age Group,5401,Aids To Daily Living,Adult & Families
Blackpool Council,1114118,Medequip Assistive Technology Limited,500151,42933,30/10/2018,10701.07,1783.51,MTE,Undefined Age Group,3006,Hire Of Equipment,Adult & Families
Blackpool Council,1014009,Bri-Met,500152,00048049,30/10/2018,597.6,99.6,CEMCRE,Cems Crems Etc,1111,Cremators,Governance & Partnerships
Blackpool Council,1090902,Anderson & Sons Contracting & Turf Care,500156,212,30/10/2018,7288,0,TRB,Maintenance & Works,4501,Private Contractors,Community & Env Services
Blackpool Council,1102403,Bs Support Services Limited,500160,JUN01,30/10/2018,3960,660,VA0010,Vah Management & Admin,4501,Private Contractors,Children'S Services
Blackpool Council,1078418,Lisclare Limited,500170,SINV03084740,30/10/2018,1237.5,206.25,MTE,Undefined Age Group,5401,Aids To Daily Living,Adult & Families
Blackpool Council,1106471,Mayne Special Needs,500173,MSN-BES380,30/10/2018,300,0,MTE,Undefined Age Group,5401,Aids To Daily Living,Adult & Families
Blackpool Council,1042794,Carlton Fuels Limited,500246,1428558,31/10/2018,19767.05,0,ZF0001,"Insurance,Dso,Banking",9773,Orders Received Not Invoiced,Total Reconciliations
Blackpool Council,1042794,Carlton Fuels Limited,500246,1428558,31/10/2018,23720.46,3953.41,ZF0001,"Insurance,Dso,Banking",9511A,Stocks Efin,Total Reconciliations
Blackpool Council,1042794,Carlton Fuels Limited,500247,1357843,31/10/2018,19884.39,0,ZF0001,"Insurance,Dso,Banking",9773,Orders Received Not Invoiced,Total Reconciliations
Blackpool Council,1042794,Carlton Fuels Limited,500247,1357843,31/10/2018,23861.27,3976.88,ZF0001,"Insurance,Dso,Banking",9511A,Stocks Efin,Total Reconciliations
Blackpool Council,1042794,Carlton Fuels Limited,500248,1402595,31/10/2018,11023,0,ZF0001,"Insurance,Dso,Banking",9773,Orders Received Not Invoiced,Total Reconciliations
Blackpool Council,1042794,Carlton Fuels Limited,500248,1402595,31/10/2018,13227.6,2204.6,ZF0001,"Insurance,Dso,Banking",9511A,Stocks Efin,Total Reconciliations
Blackpool Council,1060054,River Recordings Ltd,500264,SI-248925,31/10/2018,591.3,98.55,MUSIC,Music & Cultural Education,3008,Educational Equipment,Children'S Services
Blackpool Council,1019557,Little Angels Nursery Sc,500284,KCHN0001,31/10/2018,307.5,0,ALEARN,Adult Learning,0917,Other Exps,Places
Blackpool Council,1010429,Blackburn With Darwen Bc,3932850,433070,12/10/2018,25000,0,FD0021,Subscriptions,3711,Subscriptions,Budgets Outside Cash Limits
Blackpool Council,1010450,New Thursby Nursing Home,3934293,188871,10/10/2018,1162.5,0,MVD,85+,7582,Indep Sect Residential Homes,Adult & Families
Blackpool Council,1010450,New Thursby Nursing Home,3934293,188871,10/10/2018,2057.76,0,MVD,85+,4506,Nursing Homes,Adult & Families
Blackpool Council,1010450,New Thursby Nursing Home,3934294,188927,10/10/2018,449.05,0,MVC,75-84,4505,Residential Homes,Adult & Families
Blackpool Council,1010450,New Thursby Nursing Home,3934295,188795,10/10/2018,2057.76,0,MVD,85+,4506,Nursing Homes,Adult & Families
Blackpool Council,1116649,Farashkam Ltd,3938365,00002,08/10/2018,1448.5,0,JDEAAA,Safeguarding Adults,4501,Private Contractors,Adult & Families
Blackpool Council,1007516,Phoenix Commercial Collections Ltd,3940602,102199,18/10/2018,12270.6,2045.13,FBBEA,"Income, Recovery & Debtors",3807,Legal & Court Costs,Resources
Blackpool Council,1105003,Socal Healthcare Ltd,3940954,0818-218-222,09/10/2018,883.19,0,JDEAAA,Safeguarding Adults,4501,Private Contractors,Adult & Families
Blackpool Council,1111328,Hadley Fraser Ltd,3940960,BLA072,08/10/2018,5468.76,911.46,JDEAAA,Safeguarding Adults,4501,Private Contractors,Adult & Families
Blackpool Council,1015654,Horton Automatics Ltd,3942033,4080865,09/10/2018,1020,170,CXB71,Hra Capital Programme 2018/19,6501,Contract Payments,Capital - Chief Executive
Blackpool Council,1007535,Pip (Play Inclusion Project),3942291,BAC155,02/10/2018,15510.2,0,CWAN,Children With Additional Needs,3801,Other Expenses,Children'S Services
Blackpool Council,1111078,Dr Y P Shukla,3944326,89,08/10/2018,381.5,0,JDEAAA,Safeguarding Adults,4501,Private Contractors,Adult & Families
Blackpool Council,1111078,Dr Y P Shukla,3944329,90,02/10/2018,719.35,0,JDEAAA,Safeguarding Adults,4501,Private Contractors,Adult & Families
Blackpool Council,1111078,Dr Y P Shukla,3944332,86,08/10/2018,731.5,0,JDEAAA,Safeguarding Adults,4501,Private Contractors,Adult & Families
Blackpool Council,1111078,Dr Y P Shukla,3944334,88,02/10/2018,552.45,0,JDEAAA,Safeguarding Adults,4501,Private Contractors,Adult & Families
Blackpool Council,1111078,Dr Y P Shukla,3944335,95,08/10/2018,567.3,0,JDEAAA,Safeguarding Adults,4501,Private Contractors,Adult & Families
Blackpool Council,1111078,Dr Y P Shukla,3944337,94,10/10/2018,578.35,0,JDEAAA,Safeguarding Adults,4501,Private Contractors,Adult & Families
Blackpool Council,1111078,Dr Y P Shukla,3944338,93,02/10/2018,911.9,0,JDEAAA,Safeguarding Adults,4501,Private Contractors,Adult & Families
Blackpool Council,1111078,Dr Y P Shukla,3944339,85,08/10/2018,729.7,0,JDEAAA,Safeguarding Adults,4501,Private Contractors,Adult & Families
Blackpool Council,1111078,Dr Y P Shukla,3944340,91,10/10/2018,712.6,0,JDEAAA,Safeguarding Adults,4501,Private Contractors,Adult & Families
Blackpool Council,1111078,Dr Y P Shukla,3944341,92,10/10/2018,904.7,0,JDEAAA,Safeguarding Adults,4501,Private Contractors,Adult & Families
Blackpool Council,1111078,Dr Y P Shukla,3944343,82,02/10/2018,901.1,0,JDEAAA,Safeguarding Adults,4501,Private Contractors,Adult & Families
Blackpool Council,1111078,Dr Y P Shukla,3944344,83,08/10/2018,736.45,0,JDEAAA,Safeguarding Adults,4501,Private Contractors,Adult & Families
Blackpool Council,1116649,Farashkam Ltd,3944355,00003,10/10/2018,2875.34,0,JDEAAA,Safeguarding Adults,4501,Private Contractors,Adult & Families
Blackpool Council,1116256,REDACTED PERSONAL DATA,3944819,CFK4WARDST/2,19/10/2018,1209,0,JEA,Senior Management,5551,Rent & Rent Bonds,Children'S Services
Blackpool Council,1006099,Blackpool Teaching Hospitals Nhs Ft,3944920,1110040410,08/10/2018,2982,0,SSDA,Social Services Direct,0781,Contracted,Adult & Families
Blackpool Council,1088102,Whistl Uk Limited,3944927,IN18US18006868,01/10/2018,3610.34,601.72,FCADA,Customer Services,3511,Postages,Resources
Blackpool Council,1111680,Shared Future Cic,3945002,INV-338,01/10/2018,10380,1730,PU1013,Public Health Misc,4501,Private Contractors,Public Health
Blackpool Council,1073098,Safenet,3945006,958,02/10/2018,13276.25,0,EP8005,Domestic Abuse Commissioning,3401,General Services,Children'S Services
Blackpool Council,1033516,Travelling By Tuba,3945100,FF71,04/10/2018,550,0,MUSIC,Music & Cultural Education,3801,Other Expenses,Children'S Services
Blackpool Council,1105003,Socal Healthcare Ltd,3945106,0818-227-231,08/10/2018,882.11,0,JDEAAA,Safeguarding Adults,4501,Private Contractors,Adult & Families
Blackpool Council,1007345,Mobile Mini Uk Limited,3945189,7000960828,03/10/2018,336.48,56.08,CEMCRE,Cems Crems Etc,1012,Premises Maint-Priv.Contractor,Governance & Partnerships
Blackpool Council,1007516,Phoenix Commercial Collections Ltd,3945768,102552,11/10/2018,3191.69,531.94,FBBEA,"Income, Recovery & Debtors",3807,Legal & Court Costs,Resources
Blackpool Council,1058510,Lifeline Language Services Ltd,3945817,1018206,10/10/2018,254.28,42.38,JDEAAA,Safeguarding Adults,4501,Private Contractors,Adult & Families
Blackpool Council,1103450,Blackpool Entertainment Company Limited,3945818,INV003812,22/10/2018,1040,173.33,AEB,Buildings,1301,Rent & Hire Of Premises,Resources
Blackpool Council,1011518,Tw Joinery & Fencing Contractors,3946073,2935,09/10/2018,1584,264,CXB71,Hra Capital Programme 2018/19,6501,Contract Payments,Capital - Chief Executive
Blackpool Council,1033987,Berrymans Lace Mawer Llp,3946166,V2390963\BLACOU,03/10/2018,1961,0,RK6004,Gallagher Bassett El,3807,Legal & Court Costs,Internal Insurance
Blackpool Council,1077392,Reed Specialist Recruitment Ltd,3947053,E0232942023C1,03/10/2018,957.98,159.67,ALDA,Learning Disability Team,0791,Temp/Relief (Bureau Staff),Adult & Families
Blackpool Council,1077392,Reed Specialist Recruitment Ltd,3947053,E0232942023C1,03/10/2018,507.75,84.63,HS0008,Headstart Admin & Support,0791,Temp/Relief (Bureau Staff),Children'S Services
Blackpool Council,1077392,Reed Specialist Recruitment Ltd,3947053,E0232942023C1,03/10/2018,1629.81,271.64,JA1531,Independent Reviewing Officers,0791,Temp/Relief (Bureau Staff),Children'S Services
Blackpool Council,1077392,Reed Specialist Recruitment Ltd,3947053,E0232942023C1,03/10/2018,4449.67,741.61,JAB,Locality,0791,Temp/Relief (Bureau Staff),Children'S Services
Blackpool Council,1077392,Reed Specialist Recruitment Ltd,3947053,E0232942023C1,03/10/2018,3304.17,550.7,JBT,Looked After Children,0791,Temp/Relief (Bureau Staff),Children'S Services
Blackpool Council,1077392,Reed Specialist Recruitment Ltd,3947053,E0232942023C1,03/10/2018,743.26,123.88,JEA,Senior Management,0791,Temp/Relief (Bureau Staff),Children'S Services
Blackpool Council,1077392,Reed Specialist Recruitment Ltd,3947053,E0232942023C1,03/10/2018,465.95,77.66,SSDA,Social Services Direct,0791,Temp/Relief (Bureau Staff),Adult & Families
Blackpool Council,1041219,Abelglass Trade Supplies Ltd,3947272,INV-1610,03/10/2018,500,83.33,CX4005,Care & Repair Grants,6502,Grants & Advances,Capital - Adult Social Care
Blackpool Council,1015654,Horton Automatics Ltd,3947273,4081589,03/10/2018,6160.8,1026.8,CXB71,Hra Capital Programme 2018/19,6501,Contract Payments,Capital - Chief Executive
Blackpool Council,1011995,Technical & Electrical Services Ltd,3947277,C 7398,03/10/2018,1895.17,315.86,CXB71,Hra Capital Programme 2018/19,6501,Contract Payments,Capital - Chief Executive
Blackpool Council,1010450,New Thursby Nursing Home,3948067,194324I,10/10/2018,2057.76,0,MVC,75-84,4506,Nursing Homes,Adult & Families
Blackpool Council,1010450,New Thursby Nursing Home,3948068,194027,10/10/2018,2057.76,0,MVD,85+,4506,Nursing Homes,Adult & Families
Blackpool Council,1010450,New Thursby Nursing Home,3948069,193574I,10/10/2018,21171.14,0,MVD,85+,7583,Indep Sect Nursing Homes,Adult & Families
Blackpool Council,1010450,New Thursby Nursing Home,3948069,193574I,10/10/2018,408.42,0,MVD,85+,4506,Nursing Homes,Adult & Families
Blackpool Council,1010450,New Thursby Nursing Home,3948070,194094I,10/10/2018,2057.76,0,MFC,75-84,4506,Nursing Homes,Adult & Families
Blackpool Council,1010450,New Thursby Nursing Home,3948072,193819I,10/10/2018,2057.76,0,MVC,75-84,4506,Nursing Homes,Adult & Families
Blackpool Council,1010450,New Thursby Nursing Home,3948074,194572I,10/10/2018,2057.76,0,MVD,85+,4506,Nursing Homes,Adult & Families
Blackpool Council,1115813,Bkr Cch Ltd - Carlton Care Home,3948675,194314,26/10/2018,2380,0,MVD,85+,4506,Nursing Homes,Adult & Families
Blackpool Council,1007020,Seddons (Plant & Engineers) Ltd,3948945,323134,03/10/2018,489.6,81.6,CVMU,Cvmu,3041,Other Materials,Community & Env Services
Blackpool Council,1033161,Lancaster Training Services Limited,3948974,18626,04/10/2018,1560,260,CVMU,Cvmu,3426,Course Fees,Community & Env Services
Blackpool Council,1073045,Bradley Environmental Consultants Ltd (Fac042,3949032,26542,11/10/2018,299.99,50,FMAK,Acquisitions 9/10,1012,Premises Maint-Priv.Contractor,Places
Blackpool Council,1094411,Fox Fire Security Limited,3949040,2497,10/10/2018,3552,592,CS01DH,A P S Capital Works,6501,Contract Payments,Capital - Adult Social Care
Blackpool Council,1105347,Horizon Specialist Contracting Ltd,3949041,S114601,05/10/2018,354,59,LBB,Central Library,1012,Premises Maint-Priv.Contractor,Places
Blackpool Council,1107694,Bradley Demolition Ltd,3949122,3692,03/10/2018,480,80,CXB71,Hra Capital Programme 2018/19,6501,Contract Payments,Capital - Chief Executive
Blackpool Council,1035659,Blackpool Zoo,3949334,0000005618,01/10/2018,573.24,95.54,NAB,Sure Start,3401,General Services,Children'S Services
Blackpool Council,1007023,Access Uk Ltd - Selima,3949336,604128,10/10/2018,27449.63,4574.94,FB0181,Payroll General,3532,Comp-Running & License Costs,Resources
Blackpool Council,1091610,Communicate Slt Cic,3949353,299,02/10/2018,17458,0,EP8002,Speech And Language,3801,Other Expenses,Children'S Services
Blackpool Council,1100468,Post Office Ltd,3949355,1000/90052270,10/10/2018,364.56,0,FC1802,Social Fund - Client,5209,Crisis/Emergency Support,Resources
Blackpool Council,1011973,Automatic Alarms Ltd,3949620,318694,04/10/2018,407.8,67.97,CEMCRE,Cems Crems Etc,1171,Alarms,Governance & Partnerships
Blackpool Council,1011973,Automatic Alarms Ltd,3949624,318664,04/10/2018,2716.25,452.71,AER,Dual Use Properties,1171,Alarms,Resources
Blackpool Council,1115181,Labform Limited,3949637,INV-0043,05/10/2018,14874,2479,AEZ,To Be Recharged,1012,Premises Maint-Priv.Contractor,Resources
Blackpool Council,1116350,M J Bradley Services Ltd,3949638,1175RFPBC,03/10/2018,27945.77,4657.63,CEBABS,N D Condition Funding 2017/18,6501,Contract Payments,Capital - Childrens
Blackpool Council,1011518,Tw Joinery & Fencing Contractors,3950957,2940,03/10/2018,1626,271,CXB71,Hra Capital Programme 2018/19,6501,Contract Payments,Capital - Chief Executive
Blackpool Council,1039034,Contract Floors Ltd,3950958,INV-0321,03/10/2018,1617.31,269.55,CXXXX,Hra Non Specific Contingency,6501,Contract Payments,Capital - Chief Executive
Blackpool Council,1048456,R T C,3950994,7261,03/10/2018,475.2,79.2,CXB71,Hra Capital Programme 2018/19,6501,Contract Payments,Capital - Chief Executive
Blackpool Council,1116884,Stephen Cheatley Photography,3950999,001,08/10/2018,413,0,PRC,Visitor Services,7201,Manufactured Goods/Produce,Places
Blackpool Council,1012269,Blackpool Model Village Limited,3951003,201804,02/10/2018,4192.16,0,ZX0501,"Tourism,Promotions & Conferen.",968B,Resort Pass,Place Directorate
Blackpool Council,1005071,Blackpool Transport Services Limited,3951007,I0000784,08/10/2018,2336,0,ZX0501,"Tourism,Promotions & Conferen.",9687,Tourism Sale Of Tickets,Place Directorate
Blackpool Council,1005067,Blackpool Pleasure Beach Ltd,3951010,18220,08/10/2018,684.1,114.02,ZX0501,"Tourism,Promotions & Conferen.",9687,Tourism Sale Of Tickets,Place Directorate
Blackpool Council,1005067,Blackpool Pleasure Beach Ltd,3951011,18221,08/10/2018,669.5,111.58,ZX0501,"Tourism,Promotions & Conferen.",9687,Tourism Sale Of Tickets,Place Directorate
Blackpool Council,1058510,Lifeline Language Services Ltd,3951186,1118119,03/10/2018,648,108,JEA,Senior Management,3419,Interpreters Fees,Children'S Services
Blackpool Council,1033987,Berrymans Lace Mawer Llp,3951199,2412982,10/10/2018,1965,327.5,MHA,Older People ( U65) With Ld,3807,Legal & Court Costs,Adult & Families
Blackpool Council,1100221,Forensic Testing Service Ltd,3951219,30754,03/10/2018,573.78,95.63,JEA,Senior Management,3807,Legal & Court Costs,Children'S Services
Blackpool Council,1105784,Dr Karen Shannon Associates,3951482,2073,03/10/2018,940,156.67,JEA,Senior Management,3807,Legal & Court Costs,Children'S Services
Blackpool Council,1011995,Technical & Electrical Services Ltd,3951532,M 17520,03/10/2018,276,46,CXB71,Hra Capital Programme 2018/19,6501,Contract Payments,Capital - Chief Executive
Blackpool Council,1011995,Technical & Electrical Services Ltd,3951533,CAP17542,03/10/2018,321.36,53.56,CXB71,Hra Capital Programme 2018/19,6501,Contract Payments,Capital - Chief Executive
Blackpool Council,1011995,Technical & Electrical Services Ltd,3951536,CAP17541,31/10/2018,321.36,53.56,CXB71,Hra Capital Programme 2018/19,6501,Contract Payments,Capital - Chief Executive
Blackpool Council,1006238,Walton Summit Truck Centre Ltd,3951664,30207521,12/10/2018,779.14,129.86,CVMU,Cvmu,3041,Other Materials,Community & Env Services
Blackpool Council,1029067,Johnston Sweepers Limited,3951706,61657703,04/10/2018,469.29,78.22,CVMU,Cvmu,3041,Other Materials,Community & Env Services
Blackpool Council,1047310,Teletrac Navman (Uk) Ltd,3951719,91410748,31/10/2018,9096.12,1516.02,CVMU,Cvmu,4501,Private Contractors,Community & Env Services
Blackpool Council,1080720,Shb Hire Ltd,3951721,10999987,17/10/2018,252,42,CVMU,Cvmu,2211,Casual Hire,Community & Env Services
Blackpool Council,1086077,Gullivers Truck Hire Limited,3951723,1809/51263,17/10/2018,282.6,47.1,CVMU,Cvmu,2211,Casual Hire,Community & Env Services
Blackpool Council,1101279,Greenpass Training,3951729,140901,12/10/2018,925,0,CVMU,Cvmu,3426,Course Fees,Community & Env Services
Blackpool Council,1115147,REDACTED PERSONAL DATA,3952084,196187,11/10/2018,255,0,JBR,Lac - Placements,4832,Carer Level 2,Children'S Services
Blackpool Council,1115147,REDACTED PERSONAL DATA,3952084,196187,11/10/2018,381,0,JBR,Lac - Placements,4801,Gen (Ie Wkly Basic),Children'S Services
Blackpool Council,1034533,Richmond Fellowship,3952111,SI/00022509,19/10/2018,12309.5,0,MFA,Adults Under 65 With Mh,4512,Other Care Block Payments,Adult & Families
Blackpool Council,1034533,Richmond Fellowship,3952114,SI/00021213,19/10/2018,12309.5,0,MFA,Adults Under 65 With Mh,4512,Other Care Block Payments,Adult & Families
Blackpool Council,1034533,Richmond Fellowship,3952115,SI/00021210,19/10/2018,12309.5,0,MFA,Adults Under 65 With Mh,4512,Other Care Block Payments,Adult & Families
Blackpool Council,1005071,Blackpool Transport Services Limited,3952116,I0000816,08/10/2018,9765.6,0,ZX0501,"Tourism,Promotions & Conferen.",9687,Tourism Sale Of Tickets,Place Directorate
Blackpool Council,1105960,Association Of Independent Lscb Chairs Ltd,3952123,964,04/10/2018,290,0,JA1521,Lscb (Acpc),0915,Conferences,Children'S Services
Blackpool Council,1066073,Blackpool Coastal Housing,3952126,30001460,02/10/2018,309.73,51.62,EP8005,Domestic Abuse Commissioning,3401,General Services,Children'S Services
Blackpool Council,1102294,Pure Promoter Ltd T/A Pure 360,3952130,229074,12/10/2018,1800,300,PRJAAA,Website Team,3535,Website Costs,Places
Blackpool Council,1105003,Socal Healthcare Ltd,3952132,0918-004-005,08/10/2018,352.7,0,JDEAAA,Safeguarding Adults,4501,Private Contractors,Adult & Families
Blackpool Council,1007516,Phoenix Commercial Collections Ltd,3952134,102713,12/10/2018,8978.52,1496.43,FBBEA,"Income, Recovery & Debtors",3807,Legal & Court Costs,Resources
Blackpool Council,1007516,Phoenix Commercial Collections Ltd,3952135,102714,12/10/2018,1541.74,256.96,FBBEA,"Income, Recovery & Debtors",3807,Legal & Court Costs,Resources
Blackpool Council,1007516,Phoenix Commercial Collections Ltd,3952179,102715,12/10/2018,1986.58,331.1,FV6705,Phoenix Commercial Collection,7366,Car Parking Fees,Budgets Outside Cash Limits
Blackpool Council,1007516,Phoenix Commercial Collections Ltd,3952180,102553,05/10/2018,3857.96,642.99,FV6705,Phoenix Commercial Collection,7366,Car Parking Fees,Budgets Outside Cash Limits
Blackpool Council,1116919,Nurse Plus (Uk) Ltd,3952182,00699138,01/10/2018,302.4,0,MVC,75-84,4509,Other Care,Adult & Families
Blackpool Council,1020550,Hays Specialist Recruitment Ltd,3952523,1008956160,18/10/2018,504,84,CWAN,Children With Additional Needs,4403,Special Needs - Children,Children'S Services
Blackpool Council,1007516,Phoenix Commercial Collections Ltd,3952531,102551,05/10/2018,13957.75,2326.3,FBBEA,"Income, Recovery & Debtors",3807,Legal & Court Costs,Resources
Blackpool Council,1111328,Hadley Fraser Ltd,3952532,BLA073,16/10/2018,6455.28,1075.88,JDEAAA,Safeguarding Adults,4501,Private Contractors,Adult & Families
Blackpool Council,1105003,Socal Healthcare Ltd,3952534,0918-011-012,02/10/2018,350.45,0,JDEAAA,Safeguarding Adults,4501,Private Contractors,Adult & Families
Blackpool Council,1105003,Socal Healthcare Ltd,3952535,0918-006-010,02/10/2018,881.39,0,JDEAAA,Safeguarding Adults,4501,Private Contractors,Adult & Families
Blackpool Council,1116649,Farashkam Ltd,3952536,00004,16/10/2018,929.65,0,JDEAAA,Safeguarding Adults,4501,Private Contractors,Adult & Families
Blackpool Council,1011702,J & J Decorating Services,3952560,86955,05/10/2018,2994,499,AEB,Buildings,1012,Premises Maint-Priv.Contractor,Resources
Blackpool Council,1042515,Geze Uk Ltd,3952600,88377377,10/10/2018,485.29,80.88,AER,Dual Use Properties,1012,Premises Maint-Priv.Contractor,Resources
Blackpool Council,1075175,Waterman Environmental Services Limited,3952638,9161,05/10/2018,405.6,67.6,PYGA,Selective Licensing,1012,Premises Maint-Priv.Contractor,Community & Env Services
Blackpool Council,1105347,Horizon Specialist Contracting Ltd,3952663,S114598,05/10/2018,1286.4,214.4,AEB,Buildings,1012,Premises Maint-Priv.Contractor,Resources
Blackpool Council,1112954,Pk Controls Ltd,3952664,8284,12/10/2018,558,93,AER,Dual Use Properties,1012,Premises Maint-Priv.Contractor,Resources
Blackpool Council,1115181,Labform Limited,3952666,INV-0061,05/10/2018,5949.6,991.6,AEZ,To Be Recharged,1012,Premises Maint-Priv.Contractor,Resources
Blackpool Council,1094872,West Park Kindergarten (Nursery Grants Only),3952715,004WELSH,01/10/2018,511.8,0,CWAN,Children With Additional Needs,4403,Special Needs - Children,Children'S Services
Blackpool Council,1094872,West Park Kindergarten (Nursery Grants Only),3952716,003WELSH,01/10/2018,639.75,0,CWAN,Children With Additional Needs,4403,Special Needs - Children,Children'S Services
Blackpool Council,1011702,J & J Decorating Services,3952910,7781,03/10/2018,2640,440,PTA,Economic Development,1012,Premises Maint-Priv.Contractor,Places
Blackpool Council,1087305,Ellis & York Ltd,3952961,4477,01/10/2018,953.35,158.89,PAROPE,Parking Operational,1012,Premises Maint-Priv.Contractor,Budgets Outside Cash Limits
Blackpool Council,1094411,Fox Fire Security Limited,3952982,2489,10/10/2018,463.2,77.2,AEB,Buildings,1012,Premises Maint-Priv.Contractor,Resources
Blackpool Council,1115078,The Acorns School 08147,3953470,PCSS 003,12/10/2018,2465,0,CWAN,Children With Additional Needs,4101,Other Local Authorities,Children'S Services
Blackpool Council,1087549,Merlin Entertainments (Blackpool) Ltd,3953475,BC-S06089,08/10/2018,14656.18,2442.7,ZX0501,"Tourism,Promotions & Conferen.",9687,Tourism Sale Of Tickets,Place Directorate
Blackpool Council,1087305,Ellis & York Ltd,3953498,4480,01/10/2018,1403.47,233.91,AEV,Vacant & Under Used,1012,Premises Maint-Priv.Contractor,Resources
Blackpool Council,1114796,Mann Williams,3953509,12033,04/10/2018,3270,545,AEZ,To Be Recharged,1012,Premises Maint-Priv.Contractor,Resources
Blackpool Council,1103168,Firefly Energi Ltd,3953690,SI-1945,17/10/2018,651.25,0,CX4024,Winter Warmth Grant,6502,Grants & Advances,Capital - Adult Social Care
Blackpool Council,1041219,Abelglass Trade Supplies Ltd,3953701,INV-1294,03/10/2018,1118.4,186.4,CXB71,Hra Capital Programme 2018/19,6501,Contract Payments,Capital - Chief Executive
Blackpool Council,1011675,Bambers Remedial Contractors Limited,3953702,15267,03/10/2018,708,118,CXB71,Hra Capital Programme 2018/19,6501,Contract Payments,Capital - Chief Executive
Blackpool Council,1011675,Bambers Remedial Contractors Limited,3953703,15265,03/10/2018,468,78,CXB71,Hra Capital Programme 2018/19,6501,Contract Payments,Capital - Chief Executive
Blackpool Council,1011675,Bambers Remedial Contractors Limited,3953704,15266,03/10/2018,468,78,CXB71,Hra Capital Programme 2018/19,6501,Contract Payments,Capital - Chief Executive
Blackpool Council,1013324,Simmons Construction,3953708,BEAN190618,03/10/2018,20101.2,3350.2,CXB71,Hra Capital Programme 2018/19,6501,Contract Payments,Capital - Chief Executive
Blackpool Council,1013324,Simmons Construction,3953709,BUXT190618,03/10/2018,33231.6,5538.6,CXB71,Hra Capital Programme 2018/19,6501,Contract Payments,Capital - Chief Executive
Blackpool Council,1011518,Tw Joinery & Fencing Contractors,3953711,2943,03/10/2018,5226,871,CXB71,Hra Capital Programme 2018/19,6501,Contract Payments,Capital - Chief Executive
Blackpool Council,1006238,Walton Summit Truck Centre Ltd,3954728,35078119,12/10/2018,1546.57,257.76,CVMU,Cvmu,4501,Private Contractors,Community & Env Services
Blackpool Council,1006351,Versalift Distributors (Uk) Ltd,3954730,INV484882,12/10/2018,494.1,82.35,CVMU,Cvmu,4501,Private Contractors,Community & Env Services
Blackpool Council,1007101,Safety-Kleen Uk Ltd,3954732,P1201950,10/10/2018,270.32,45.05,CVMU,Cvmu,3001,Office Equipment Purchase,Community & Env Services
Blackpool Council,1008450,Lawrence Vehicles Ltd T/A Lancashire Daf,3954734,1572438,19/10/2018,327.12,54.52,CVMU,Cvmu,3041,Other Materials,Community & Env Services
Blackpool Council,1029067,Johnston Sweepers Limited,3954760,61662684,19/10/2018,363.54,60.59,CVMU,Cvmu,3041,Other Materials,Community & Env Services
Blackpool Council,1029067,Johnston Sweepers Limited,3954761,61662685,19/10/2018,272.28,45.38,CVMU,Cvmu,3041,Other Materials,Community & Env Services
Blackpool Council,1029067,Johnston Sweepers Limited,3954764,61661931,17/10/2018,469.28,78.21,CVMU,Cvmu,3041,Other Materials,Community & Env Services
Blackpool Council,1031308,Atlas Cranes Uk Limited,3954766,21120269,12/10/2018,563.81,93.97,CVMU,Cvmu,4501,Private Contractors,Community & Env Services
Blackpool Council,1107730,Lynch Truck Services Ltd,3954782,CI004473,19/10/2018,1255.1,209.18,CVMU,Cvmu,3041,Other Materials,Community & Env Services
Blackpool Council,1114963,Goodwins Paint & Body Shop Ltd,3954784,A1801250,18/10/2018,336,56,CVMU,Cvmu,4501,Private Contractors,Community & Env Services
Blackpool Council,1011779,Northern Security National Limited,3954827,22500,03/10/2018,774.9,129.15,SECURE,Security Services,3401,General Services,Community & Env Services
Blackpool Council,1011779,Northern Security National Limited,3954828,22501,03/10/2018,1722,287,SECURE,Security Services,3401,General Services,Community & Env Services
Blackpool Council,1011779,Northern Security National Limited,3954830,22503,03/10/2018,387.46,64.58,SECURE,Security Services,3401,General Services,Community & Env Services
Blackpool Council,1011779,Northern Security National Limited,3954831,22504,03/10/2018,516.6,86.1,SECURE,Security Services,3401,General Services,Community & Env Services
Blackpool Council,1011779,Northern Security National Limited,3954833,22578,03/10/2018,904.06,150.68,SECURE,Security Services,3401,General Services,Community & Env Services
Blackpool Council,1011779,Northern Security National Limited,3954839,22580,03/10/2018,787.2,131.2,SECURE,Security Services,3401,General Services,Community & Env Services
Blackpool Council,1011779,Northern Security National Limited,3954841,22581,03/10/2018,836.4,139.4,SECURE,Security Services,3401,General Services,Community & Env Services
Blackpool Council,1011779,Northern Security National Limited,3954847,22583,03/10/2018,442.8,73.8,SECURE,Security Services,3401,General Services,Community & Env Services
Blackpool Council,1115450,The Osborne House,3954868,12,01/10/2018,1920,320,HOPB,Housing Options,1704,Bed & Breakfast Accomm.,Chief Executive
Blackpool Council,1113364,New Odyssey Hotel,3954873,18,01/10/2018,1100,0,HOPB,Housing Options,1704,Bed & Breakfast Accomm.,Chief Executive
Blackpool Council,1009209,Gemini Blinds,3954878,747 & 655,01/10/2018,3047.15,507.86,AEB,Buildings,1012,Premises Maint-Priv.Contractor,Resources
Blackpool Council,1075175,Waterman Environmental Services Limited,3954907,9160,03/10/2018,1305.98,217.66,AEB,Buildings,1012,Premises Maint-Priv.Contractor,Resources
Blackpool Council,1087305,Ellis & York Ltd,3954911,4488,04/10/2018,510,85,AEB,Buildings,1012,Premises Maint-Priv.Contractor,Resources
Blackpool Council,1094411,Fox Fire Security Limited,3954917,2490,05/10/2018,1656,276,AEB,Buildings,1012,Premises Maint-Priv.Contractor,Resources
Blackpool Council,1032062,REDACTED PERSONAL DATA,3954926,104,01/10/2018,450,0,HOPB,Housing Options,1704,Bed & Breakfast Accomm.,Chief Executive
Blackpool Council,1032062,REDACTED PERSONAL DATA,3954930,103,02/10/2018,475,0,HOPB,Housing Options,1704,Bed & Breakfast Accomm.,Chief Executive
Blackpool Council,1105889,3d Environmental Limited,3954934,BPCASC-0004,01/10/2018,1075.94,179.32,MXA,18-64,4501,Private Contractors,Adult & Families
Blackpool Council,1007321,R.S.P. Ltd,3954935,000000315125,02/10/2018,2556.65,0,EM2001,Administration Team,2302,Rail Fares,Children'S Services
Blackpool Council,1103692,Calico Enterprise Limited,3954937,SINV20/00000594,02/10/2018,3480,580,FC1802,Social Fund - Client,5210,Community Care Support,Resources
Blackpool Council,1103692,Calico Enterprise Limited,3954938,SINV20/00000593,02/10/2018,1080,180,FC1802,Social Fund - Client,5210,Community Care Support,Resources
Blackpool Council,1005102,Sandcastle Waterpark - Boc Ltd,3954941,7434,08/10/2018,1262.88,210.48,ZX0501,"Tourism,Promotions & Conferen.",9687,Tourism Sale Of Tickets,Place Directorate
Blackpool Council,1077392,Reed Specialist Recruitment Ltd,3954942,E020752685M,03/10/2018,1222.25,203.71,ALDA,Learning Disability Team,0791,Temp/Relief (Bureau Staff),Adult & Families
Blackpool Council,1077392,Reed Specialist Recruitment Ltd,3954942,E020752685M,03/10/2018,636.8,106.13,HS0008,Headstart Admin & Support,0791,Temp/Relief (Bureau Staff),Children'S Services
Blackpool Council,1077392,Reed Specialist Recruitment Ltd,3954942,E020752685M,03/10/2018,2345.89,390.98,JA1531,Independent Reviewing Officers,0791,Temp/Relief (Bureau Staff),Children'S Services
Blackpool Council,1077392,Reed Specialist Recruitment Ltd,3954942,E020752685M,03/10/2018,8087.85,1347.98,JAB,Locality,0791,Temp/Relief (Bureau Staff),Children'S Services
Blackpool Council,1077392,Reed Specialist Recruitment Ltd,3954942,E020752685M,03/10/2018,2842.32,473.72,JBT,Looked After Children,0791,Temp/Relief (Bureau Staff),Children'S Services
Blackpool Council,1077392,Reed Specialist Recruitment Ltd,3954942,E020752685M,03/10/2018,1222.25,203.71,JEA,Senior Management,0791,Temp/Relief (Bureau Staff),Children'S Services
Blackpool Council,1077392,Reed Specialist Recruitment Ltd,3954942,E020752685M,03/10/2018,1878.35,313.06,SSDA,Social Services Direct,0791,Temp/Relief (Bureau Staff),Adult & Families
Blackpool Council,1077392,Reed Specialist Recruitment Ltd,3954942,E020752685M,03/10/2018,3614.79,602.46,VA0010,Vah Management & Admin,0791,Temp/Relief (Bureau Staff),Children'S Services
Blackpool Council,1115971,Bernard Taylor Partnership Ltd,3955031,7484,01/10/2018,3600,600,PBC,Strategy Team,4004,Management Fees,Chief Executive
Blackpool Council,1110907,Royal College Of Physicians,3955102,INV025090,04/10/2018,1440,240,FK0013,Corporate Health,0911,Training Expenses,Chief Executive
Blackpool Council,1102434,Inform Cpi Limited,3955104,AL57359,03/10/2018,9906,1651,FC2011,Nndr Collection Costs,3401,General Services,Budgets Outside Cash Limits
Blackpool Council,1032039,Addaction,3955106,SIN007812,22/10/2018,500,0,COMSAF,Community Safety,3401,General Services,Public Health
Blackpool Council,1093809,William Drain T/A The Music Man,3955107,1837,17/10/2018,471.96,0,MUSIC,Music & Cultural Education,3008,Educational Equipment,Children'S Services
Blackpool Council,1009824,Acorn Care & Education Ltd,3955108,22676,19/10/2018,11286.66,0,CWAN,Children With Additional Needs,4501,Private Contractors,Children'S Services
Blackpool Council,1009824,Acorn Care & Education Ltd,3955109,22677,19/10/2018,11286.66,0,CWAN,Children With Additional Needs,4501,Private Contractors,Children'S Services
Blackpool Council,1110952,Mereside Primary Academy,3955111,ICAUTUMN2018,10/10/2018,526,0,CWAN,Children With Additional Needs,4403,Special Needs - Children,Children'S Services
Blackpool Council,1071918,St Cuthberts Catholic Academy,3955112,LRJULY18-DEC18,10/10/2018,3962.52,0,CWAN,Children With Additional Needs,4403,Special Needs - Children,Children'S Services
Blackpool Council,1035614,Marton Academy,3955113,JROCT-DEC2018,10/10/2018,526,0,CWAN,Children With Additional Needs,4403,Special Needs - Children,Children'S Services
Blackpool Council,1116768,Wrea Green Pre-School Nursery,3955114,TR HNFAUTUMN18,01/10/2018,2755.73,0,CWAN,Children With Additional Needs,4403,Special Needs - Children,Children'S Services
Blackpool Council,1087953,Blackpool Local Education Partnership Ltd,3955116,SI10026,16/10/2018,263088.97,43848.16,CEAMED,New Pupil Plcs - Prmry 2016-17,6501,Contract Payments,Capital - Childrens
Blackpool Council,1035659,Blackpool Zoo,3955121,0000005629,02/10/2018,13752.01,2292,ZX0501,"Tourism,Promotions & Conferen.",968B,Resort Pass,Place Directorate
Blackpool Council,1035659,Blackpool Zoo,3955122,0000005609,02/10/2018,15874.67,2645.78,ZX0501,"Tourism,Promotions & Conferen.",968B,Resort Pass,Place Directorate
Blackpool Council,1035659,Blackpool Zoo,3955123,0000005608,02/10/2018,6870.97,1145.16,ZX0501,"Tourism,Promotions & Conferen.",968B,Resort Pass,Place Directorate
Blackpool Council,1009824,Acorn Care & Education Ltd,3955126,21449,08/10/2018,10956.66,0,CWAN,Children With Additional Needs,4501,Private Contractors,Children'S Services
Blackpool Council,1084496,Acorn Treatment & Housing,3955131,SINV80/00000376,02/10/2018,1485,0,MPA,18-64,4563,Priv-Stc Carers-Residential,Adult & Families
Blackpool Council,1115557,Tracey Carysforth,3955139,07,03/10/2018,4258.95,0,CX4002,Disabled Facilities Grants,6506,Consultants Fees,Capital - Adult Social Care
Blackpool Council,1032438,Electoral Reform Services,3956096,ERS1802058,01/10/2018,15236.48,2539.41,BGA,Electoral Services,3301,Printing,Governance & Partnerships
Blackpool Council,1109526,Dizions Ltd,3956098,5061,12/10/2018,432,72,CWAN,Children With Additional Needs,0911,Training Expenses,Children'S Services
Blackpool Council,1065958,Lytham Church Of England Primary,3956102,0018-2,10/10/2018,3048.73,0,CWAN,Children With Additional Needs,3801,Other Expenses,Children'S Services
Blackpool Council,1103450,Blackpool Entertainment Company Limited,3956103,INV003826,10/10/2018,2052,342,CWAN,Children With Additional Needs,0911,Training Expenses,Children'S Services
Blackpool Council,1005067,Blackpool Pleasure Beach Ltd,3956104,18274,02/10/2018,10222.66,1703.78,ZX0501,"Tourism,Promotions & Conferen.",968B,Resort Pass,Place Directorate
Blackpool Council,1116977,St Annes Kennels & Cattery,3956105,1282,01/10/2018,322,0,MVB,65-74,4502,Dog Kennelling Contractor,Adult & Families
Blackpool Council,1103692,Calico Enterprise Limited,3956107,SINV20/00000614,04/10/2018,4776,796,FC1802,Social Fund - Client,5210,Community Care Support,Resources
Blackpool Council,1077963,Electricity Northwest Ltd,3956109,5500131099,19/10/2018,12985.04,2164.17,FB0004,Energy & Sustainability,1202,Electricity,Resources
Blackpool Council,1035659,Blackpool Zoo,3956110,0000005671,09/10/2018,6980.35,1163.39,ZX0501,"Tourism,Promotions & Conferen.",9687,Tourism Sale Of Tickets,Place Directorate
Blackpool Council,1093809,William Drain T/A The Music Man,3956112,1838,17/10/2018,1008,0,MUSIC,Music & Cultural Education,3008,Educational Equipment,Children'S Services
Blackpool Council,1011702,J & J Decorating Services,3956151,7788,24/10/2018,432,72,AEB,Buildings,1012,Premises Maint-Priv.Contractor,Resources
Blackpool Council,1073045,Bradley Environmental Consultants Ltd (Fac042,3956163,26999,25/10/2018,300,50,FMAA,Retail Units,1012,Premises Maint-Priv.Contractor,Resources
Blackpool Council,1087305,Ellis & York Ltd,3956184,4513,05/10/2018,1567.84,261.31,AEB,Buildings,1012,Premises Maint-Priv.Contractor,Resources
Blackpool Council,1103450,Blackpool Entertainment Company Limited,3956244,INV003816,22/10/2018,345.3,57.55,FMAK,Acquisitions 9/10,1301,Rent & Hire Of Premises,Places
Blackpool Council,1079435,REDACTED PERSONAL DATA,3956246,DT18918BPL,18/10/2018,640,0,JA1521,Lscb (Acpc),0911,Training Expenses,Children'S Services
Blackpool Council,1095113,Pearce Clinical Psychology Services Ltd,3956247,839,08/10/2018,264,0,APBBAC,Gloucester Ave,0992,Medical Fees (Employee),Adult & Families
Blackpool Council,1095113,Pearce Clinical Psychology Services Ltd,3956247,839,08/10/2018,352,0,EDDIV,Education Diversity,0992,Medical Fees (Employee),Children'S Services
Blackpool Council,1095113,Pearce Clinical Psychology Services Ltd,3956247,839,08/10/2018,352,0,JBT,Looked After Children,0992,Medical Fees (Employee),Children'S Services
Blackpool Council,1095113,Pearce Clinical Psychology Services Ltd,3956247,839,08/10/2018,264,0,PARADM,Parking Administration,0992,Medical Fees (Employee),Budgets Outside Cash Limits
Blackpool Council,1006202,I Care Gb Limited,3956252,BPLEX/0909,19/10/2018,6171.98,0,MVB,65-74,4512,Other Care Block Payments,Adult & Families
Blackpool Council,1032151,Holgate House Ltd,3956258,5273,02/10/2018,1020.75,0,MPA,18-64,4563,Priv-Stc Carers-Residential,Adult & Families
Blackpool Council,1087805,Blackpool Fc Community Trust,3956259,BFCCT945,04/10/2018,33000,0,PUBH12,Physical Activity - Children,4501,Private Contractors,Public Health
Blackpool Council,1097031,Appletons Trading Solutions Ltd (Als),3956260,0293,02/10/2018,17666.67,0,CWAN,Children With Additional Needs,3801,Other Expenses,Children'S Services
Blackpool Council,1006202,I Care Gb Limited,3956261,BPLEX/1609,19/10/2018,6171.98,0,MVB,65-74,4512,Other Care Block Payments,Adult & Families
Blackpool Council,1007516,Phoenix Commercial Collections Ltd,3956262,102824,19/10/2018,1242.13,207.03,FBBEA,"Income, Recovery & Debtors",3807,Legal & Court Costs,Resources
Blackpool Council,1049385,Fylde Coast Ymca,3956268,9901,02/10/2018,833.33,0,PU1013,Public Health Misc,4501,Private Contractors,Public Health
Blackpool Council,1058579,Jcb Finance Ltd,3956275,00073080,02/10/2018,3387.23,564.54,CVMU,Cvmu,2221,Operating Leases,Community & Env Services
Blackpool Council,1103069,Nicki Da Costa,3956277,54,02/10/2018,600,0,PU2051,Ph Pcc Funding,4501,Private Contractors,Public Health
Blackpool Council,1103450,Blackpool Entertainment Company Limited,3956279,INV003749,05/10/2018,500,83.33,PU0001,Public Health Team,4501,Private Contractors,Public Health
Blackpool Council,1097689,Cais Ltd,3956282,5898,02/10/2018,2500,0,PU2037,Inpatient Detox,4501,Private Contractors,Public Health
Blackpool Council,1007467,Premier Paper Group Ltd,3956476,9429212,03/10/2018,427.75,71.29,PRINTS,Corporate Print Services,3344,Paper,Places
Blackpool Council,1007467,Premier Paper Group Ltd,3956478,9444311,11/10/2018,375.58,62.6,PRINTS,Corporate Print Services,3344,Paper,Places
Blackpool Council,1021393,Antalis Ltd T/A Antalis Document Supplies,3956484,7977890,03/10/2018,258.91,43.15,PRINTS,Corporate Print Services,3345,Print Stocks,Places
Blackpool Council,1046723,Brightprint (Fac008 Payment Only),3956486,26802,01/10/2018,360,60,PRINTS,Corporate Print Services,3408,Services To Clients,Places
Blackpool Council,1046723,Brightprint (Fac008 Payment Only),3956487,26845,01/10/2018,465,0,PRINTS,Corporate Print Services,3408,Services To Clients,Places
Blackpool Council,1046723,Brightprint (Fac008 Payment Only),3956488,26846,01/10/2018,297,0,PRINTS,Corporate Print Services,3408,Services To Clients,Places
Blackpool Council,1085898,Jeff Hughes Ltd,3956491,4567,01/10/2018,332.52,55.42,PRINTS,Corporate Print Services,3001,Office Equipment Purchase,Places
Blackpool Council,1090804,Getty Images International,3956492,3848196,01/10/2018,317,0,PRINTS,Corporate Print Services,3345,Print Stocks,Places
Blackpool Council,1116521,Helloprint United Kingdom B.V.,3956501,1191389,01/10/2018,516.95,0,PRINTS,Corporate Print Services,3408,Services To Clients,Places
Blackpool Council,1023510,Chrystal Consulting Ltd,3956502,50611,02/10/2018,1523.03,253.84,CVMU,Cvmu,2221,Operating Leases,Community & Env Services
Blackpool Council,1020550,Hays Specialist Recruitment Ltd,3956503,1008969309,18/10/2018,504,84,CWAN,Children With Additional Needs,4403,Special Needs - Children,Children'S Services
Blackpool Council,1006225,Wilko Retail Limited,3956504,SHO0095032,19/10/2018,5415.76,902.63,FB0004,Energy & Sustainability,1202,Electricity,Resources
Blackpool Council,1077392,Reed Specialist Recruitment Ltd,3956507,E020754027M,18/10/2018,1222.25,203.71,ALDA,Learning Disability Team,0791,Temp/Relief (Bureau Staff),Adult & Families
Blackpool Council,1077392,Reed Specialist Recruitment Ltd,3956507,E020754027M,18/10/2018,593.79,98.97,HS0008,Headstart Admin & Support,0791,Temp/Relief (Bureau Staff),Children'S Services
Blackpool Council,1077392,Reed Specialist Recruitment Ltd,3956507,E020754027M,18/10/2018,899.28,149.88,JA1531,Independent Reviewing Officers,0791,Temp/Relief (Bureau Staff),Children'S Services
Blackpool Council,1077392,Reed Specialist Recruitment Ltd,3956507,E020754027M,18/10/2018,5205.03,867.51,JAB,Locality,0791,Temp/Relief (Bureau Staff),Children'S Services
Blackpool Council,1077392,Reed Specialist Recruitment Ltd,3956507,E020754027M,18/10/2018,2842.32,473.72,JBT,Looked After Children,0791,Temp/Relief (Bureau Staff),Children'S Services
Blackpool Council,1077392,Reed Specialist Recruitment Ltd,3956507,E020754027M,18/10/2018,1222.25,203.71,JEA,Senior Management,0791,Temp/Relief (Bureau Staff),Children'S Services
Blackpool Council,1077392,Reed Specialist Recruitment Ltd,3956507,E020754027M,18/10/2018,902.77,150.46,SSDA,Social Services Direct,0791,Temp/Relief (Bureau Staff),Adult & Families
Blackpool Council,1077392,Reed Specialist Recruitment Ltd,3956507,E020754027M,18/10/2018,1188.65,198.11,VA0010,Vah Management & Admin,0791,Temp/Relief (Bureau Staff),Children'S Services
Blackpool Council,1088102,Whistl Uk Limited,3956508,IN18US18007457,22/10/2018,6606.05,1101.01,FCADA,Customer Services,3511,Postages,Resources
Blackpool Council,1117041,Martin & Co Solicitors,3956509,011224,08/10/2018,420,70,JEA,Senior Management,3401,General Services,Children'S Services
Blackpool Council,1114537,Panasonic Manufacturing Uk Ltd,3956512,PMUK18/0766,23/10/2018,4757.32,792.89,PJNB,Lightpool,3041,Other Materials,Community & Env Services
Blackpool Council,1005266,REDACTED PERSONAL DATA,3956547,197746,01/10/2018,633.29,0,JEA,Senior Management,4809,Special Guardianship,Children'S Services
Blackpool Council,1005947,REDACTED PERSONAL DATA,3956548,197801,01/10/2018,633.29,0,JEA,Senior Management,4809,Special Guardianship,Children'S Services
Blackpool Council,1005947,REDACTED PERSONAL DATA,3956549,197840,01/10/2018,726.29,0,JEA,Senior Management,4809,Special Guardianship,Children'S Services
Blackpool Council,1005947,REDACTED PERSONAL DATA,3956550,197839,01/10/2018,726.29,0,JEA,Senior Management,4809,Special Guardianship,Children'S Services
Blackpool Council,1005947,REDACTED PERSONAL DATA,3956551,197800,01/10/2018,845.86,0,JEA,Senior Management,4809,Special Guardianship,Children'S Services
Blackpool Council,1005947,REDACTED PERSONAL DATA,3956552,197799,01/10/2018,726.29,0,JEA,Senior Management,4809,Special Guardianship,Children'S Services
Blackpool Council,1006685,REDACTED PERSONAL DATA,3956553,197845,01/10/2018,766.5,0,JEA,Senior Management,4809,Special Guardianship,Children'S Services
Blackpool Council,1006685,REDACTED PERSONAL DATA,3956554,197802,01/10/2018,766.5,0,JEA,Senior Management,4809,Special Guardianship,Children'S Services
Blackpool Council,1006685,REDACTED PERSONAL DATA,3956555,197844,01/10/2018,766.5,0,JEA,Senior Management,4809,Special Guardianship,Children'S Services
Blackpool Council,1007093,REDACTED PERSONAL DATA,3956556,197837,01/10/2018,1209,0,JEA,Senior Management,4809,Special Guardianship,Children'S Services
Blackpool Council,1007093,REDACTED PERSONAL DATA,3956557,197795,01/10/2018,1302,0,JEA,Senior Management,4809,Special Guardianship,Children'S Services
Blackpool Council,1007093,REDACTED PERSONAL DATA,3956558,197794,01/10/2018,1209,0,JEA,Senior Management,4809,Special Guardianship,Children'S Services
Blackpool Council,1007513,REDACTED PERSONAL DATA,3956559,197797,01/10/2018,715.92,0,JBR,Lac - Placements,4814,Adoption Allowances,Children'S Services
Blackpool Council,1010522,REDACTED PERSONAL DATA,3956560,197495,01/10/2018,726.29,0,JEA,Senior Management,4809,Special Guardianship,Children'S Services
Blackpool Council,1010522,REDACTED PERSONAL DATA,3956561,197748,01/10/2018,726.29,0,JEA,Senior Management,4809,Special Guardianship,Children'S Services
Blackpool Council,1010597,REDACTED PERSONAL DATA,3956562,197488,01/10/2018,3356.15,0,JEA,Senior Management,4811,Residence Orders,Children'S Services
Blackpool Council,1018980,REDACTED PERSONAL DATA,3956563,197706,01/10/2018,1302,0,JBR,Lac - Placements,4814,Adoption Allowances,Children'S Services
Blackpool Council,1023504,REDACTED PERSONAL DATA,3956564,197618,01/10/2018,726.29,0,JEA,Senior Management,4809,Special Guardianship,Children'S Services
Blackpool Council,1025390,REDACTED PERSONAL DATA,3956565,197736,01/10/2018,726.29,0,JEA,Senior Management,4811,Residence Orders,Children'S Services
Blackpool Council,1029378,REDACTED PERSONAL DATA,3956566,197738,01/10/2018,3356.15,0,JEA,Senior Management,4811,Residence Orders,Children'S Services
Blackpool Council,1029378,REDACTED PERSONAL DATA,3956567,197548,01/10/2018,3356.15,0,JEA,Senior Management,4811,Residence Orders,Children'S Services
Blackpool Council,1032584,REDACTED PERSONAL DATA,3956568,197600,01/10/2018,726.29,0,JBR,Lac - Placements,4814,Adoption Allowances,Children'S Services
Blackpool Council,1038672,REDACTED PERSONAL DATA,3956569,197538,01/10/2018,562.43,0,JBR,Lac - Placements,4814,Adoption Allowances,Children'S Services
Blackpool Council,1038672,REDACTED PERSONAL DATA,3956570,197597,01/10/2018,562.43,0,JBR,Lac - Placements,4814,Adoption Allowances,Children'S Services
Blackpool Council,1039147,REDACTED PERSONAL DATA,3956571,197737,01/10/2018,3356.15,0,JEA,Senior Management,4811,Residence Orders,Children'S Services
Blackpool Council,1041065,REDACTED PERSONAL DATA,3956572,197644,01/10/2018,562.43,0,JEA,Senior Management,4809,Special Guardianship,Children'S Services
Blackpool Council,1042600,REDACTED PERSONAL DATA,3956573,197489,01/10/2018,726.29,0,JEA,Senior Management,4811,Residence Orders,Children'S Services
Blackpool Council,1043459,REDACTED PERSONAL DATA,3956574,197602,01/10/2018,952.14,0,JBR,Lac - Placements,4814,Adoption Allowances,Children'S Services
Blackpool Council,1043651,REDACTED PERSONAL DATA,3956575,197527,01/10/2018,562.43,0,JBR,Lac - Placements,4814,Adoption Allowances,Children'S Services
Blackpool Council,1043651,REDACTED PERSONAL DATA,3956576,197598,01/10/2018,562.43,0,JBR,Lac - Placements,4814,Adoption Allowances,Children'S Services
Blackpool Council,1043651,REDACTED PERSONAL DATA,3956577,197730,01/10/2018,633.29,0,JBR,Lac - Placements,4814,Adoption Allowances,Children'S Services
Blackpool Council,1043955,REDACTED PERSONAL DATA,3956578,197586,01/10/2018,845.86,0,JEA,Senior Management,4809,Special Guardianship,Children'S Services
Blackpool Council,1043955,REDACTED PERSONAL DATA,3956579,197520,01/10/2018,726.29,0,JEA,Senior Management,4809,Special Guardianship,Children'S Services
Blackpool Council,1044018,REDACTED PERSONAL DATA,3956580,197479,01/10/2018,562.43,0,JBR,Lac - Placements,4814,Adoption Allowances,Children'S Services
Blackpool Council,1048741,REDACTED PERSONAL DATA,3956581,197682,01/10/2018,726.29,0,JEA,Senior Management,4809,Special Guardianship,Children'S Services
Blackpool Council,1048947,REDACTED PERSONAL DATA,3956582,197606,01/10/2018,726.29,0,JEA,Senior Management,4811,Residence Orders,Children'S Services
Blackpool Council,1049626,REDACTED PERSONAL DATA,3956583,197582,01/10/2018,633.29,0,JEA,Senior Management,4809,Special Guardianship,Children'S Services
Blackpool Council,1049626,REDACTED PERSONAL DATA,3956584,197704,01/10/2018,726.29,0,JEA,Senior Management,4809,Special Guardianship,Children'S Services
Blackpool Council,1049626,REDACTED PERSONAL DATA,3956585,197705,01/10/2018,633.29,0,JEA,Senior Management,4809,Special Guardianship,Children'S Services
Blackpool Council,1049626,REDACTED PERSONAL DATA,3956586,197669,01/10/2018,633.29,0,JEA,Senior Management,4809,Special Guardianship,Children'S Services
Blackpool Council,1052328,REDACTED PERSONAL DATA,3956587,197549,01/10/2018,726.29,0,JEA,Senior Management,4811,Residence Orders,Children'S Services
Blackpool Council,1052960,REDACTED PERSONAL DATA,3956588,197687,01/10/2018,705.71,0,JEA,Senior Management,4809,Special Guardianship,Children'S Services
Blackpool Council,1052960,REDACTED PERSONAL DATA,3956589,197688,01/10/2018,705.71,0,JEA,Senior Management,4809,Special Guardianship,Children'S Services
Blackpool Council,1054536,REDACTED PERSONAL DATA,3956590,197656,01/10/2018,726.29,0,JEA,Senior Management,4811,Residence Orders,Children'S Services
Blackpool Council,1054614,REDACTED PERSONAL DATA,3956591,197699,01/10/2018,726.29,0,JEA,Senior Management,4809,Special Guardianship,Children'S Services
Blackpool Council,1055795,REDACTED PERSONAL DATA,3956592,197607,01/10/2018,3356.15,0,JEA,Senior Management,4811,Residence Orders,Children'S Services
Blackpool Council,1057277,REDACTED PERSONAL DATA,3956593,197727,01/10/2018,633.29,0,JBR,Lac - Placements,4814,Adoption Allowances,Children'S Services
Blackpool Council,1058573,REDACTED PERSONAL DATA,3956594,197716,01/10/2018,726.29,0,JEA,Senior Management,4809,Special Guardianship,Children'S Services
Blackpool Council,1059285,REDACTED PERSONAL DATA,3956595,197713,01/10/2018,1058.43,0,JBR,Lac - Placements,4814,Adoption Allowances,Children'S Services
Blackpool Council,1059285,REDACTED PERSONAL DATA,3956596,197603,01/10/2018,1009.72,0,JBR,Lac - Placements,4814,Adoption Allowances,Children'S Services
Blackpool Council,1059285,REDACTED PERSONAL DATA,3956597,197485,01/10/2018,1058.43,0,JBR,Lac - Placements,4814,Adoption Allowances,Children'S Services
Blackpool Council,1062123,REDACTED PERSONAL DATA,3956599,197545,01/10/2018,720.29,0,JBR,Lac - Placements,4814,Adoption Allowances,Children'S Services
Blackpool Council,1064011,REDACTED PERSONAL DATA,3956602,197741,01/10/2018,562.43,0,JEA,Senior Management,4809,Special Guardianship,Children'S Services
Blackpool Council,1066475,REDACTED PERSONAL DATA,3956603,197539,01/10/2018,562.43,0,JBR,Lac - Placements,4814,Adoption Allowances,Children'S Services
Blackpool Council,1068480,REDACTED PERSONAL DATA,3956604,197551,01/10/2018,562.43,0,JEA,Senior Management,4809,Special Guardianship,Children'S Services
Blackpool Council,1068524,REDACTED PERSONAL DATA,3956605,197742,01/10/2018,562.43,0,JEA,Senior Management,4809,Special Guardianship,Children'S Services
Blackpool Council,1068906,REDACTED PERSONAL DATA,3956606,197722,01/10/2018,562.43,0,JBR,Lac - Placements,4814,Adoption Allowances,Children'S Services
Blackpool Council,1068906,REDACTED PERSONAL DATA,3956607,197720,01/10/2018,562.43,0,JBR,Lac - Placements,4814,Adoption Allowances,Children'S Services
Blackpool Council,1068906,REDACTED PERSONAL DATA,3956608,197721,01/10/2018,562.43,0,JBR,Lac - Placements,4814,Adoption Allowances,Children'S Services
Blackpool Council,1069176,REDACTED PERSONAL DATA,3956609,197550,01/10/2018,562.43,0,JEA,Senior Management,4809,Special Guardianship,Children'S Services
Blackpool Council,1069176,REDACTED PERSONAL DATA,3956610,197740,01/10/2018,562.43,0,JEA,Senior Management,4809,Special Guardianship,Children'S Services
Blackpool Council,1070512,REDACTED PERSONAL DATA,3956611,197768,01/10/2018,633.29,0,JEA,Senior Management,4809,Special Guardianship,Children'S Services
Blackpool Council,1070602,REDACTED PERSONAL DATA,3956612,197552,01/10/2018,562.43,0,JEA,Senior Management,4809,Special Guardianship,Children'S Services
Blackpool Council,1071018,REDACTED PERSONAL DATA,3956613,197480,01/10/2018,562.43,0,JBR,Lac - Placements,4814,Adoption Allowances,Children'S Services
Blackpool Council,1071018,REDACTED PERSONAL DATA,3956614,197723,01/10/2018,562.43,0,JBR,Lac - Placements,4814,Adoption Allowances,Children'S Services
Blackpool Council,1071018,REDACTED PERSONAL DATA,3956615,197540,01/10/2018,562.43,0,JBR,Lac - Placements,4814,Adoption Allowances,Children'S Services
Blackpool Council,1071683,REDACTED PERSONAL DATA,3956616,197555,01/10/2018,562.43,0,JEA,Senior Management,4809,Special Guardianship,Children'S Services
Blackpool Council,1071683,REDACTED PERSONAL DATA,3956617,197610,01/10/2018,562.43,0,JEA,Senior Management,4809,Special Guardianship,Children'S Services
Blackpool Council,1072770,REDACTED PERSONAL DATA,3956618,197553,01/10/2018,562.43,0,JEA,Senior Management,4809,Special Guardianship,Children'S Services
Blackpool Council,1074231,REDACTED PERSONAL DATA,3956619,197657,01/10/2018,562.43,0,JEA,Senior Management,4811,Residence Orders,Children'S Services
Blackpool Council,1076446,REDACTED PERSONAL DATA,3956620,197490,01/10/2018,562.43,0,JEA,Senior Management,4811,Residence Orders,Children'S Services
Blackpool Council,1076446,REDACTED PERSONAL DATA,3956621,197608,01/10/2018,562.43,0,JEA,Senior Management,4811,Residence Orders,Children'S Services
Blackpool Council,1077446,REDACTED PERSONAL DATA,3956622,197541,01/10/2018,562.43,0,JBR,Lac - Placements,4814,Adoption Allowances,Children'S Services
Blackpool Council,1077610,REDACTED PERSONAL DATA,3956623,197609,01/10/2018,562.43,0,JEA,Senior Management,4809,Special Guardianship,Children'S Services
Blackpool Council,1078284,REDACTED PERSONAL DATA,3956624,197493,01/10/2018,562.43,0,JEA,Senior Management,4809,Special Guardianship,Children'S Services
Blackpool Council,1079501,REDACTED PERSONAL DATA,3956625,197790,01/10/2018,562.43,0,JEA,Senior Management,4809,Special Guardianship,Children'S Services
Blackpool Council,1079745,REDACTED PERSONAL DATA,3956626,197554,01/10/2018,562.43,0,JEA,Senior Management,4809,Special Guardianship,Children'S Services
Blackpool Council,1080101,REDACTED PERSONAL DATA,3956627,197492,01/10/2018,562.43,0,JEA,Senior Management,4809,Special Guardianship,Children'S Services
Blackpool Council,1080411,REDACTED PERSONAL DATA,3956628,197481,01/10/2018,562.43,0,JBR,Lac - Placements,4814,Adoption Allowances,Children'S Services
Blackpool Council,1081971,REDACTED PERSONAL DATA,3956629,197617,01/10/2018,1009.72,0,JEA,Senior Management,4809,Special Guardianship,Children'S Services
Blackpool Council,1081971,REDACTED PERSONAL DATA,3956630,197500,01/10/2018,1009.72,0,JEA,Senior Management,4809,Special Guardianship,Children'S Services
Blackpool Council,1082124,REDACTED PERSONAL DATA,3956631,197513,01/10/2018,562.43,0,JEA,Senior Management,4809,Special Guardianship,Children'S Services
Blackpool Council,1082476,REDACTED PERSONAL DATA,3956632,197771,01/10/2018,1009.72,0,JEA,Senior Management,4809,Special Guardianship,Children'S Services
Blackpool Council,1082476,REDACTED PERSONAL DATA,3956633,197632,01/10/2018,1009.72,0,JEA,Senior Management,4809,Special Guardianship,Children'S Services
Blackpool Council,1082476,REDACTED PERSONAL DATA,3956634,197574,01/10/2018,1009.72,0,JEA,Senior Management,4809,Special Guardianship,Children'S Services
Blackpool Council,1082803,REDACTED PERSONAL DATA,3956635,197678,01/10/2018,633.29,0,JEA,Senior Management,4811,Residence Orders,Children'S Services
Blackpool Council,1083419,REDACTED PERSONAL DATA,3956636,197792,01/10/2018,633.29,0,JEA,Senior Management,4809,Special Guardianship,Children'S Services
Blackpool Council,1083907,REDACTED PERSONAL DATA,3956637,197702,01/10/2018,562.43,0,JEA,Senior Management,4809,Special Guardianship,Children'S Services
Blackpool Council,1083907,REDACTED PERSONAL DATA,3956638,197703,01/10/2018,562.43,0,JEA,Senior Management,4809,Special Guardianship,Children'S Services
Blackpool Council,1083907,REDACTED PERSONAL DATA,3956639,197673,01/10/2018,562.43,0,JEA,Senior Management,4809,Special Guardianship,Children'S Services
Blackpool Council,1085922,REDACTED PERSONAL DATA,3956640,197743,01/10/2018,562.43,0,JEA,Senior Management,4809,Special Guardianship,Children'S Services
Blackpool Council,1085923,REDACTED PERSONAL DATA,3956641,197841,01/10/2018,965.43,0,JEA,Senior Management,4809,Special Guardianship,Children'S Services
Blackpool Council,1085923,REDACTED PERSONAL DATA,3956642,197672,01/10/2018,1102.72,0,JBR,Lac - Placements,4814,Adoption Allowances,Children'S Services
Blackpool Council,1085923,REDACTED PERSONAL DATA,3956643,197483,01/10/2018,633.29,0,JBR,Lac - Placements,4814,Adoption Allowances,Children'S Services
Blackpool Council,1085923,REDACTED PERSONAL DATA,3956644,197529,01/10/2018,1009.72,0,JBR,Lac - Placements,4814,Adoption Allowances,Children'S Services
Blackpool Council,1085928,REDACTED PERSONAL DATA,3956645,197744,01/10/2018,562.43,0,JEA,Senior Management,4809,Special Guardianship,Children'S Services
Blackpool Council,1085928,REDACTED PERSONAL DATA,3956646,197498,01/10/2018,633.29,0,JEA,Senior Management,4809,Special Guardianship,Children'S Services
Blackpool Council,1085931,REDACTED PERSONAL DATA,3956647,197613,01/10/2018,726.29,0,JEA,Senior Management,4809,Special Guardianship,Children'S Services
Blackpool Council,1085931,REDACTED PERSONAL DATA,3956648,197558,01/10/2018,726.29,0,JEA,Senior Management,4809,Special Guardianship,Children'S Services
Blackpool Council,1086638,REDACTED PERSONAL DATA,3956649,197725,01/10/2018,562.43,0,JBR,Lac - Placements,4814,Adoption Allowances,Children'S Services
Blackpool Council,1087223,REDACTED PERSONAL DATA,3956650,197724,01/10/2018,562.43,0,JBR,Lac - Placements,4814,Adoption Allowances,Children'S Services
Blackpool Council,1087223,REDACTED PERSONAL DATA,3956651,197528,01/10/2018,562.43,0,JBR,Lac - Placements,4814,Adoption Allowances,Children'S Services
Blackpool Council,1088072,REDACTED PERSONAL DATA,3956652,197631,01/10/2018,575.71,0,JEA,Senior Management,4809,Special Guardianship,Children'S Services
Blackpool Council,1088081,REDACTED PERSONAL DATA,3956653,197696,01/10/2018,633.29,0,JEA,Senior Management,4809,Special Guardianship,Children'S Services
Blackpool Council,1088106,REDACTED PERSONAL DATA,3956654,197750,01/10/2018,633.29,0,JEA,Senior Management,4809,Special Guardianship,Children'S Services
Blackpool Council,1088133,REDACTED PERSONAL DATA,3956655,197686,01/10/2018,1324.43,0,JEA,Senior Management,4809,Special Guardianship,Children'S Services
Blackpool Council,1088246,REDACTED PERSONAL DATA,3956656,197543,01/10/2018,633.29,0,JBR,Lac - Placements,4814,Adoption Allowances,Children'S Services
Blackpool Council,1088614,REDACTED PERSONAL DATA,3956657,197726,01/10/2018,562.43,0,JBR,Lac - Placements,4814,Adoption Allowances,Children'S Services
Blackpool Council,1088741,REDACTED PERSONAL DATA,3956658,197599,01/10/2018,633.29,0,JBR,Lac - Placements,4814,Adoption Allowances,Children'S Services
Blackpool Council,1088744,REDACTED PERSONAL DATA,3956659,197714,01/10/2018,633.29,0,JEA,Senior Management,4809,Special Guardianship,Children'S Services
Blackpool Council,1089503,REDACTED PERSONAL DATA,3956660,197761,01/10/2018,633.29,0,JEA,Senior Management,4809,Special Guardianship,Children'S Services
Blackpool Council,1089504,REDACTED PERSONAL DATA,3956661,197494,01/10/2018,633.29,0,JEA,Senior Management,4809,Special Guardianship,Children'S Services
Blackpool Council,1089505,REDACTED PERSONAL DATA,3956662,197747,01/10/2018,633.29,0,JEA,Senior Management,4809,Special Guardianship,Children'S Services
Blackpool Council,1089980,REDACTED PERSONAL DATA,3956663,197562,01/10/2018,633.29,0,JEA,Senior Management,4809,Special Guardianship,Children'S Services
Blackpool Council,1090278,REDACTED PERSONAL DATA,3956664,197482,01/10/2018,633.29,0,JBR,Lac - Placements,4814,Adoption Allowances,Children'S Services
Blackpool Council,1090507,REDACTED PERSONAL DATA,3956665,197542,01/10/2018,562.43,0,JBR,Lac - Placements,4814,Adoption Allowances,Children'S Services
Blackpool Council,1090553,REDACTED PERSONAL DATA,3956666,197712,01/10/2018,562.43,0,JEA,Senior Management,4811,Residence Orders,Children'S Services
Blackpool Council,1090574,REDACTED PERSONAL DATA,3956667,197654,01/10/2018,1209,0,JEA,Senior Management,4809,Special Guardianship,Children'S Services
Blackpool Council,1090574,REDACTED PERSONAL DATA,3956668,197595,01/10/2018,1151.42,0,JEA,Senior Management,4809,Special Guardianship,Children'S Services
Blackpool Council,1090630,REDACTED PERSONAL DATA,3956669,197496,01/10/2018,633.29,0,JEA,Senior Management,4809,Special Guardianship,Children'S Services
Blackpool Council,1090630,REDACTED PERSONAL DATA,3956670,197612,01/10/2018,726.29,0,JEA,Senior Management,4809,Special Guardianship,Children'S Services
Blackpool Council,1091208,REDACTED PERSONAL DATA,3956671,197842,01/10/2018,633.29,0,JEA,Senior Management,4809,Special Guardianship,Children'S Services
Blackpool Council,1091538,REDACTED PERSONAL DATA,3956672,197836,01/10/2018,726.29,0,JEA,Senior Management,4809,Special Guardianship,Children'S Services
Blackpool Council,1092226,REDACTED PERSONAL DATA,3956673,197556,01/10/2018,633.29,0,JEA,Senior Management,4809,Special Guardianship,Children'S Services
Blackpool Council,1092955,REDACTED PERSONAL DATA,3956674,197752,01/10/2018,633.29,0,JEA,Senior Management,4809,Special Guardianship,Children'S Services
Blackpool Council,1093033,REDACTED PERSONAL DATA,3956675,197745,01/10/2018,633.29,0,JEA,Senior Management,4809,Special Guardianship,Children'S Services
Blackpool Council,1093432,REDACTED PERSONAL DATA,3956676,197751,01/10/2018,633.29,0,JEA,Senior Management,4809,Special Guardianship,Children'S Services
Blackpool Council,1093432,REDACTED PERSONAL DATA,3956677,197615,01/10/2018,726.29,0,JEA,Senior Management,4809,Special Guardianship,Children'S Services
Blackpool Council,1093556,REDACTED PERSONAL DATA,3956678,197497,01/10/2018,633.29,0,JEA,Senior Management,4809,Special Guardianship,Children'S Services
Blackpool Council,1093573,REDACTED PERSONAL DATA,3956679,197787,01/10/2018,726.29,0,JEA,Senior Management,4809,Special Guardianship,Children'S Services
Blackpool Council,1094329,REDACTED PERSONAL DATA,3956680,197561,01/10/2018,633.29,0,JEA,Senior Management,4809,Special Guardianship,Children'S Services
Blackpool Council,1095249,REDACTED PERSONAL DATA,3956681,197789,01/10/2018,633.29,0,JEA,Senior Management,4809,Special Guardianship,Children'S Services
Blackpool Council,1095249,REDACTED PERSONAL DATA,3956682,197788,01/10/2018,726.29,0,JEA,Senior Management,4809,Special Guardianship,Children'S Services
Blackpool Council,1095249,REDACTED PERSONAL DATA,3956683,197835,01/10/2018,633.29,0,JEA,Senior Management,4809,Special Guardianship,Children'S Services
Blackpool Council,1095280,REDACTED PERSONAL DATA,3956684,197681,01/10/2018,633.29,0,JEA,Senior Management,4811,Residence Orders,Children'S Services
Blackpool Council,1095280,REDACTED PERSONAL DATA,3956685,197804,01/10/2018,726.29,0,JEA,Senior Management,4811,Residence Orders,Children'S Services
Blackpool Council,1095510,REDACTED PERSONAL DATA,3956686,197576,01/10/2018,726.29,0,JEA,Senior Management,4809,Special Guardianship,Children'S Services
Blackpool Council,1095510,REDACTED PERSONAL DATA,3956687,197633,01/10/2018,726.29,0,JEA,Senior Management,4809,Special Guardianship,Children'S Services
Blackpool Council,1095873,REDACTED PERSONAL DATA,3956688,197566,01/10/2018,633.29,0,JEA,Senior Management,4809,Special Guardianship,Children'S Services
Blackpool Council,1095873,REDACTED PERSONAL DATA,3956689,197504,01/10/2018,845.86,0,JEA,Senior Management,4809,Special Guardianship,Children'S Services
Blackpool Council,1095956,REDACTED PERSONAL DATA,3956690,197614,01/10/2018,633.29,0,JEA,Senior Management,4809,Special Guardianship,Children'S Services
Blackpool Council,1096099,REDACTED PERSONAL DATA,3956691,197501,01/10/2018,633.29,0,JEA,Senior Management,4809,Special Guardianship,Children'S Services
Blackpool Council,1096099,REDACTED PERSONAL DATA,3956692,197502,01/10/2018,633.29,0,JEA,Senior Management,4809,Special Guardianship,Children'S Services
Blackpool Council,1096411,REDACTED PERSONAL DATA,3956693,197766,01/10/2018,633.29,0,JEA,Senior Management,4809,Special Guardianship,Children'S Services
Blackpool Council,1096411,REDACTED PERSONAL DATA,3956694,197506,01/10/2018,633.29,0,JEA,Senior Management,4809,Special Guardianship,Children'S Services
Blackpool Council,1096569,REDACTED PERSONAL DATA,3956695,197611,01/10/2018,633.29,0,JEA,Senior Management,4809,Special Guardianship,Children'S Services
Blackpool Council,1096576,REDACTED PERSONAL DATA,3956696,197557,01/10/2018,633.29,0,JEA,Senior Management,4809,Special Guardianship,Children'S Services
Blackpool Council,1096776,REDACTED PERSONAL DATA,3956697,197499,01/10/2018,726.29,0,JEA,Senior Management,4809,Special Guardianship,Children'S Services
Blackpool Council,1096875,REDACTED PERSONAL DATA,3956698,197749,01/10/2018,633.29,0,JEA,Senior Management,4809,Special Guardianship,Children'S Services
Blackpool Council,1096875,REDACTED PERSONAL DATA,3956699,197624,01/10/2018,633.29,0,JEA,Senior Management,4809,Special Guardianship,Children'S Services
Blackpool Council,1097143,REDACTED PERSONAL DATA,3956700,197675,01/10/2018,726.29,0,JBR,Lac - Placements,4814,Adoption Allowances,Children'S Services
Blackpool Council,1097143,REDACTED PERSONAL DATA,3956701,197674,01/10/2018,633.29,0,JBR,Lac - Placements,4814,Adoption Allowances,Children'S Services
Blackpool Council,1097161,REDACTED PERSONAL DATA,3956702,197544,01/10/2018,726.29,0,JBR,Lac - Placements,4814,Adoption Allowances,Children'S Services
Blackpool Council,1097279,REDACTED PERSONAL DATA,3956703,197765,01/10/2018,633.29,0,JEA,Senior Management,4809,Special Guardianship,Children'S Services
Blackpool Council,1097279,REDACTED PERSONAL DATA,3956704,197764,01/10/2018,726.29,0,JEA,Senior Management,4809,Special Guardianship,Children'S Services
Blackpool Council,1097279,REDACTED PERSONAL DATA,3956705,197623,01/10/2018,633.29,0,JEA,Senior Management,4809,Special Guardianship,Children'S Services
Blackpool Council,1097281,REDACTED PERSONAL DATA,3956706,197567,01/10/2018,633.29,0,JEA,Senior Management,4809,Special Guardianship,Children'S Services
Blackpool Council,1097474,REDACTED PERSONAL DATA,3956707,197559,01/10/2018,633.29,0,JEA,Senior Management,4809,Special Guardianship,Children'S Services
Blackpool Council,1097474,REDACTED PERSONAL DATA,3956708,197524,01/10/2018,575.71,0,JEA,Senior Management,4809,Special Guardianship,Children'S Services
Blackpool Council,1097980,REDACTED PERSONAL DATA,3956709,197507,01/10/2018,633.29,0,JEA,Senior Management,4809,Special Guardianship,Children'S Services
Blackpool Council,1098016,REDACTED PERSONAL DATA,3956710,197616,01/10/2018,633.29,0,JEA,Senior Management,4809,Special Guardianship,Children'S Services
Blackpool Council,1098016,REDACTED PERSONAL DATA,3956711,197755,01/10/2018,633.29,0,JEA,Senior Management,4809,Special Guardianship,Children'S Services
Blackpool Council,1098048,REDACTED PERSONAL DATA,3956712,197739,01/10/2018,633.29,0,JEA,Senior Management,4811,Residence Orders,Children'S Services
Blackpool Council,1098051,REDACTED PERSONAL DATA,3956713,197846,01/10/2018,633.29,0,JBR,Lac - Placements,4814,Adoption Allowances,Children'S Services
Blackpool Council,1098264,REDACTED PERSONAL DATA,3956714,197798,01/10/2018,885.71,0,JBR,Lac - Placements,4814,Adoption Allowances,Children'S Services
Blackpool Council,1098406,REDACTED PERSONAL DATA,3956715,197757,01/10/2018,633.29,0,JEA,Senior Management,4809,Special Guardianship,Children'S Services
Blackpool Council,1098406,REDACTED PERSONAL DATA,3956716,197619,01/10/2018,633.29,0,JEA,Senior Management,4809,Special Guardianship,Children'S Services
Blackpool Council,1098564,REDACTED PERSONAL DATA,3956717,197565,01/10/2018,633.29,0,JEA,Senior Management,4809,Special Guardianship,Children'S Services
Blackpool Council,1098564,REDACTED PERSONAL DATA,3956718,197503,01/10/2018,633.29,0,JEA,Senior Management,4809,Special Guardianship,Children'S Services
Blackpool Council,1098878,REDACTED PERSONAL DATA,3956719,197680,01/10/2018,1070.7,0,JEA,Senior Management,4809,Special Guardianship,Children'S Services
Blackpool Council,1099199,REDACTED PERSONAL DATA,3956720,197684,01/10/2018,562.43,0,JEA,Senior Management,4809,Special Guardianship,Children'S Services
Blackpool Council,1099199,REDACTED PERSONAL DATA,3956721,197806,01/10/2018,575.71,0,JEA,Senior Management,4809,Special Guardianship,Children'S Services
Blackpool Council,1099323,REDACTED PERSONAL DATA,3956722,197834,01/10/2018,726.29,0,JEA,Senior Management,4809,Special Guardianship,Children'S Services
Blackpool Council,1099331,REDACTED PERSONAL DATA,3956723,197560,01/10/2018,633.29,0,JEA,Senior Management,4809,Special Guardianship,Children'S Services
Blackpool Council,1099340,REDACTED PERSONAL DATA,3956724,197707,01/10/2018,726.29,0,JBR,Lac - Placements,4814,Adoption Allowances,Children'S Services
Blackpool Council,1099367,REDACTED PERSONAL DATA,3956725,197763,01/10/2018,726.29,0,JEA,Senior Management,4809,Special Guardianship,Children'S Services
Blackpool Council,1099367,REDACTED PERSONAL DATA,3956726,197568,01/10/2018,726.29,0,JEA,Senior Management,4809,Special Guardianship,Children'S Services
Blackpool Council,1099431,REDACTED PERSONAL DATA,3956727,197621,01/10/2018,633.29,0,JEA,Senior Management,4809,Special Guardianship,Children'S Services
Blackpool Council,1099431,REDACTED PERSONAL DATA,3956728,197759,01/10/2018,633.29,0,JEA,Senior Management,4809,Special Guardianship,Children'S Services
Blackpool Council,1099523,REDACTED PERSONAL DATA,3956729,197758,01/10/2018,633.29,0,JEA,Senior Management,4809,Special Guardianship,Children'S Services
Blackpool Council,1099523,REDACTED PERSONAL DATA,3956730,197563,01/10/2018,633.29,0,JEA,Senior Management,4809,Special Guardianship,Children'S Services
Blackpool Council,1099523,REDACTED PERSONAL DATA,3956731,197620,01/10/2018,633.29,0,JEA,Senior Management,4809,Special Guardianship,Children'S Services
Blackpool Council,1099900,REDACTED PERSONAL DATA,3956732,197777,01/10/2018,1009.72,0,JEA,Senior Management,4809,Special Guardianship,Children'S Services
Blackpool Council,1099900,REDACTED PERSONAL DATA,3956733,197579,01/10/2018,1009.72,0,JEA,Senior Management,4809,Special Guardianship,Children'S Services
Blackpool Council,1099918,REDACTED PERSONAL DATA,3956734,197760,01/10/2018,633.29,0,JEA,Senior Management,4809,Special Guardianship,Children'S Services
Blackpool Council,1100098,REDACTED PERSONAL DATA,3956735,197664,01/10/2018,633.29,0,JEA,Senior Management,4809,Special Guardianship,Children'S Services
Blackpool Council,1100098,REDACTED PERSONAL DATA,3956736,197663,01/10/2018,633.29,0,JEA,Senior Management,4809,Special Guardianship,Children'S Services
Blackpool Council,1100450,REDACTED PERSONAL DATA,3956737,197685,01/10/2018,633.29,0,JBR,Lac - Placements,4814,Adoption Allowances,Children'S Services
Blackpool Council,1100450,REDACTED PERSONAL DATA,3956738,197850,01/10/2018,726.29,0,JBR,Lac - Placements,4814,Adoption Allowances,Children'S Services
Blackpool Council,1100455,REDACTED PERSONAL DATA,3956739,197683,01/10/2018,612.87,0,JBR,Lac - Placements,4814,Adoption Allowances,Children'S Services
Blackpool Council,1100455,REDACTED PERSONAL DATA,3956740,197848,01/10/2018,612.87,0,JBR,Lac - Placements,4814,Adoption Allowances,Children'S Services
Blackpool Council,1100685,REDACTED PERSONAL DATA,3956741,197627,01/10/2018,633.29,0,JEA,Senior Management,4809,Special Guardianship,Children'S Services
Blackpool Council,1100963,REDACTED PERSONAL DATA,3956742,197564,01/10/2018,633.29,0,JEA,Senior Management,4809,Special Guardianship,Children'S Services
Blackpool Council,1101353,REDACTED PERSONAL DATA,3956743,197571,01/10/2018,660.29,0,JEA,Senior Management,4809,Special Guardianship,Children'S Services
Blackpool Council,1101354,REDACTED PERSONAL DATA,3956744,197505,01/10/2018,633.29,0,JEA,Senior Management,4809,Special Guardianship,Children'S Services
Blackpool Council,1101713,REDACTED PERSONAL DATA,3956745,197695,01/10/2018,726.29,0,JEA,Senior Management,4809,Special Guardianship,Children'S Services
Blackpool Council,1101713,REDACTED PERSONAL DATA,3956746,197827,01/10/2018,575.71,0,JEA,Senior Management,4809,Special Guardianship,Children'S Services
Blackpool Council,1101877,REDACTED PERSONAL DATA,3956747,197569,01/10/2018,633.29,0,JEA,Senior Management,4809,Special Guardianship,Children'S Services
Blackpool Council,1102002,REDACTED PERSONAL DATA,3956748,197604,01/10/2018,776.43,0,JEA,Senior Management,4811,Residence Orders,Children'S Services
Blackpool Council,1102142,REDACTED PERSONAL DATA,3956749,197762,01/10/2018,633.29,0,JEA,Senior Management,4809,Special Guardianship,Children'S Services
Blackpool Council,1102145,REDACTED PERSONAL DATA,3956750,197756,01/10/2018,726.29,0,JEA,Senior Management,4809,Special Guardianship,Children'S Services
Blackpool Council,1102685,REDACTED PERSONAL DATA,3956751,197803,01/10/2018,613.18,0,JEA,Senior Management,4809,Special Guardianship,Children'S Services
Blackpool Council,1102721,REDACTED PERSONAL DATA,3956752,197817,01/10/2018,562.43,0,JEA,Senior Management,4809,Special Guardianship,Children'S Services
Blackpool Council,1102721,REDACTED PERSONAL DATA,3956753,197622,01/10/2018,633.29,0,JEA,Senior Management,4809,Special Guardianship,Children'S Services
Blackpool Council,1103207,REDACTED PERSONAL DATA,3956754,197484,01/10/2018,633.29,0,JBR,Lac - Placements,4814,Adoption Allowances,Children'S Services
Blackpool Council,1103207,REDACTED PERSONAL DATA,3956755,197729,01/10/2018,633.29,0,JBR,Lac - Placements,4814,Adoption Allowances,Children'S Services
Blackpool Council,1103230,REDACTED PERSONAL DATA,3956756,197628,01/10/2018,575.71,0,JEA,Senior Management,4809,Special Guardianship,Children'S Services
Blackpool Council,1103557,REDACTED PERSONAL DATA,3956757,197701,01/10/2018,575.71,0,JEA,Senior Management,4809,Special Guardianship,Children'S Services
Blackpool Council,1103561,REDACTED PERSONAL DATA,3956758,197630,01/10/2018,575.71,0,JEA,Senior Management,4809,Special Guardianship,Children'S Services
Blackpool Council,1103561,REDACTED PERSONAL DATA,3956759,197572,01/10/2018,633.29,0,JEA,Senior Management,4809,Special Guardianship,Children'S Services
Blackpool Council,1103621,REDACTED PERSONAL DATA,3956760,197530,01/10/2018,575.71,0,JEA,Senior Management,4811,Residence Orders,Children'S Services
Blackpool Council,1103757,REDACTED PERSONAL DATA,3956761,197689,01/10/2018,2301,0,JEA,Senior Management,4809,Special Guardianship,Children'S Services
Blackpool Council,1103757,REDACTED PERSONAL DATA,3956762,197601,01/10/2018,726.29,0,JBR,Lac - Placements,4814,Adoption Allowances,Children'S Services
Blackpool Council,1103853,REDACTED PERSONAL DATA,3956763,197772,01/10/2018,575.71,0,JEA,Senior Management,4809,Special Guardianship,Children'S Services
Blackpool Council,1103855,REDACTED PERSONAL DATA,3956764,197629,01/10/2018,575.71,0,JEA,Senior Management,4809,Special Guardianship,Children'S Services
Blackpool Council,1103921,REDACTED PERSONAL DATA,3956765,197832,01/10/2018,575.71,0,JEA,Senior Management,4809,Special Guardianship,Children'S Services
Blackpool Council,1104007,REDACTED PERSONAL DATA,3956766,197830,01/10/2018,633.29,0,JEA,Senior Management,4809,Special Guardianship,Children'S Services
Blackpool Council,1104023,REDACTED PERSONAL DATA,3956767,197509,01/10/2018,633.29,0,JEA,Senior Management,4809,Special Guardianship,Children'S Services
Blackpool Council,1104023,REDACTED PERSONAL DATA,3956768,197575,01/10/2018,633.29,0,JEA,Senior Management,4809,Special Guardianship,Children'S Services
Blackpool Council,1104041,REDACTED PERSONAL DATA,3956769,197625,01/10/2018,575.71,0,JEA,Senior Management,4809,Special Guardianship,Children'S Services
Blackpool Council,1104276,REDACTED PERSONAL DATA,3956770,197547,01/10/2018,633.29,0,JEA,Senior Management,4811,Residence Orders,Children'S Services
Blackpool Council,1104276,REDACTED PERSONAL DATA,3956771,197732,01/10/2018,575.71,0,JEA,Senior Management,4811,Residence Orders,Children'S Services
Blackpool Council,1104276,REDACTED PERSONAL DATA,3956772,197733,01/10/2018,633.29,0,JEA,Senior Management,4811,Residence Orders,Children'S Services
Blackpool Council,1104610,REDACTED PERSONAL DATA,3956773,197767,01/10/2018,575.71,0,JEA,Senior Management,4809,Special Guardianship,Children'S Services
Blackpool Council,1104777,REDACTED PERSONAL DATA,3956774,197634,01/10/2018,726.29,0,JEA,Senior Management,4809,Special Guardianship,Children'S Services
Blackpool Council,1104780,REDACTED PERSONAL DATA,3956775,197776,01/10/2018,575.71,0,JEA,Senior Management,4809,Special Guardianship,Children'S Services
Blackpool Council,1105055,REDACTED PERSONAL DATA,3956776,197849,01/10/2018,633.29,0,JBR,Lac - Placements,4814,Adoption Allowances,Children'S Services
Blackpool Council,1105132,REDACTED PERSONAL DATA,3956777,197515,01/10/2018,726.29,0,JEA,Senior Management,4809,Special Guardianship,Children'S Services
Blackpool Council,1105132,REDACTED PERSONAL DATA,3956778,197584,01/10/2018,633.29,0,JEA,Senior Management,4809,Special Guardianship,Children'S Services
Blackpool Council,1105216,REDACTED PERSONAL DATA,3956779,197573,01/10/2018,575.71,0,JEA,Senior Management,4809,Special Guardianship,Children'S Services
Blackpool Council,1105271,REDACTED PERSONAL DATA,3956780,197775,01/10/2018,575.71,0,JEA,Senior Management,4809,Special Guardianship,Children'S Services
Blackpool Council,1105544,REDACTED PERSONAL DATA,3956781,197570,01/10/2018,575.71,0,JEA,Senior Management,4809,Special Guardianship,Children'S Services
Blackpool Council,1105544,REDACTED PERSONAL DATA,3956782,197626,01/10/2018,633.29,0,JEA,Senior Management,4809,Special Guardianship,Children'S Services
Blackpool Council,1105544,REDACTED PERSONAL DATA,3956783,197782,01/10/2018,575.71,0,JEA,Senior Management,4809,Special Guardianship,Children'S Services
Blackpool Council,1105579,REDACTED PERSONAL DATA,3956784,197769,01/10/2018,726.29,0,JEA,Senior Management,4809,Special Guardianship,Children'S Services
Blackpool Council,1105579,REDACTED PERSONAL DATA,3956785,197508,01/10/2018,845.86,0,JEA,Senior Management,4809,Special Guardianship,Children'S Services
Blackpool Council,1105610,REDACTED PERSONAL DATA,3956786,197770,01/10/2018,575.71,0,JEA,Senior Management,4809,Special Guardianship,Children'S Services
Blackpool Council,1105772,REDACTED PERSONAL DATA,3956787,197679,01/10/2018,885.71,0,JBR,Lac - Placements,4814,Adoption Allowances,Children'S Services
Blackpool Council,1105818,REDACTED PERSONAL DATA,3956788,197728,01/10/2018,575.71,0,JBR,Lac - Placements,4814,Adoption Allowances,Children'S Services
Blackpool Council,1105830,REDACTED PERSONAL DATA,3956789,197645,01/10/2018,726.29,0,JEA,Senior Management,4809,Special Guardianship,Children'S Services
Blackpool Council,1105956,REDACTED PERSONAL DATA,3956790,197838,01/10/2018,726.29,0,JEA,Senior Management,4809,Special Guardianship,Children'S Services
Blackpool Council,1106444,REDACTED PERSONAL DATA,3956791,197577,01/10/2018,575.71,0,JEA,Senior Management,4809,Special Guardianship,Children'S Services
Blackpool Council,1106465,REDACTED PERSONAL DATA,3956792,197812,01/10/2018,575.71,0,JEA,Senior Management,4809,Special Guardianship,Children'S Services
Blackpool Council,1106466,REDACTED PERSONAL DATA,3956793,197641,01/10/2018,726.29,0,JEA,Senior Management,4809,Special Guardianship,Children'S Services
Blackpool Council,1106549,REDACTED PERSONAL DATA,3956794,197774,01/10/2018,575.71,0,JEA,Senior Management,4809,Special Guardianship,Children'S Services
Blackpool Council,1106549,REDACTED PERSONAL DATA,3956795,197773,01/10/2018,633.29,0,JEA,Senior Management,4809,Special Guardianship,Children'S Services
Blackpool Council,1106588,REDACTED PERSONAL DATA,3956796,197511,01/10/2018,633.29,0,JEA,Senior Management,4809,Special Guardianship,Children'S Services
Blackpool Council,1106714,REDACTED PERSONAL DATA,3956797,197521,01/10/2018,575.71,0,JEA,Senior Management,4809,Special Guardianship,Children'S Services
Blackpool Council,1106754,REDACTED PERSONAL DATA,3956798,197523,01/10/2018,575.71,0,JEA,Senior Management,4809,Special Guardianship,Children'S Services
Blackpool Council,1106755,REDACTED PERSONAL DATA,3956799,197811,01/10/2018,633.29,0,JEA,Senior Management,4809,Special Guardianship,Children'S Services
Blackpool Council,1106755,REDACTED PERSONAL DATA,3956800,197638,01/10/2018,633.29,0,JEA,Senior Management,4809,Special Guardianship,Children'S Services
Blackpool Council,1106756,REDACTED PERSONAL DATA,3956801,197708,01/10/2018,633.29,0,JEA,Senior Management,4809,Special Guardianship,Children'S Services
Blackpool Council,1107064,REDACTED PERSONAL DATA,3956802,197643,01/10/2018,633.29,0,JEA,Senior Management,4809,Special Guardianship,Children'S Services
Blackpool Council,1107232,REDACTED PERSONAL DATA,3956803,197647,01/10/2018,633.29,0,JEA,Senior Management,4809,Special Guardianship,Children'S Services
Blackpool Council,1107232,REDACTED PERSONAL DATA,3956804,197648,01/10/2018,633.29,0,JEA,Senior Management,4809,Special Guardianship,Children'S Services
Blackpool Council,1107327,REDACTED PERSONAL DATA,3956805,197646,01/10/2018,633.29,0,JEA,Senior Management,4809,Special Guardianship,Children'S Services
Blackpool Council,1107327,REDACTED PERSONAL DATA,3956806,197585,01/10/2018,633.29,0,JEA,Senior Management,4809,Special Guardianship,Children'S Services
Blackpool Council,1107463,REDACTED PERSONAL DATA,3956807,197831,01/10/2018,575.71,0,JEA,Senior Management,4809,Special Guardianship,Children'S Services
Blackpool Council,1107507,REDACTED PERSONAL DATA,3956808,197815,01/10/2018,575.71,0,JEA,Senior Management,4809,Special Guardianship,Children'S Services
Blackpool Council,1107631,REDACTED PERSONAL DATA,3956809,197785,01/10/2018,633.29,0,JEA,Senior Management,4809,Special Guardianship,Children'S Services
Blackpool Council,1107693,REDACTED PERSONAL DATA,3956810,197818,01/10/2018,726.29,0,JEA,Senior Management,4809,Special Guardianship,Children'S Services
Blackpool Council,1107776,REDACTED PERSONAL DATA,3956811,197786,01/10/2018,575.71,0,JEA,Senior Management,4809,Special Guardianship,Children'S Services
Blackpool Council,1107820,REDACTED PERSONAL DATA,3956812,197820,01/10/2018,633.29,0,JEA,Senior Management,4809,Special Guardianship,Children'S Services
Blackpool Council,1107830,REDACTED PERSONAL DATA,3956813,197649,01/10/2018,633.29,0,JEA,Senior Management,4809,Special Guardianship,Children'S Services
Blackpool Council,1107945,REDACTED PERSONAL DATA,3956814,197665,01/10/2018,575.71,0,JEA,Senior Management,4809,Special Guardianship,Children'S Services
Blackpool Council,1108085,REDACTED PERSONAL DATA,3956815,197589,01/10/2018,726.29,0,JEA,Senior Management,4809,Special Guardianship,Children'S Services
Blackpool Council,1108127,REDACTED PERSONAL DATA,3956816,197697,01/10/2018,633.29,0,JEA,Senior Management,4809,Special Guardianship,Children'S Services
Blackpool Council,1108127,REDACTED PERSONAL DATA,3956817,197783,01/10/2018,633.29,0,JEA,Senior Management,4809,Special Guardianship,Children'S Services
Blackpool Council,1108216,REDACTED PERSONAL DATA,3956818,197819,01/10/2018,633.29,0,JEA,Senior Management,4809,Special Guardianship,Children'S Services
Blackpool Council,1108354,REDACTED PERSONAL DATA,3956819,197486,01/10/2018,726.29,0,JEA,Senior Management,4811,Residence Orders,Children'S Services
Blackpool Council,1108354,REDACTED PERSONAL DATA,3956820,197605,01/10/2018,633.29,0,JEA,Senior Management,4811,Residence Orders,Children'S Services
Blackpool Council,1108354,REDACTED PERSONAL DATA,3956821,197734,01/10/2018,726.29,0,JEA,Senior Management,4811,Residence Orders,Children'S Services
Blackpool Council,1108372,REDACTED PERSONAL DATA,3956822,197826,01/10/2018,1147.57,0,JEA,Senior Management,4809,Special Guardianship,Children'S Services
Blackpool Council,1108372,REDACTED PERSONAL DATA,3956823,197596,01/10/2018,1147.57,0,JEA,Senior Management,4809,Special Guardianship,Children'S Services
Blackpool Council,1108372,REDACTED PERSONAL DATA,3956824,197533,01/10/2018,1089.99,0,JEA,Senior Management,4809,Special Guardianship,Children'S Services
Blackpool Council,1108383,REDACTED PERSONAL DATA,3956825,197700,01/10/2018,575.71,0,JEA,Senior Management,4809,Special Guardianship,Children'S Services
Blackpool Council,1108400,REDACTED PERSONAL DATA,3956826,197662,01/10/2018,575.71,0,JEA,Senior Management,4809,Special Guardianship,Children'S Services
Blackpool Council,1108495,REDACTED PERSONAL DATA,3956827,197546,01/10/2018,1151.42,0,JBR,Lac - Placements,4814,Adoption Allowances,Children'S Services
Blackpool Council,1108534,REDACTED PERSONAL DATA,3956828,197640,01/10/2018,575.71,0,JEA,Senior Management,4809,Special Guardianship,Children'S Services
Blackpool Council,1108593,REDACTED PERSONAL DATA,3956829,197698,01/10/2018,633.29,0,JEA,Senior Management,4809,Special Guardianship,Children'S Services
Blackpool Council,1108795,REDACTED PERSONAL DATA,3956830,197666,01/10/2018,633.29,0,JEA,Senior Management,4809,Special Guardianship,Children'S Services
Blackpool Council,1108938,REDACTED PERSONAL DATA,3956831,197667,01/10/2018,633.29,0,JEA,Senior Management,4809,Special Guardianship,Children'S Services
Blackpool Council,1108938,REDACTED PERSONAL DATA,3956832,197668,01/10/2018,575.71,0,JEA,Senior Management,4809,Special Guardianship,Children'S Services
Blackpool Council,1109172,REDACTED PERSONAL DATA,3956833,197642,01/10/2018,726.29,0,JEA,Senior Management,4809,Special Guardianship,Children'S Services
Blackpool Council,1109172,REDACTED PERSONAL DATA,3956834,197658,01/10/2018,575.71,0,JEA,Senior Management,4809,Special Guardianship,Children'S Services
Blackpool Council,1109393,REDACTED PERSONAL DATA,3956835,197779,01/10/2018,575.71,0,JEA,Senior Management,4809,Special Guardianship,Children'S Services
Blackpool Council,1109738,REDACTED PERSONAL DATA,3956836,197671,01/10/2018,575.71,0,JEA,Senior Management,4809,Special Guardianship,Children'S Services
Blackpool Council,1109751,REDACTED PERSONAL DATA,3956837,197670,01/10/2018,633.29,0,JEA,Senior Management,4809,Special Guardianship,Children'S Services
Blackpool Council,1109751,REDACTED PERSONAL DATA,3956838,197833,01/10/2018,633.29,0,JEA,Senior Management,4809,Special Guardianship,Children'S Services
Blackpool Council,1110206,REDACTED PERSONAL DATA,3956839,197731,01/10/2018,633.29,0,JBR,Lac - Placements,4814,Adoption Allowances,Children'S Services
Blackpool Council,1110334,REDACTED PERSONAL DATA,3956840,197828,01/10/2018,575.71,0,JEA,Senior Management,4809,Special Guardianship,Children'S Services
Blackpool Council,1110634,REDACTED PERSONAL DATA,3956841,197639,01/10/2018,633.29,0,JEA,Senior Management,4809,Special Guardianship,Children'S Services
Blackpool Council,1110634,REDACTED PERSONAL DATA,3956842,197580,01/10/2018,633.29,0,JEA,Senior Management,4809,Special Guardianship,Children'S Services
Blackpool Council,1110634,REDACTED PERSONAL DATA,3956843,197512,01/10/2018,726.29,0,JEA,Senior Management,4809,Special Guardianship,Children'S Services
Blackpool Council,1110684,REDACTED PERSONAL DATA,3956844,197534,01/10/2018,633.29,0,JEA,Senior Management,4809,Special Guardianship,Children'S Services
Blackpool Council,1110718,REDACTED PERSONAL DATA,3956845,197693,01/10/2018,575.71,0,JEA,Senior Management,4809,Special Guardianship,Children'S Services
Blackpool Council,1110769,REDACTED PERSONAL DATA,3956846,197535,01/10/2018,575.71,0,JEA,Senior Management,4809,Special Guardianship,Children'S Services
Blackpool Council,1110785,REDACTED PERSONAL DATA,3956847,197829,01/10/2018,575.71,0,JEA,Senior Management,4809,Special Guardianship,Children'S Services
Blackpool Council,1110785,REDACTED PERSONAL DATA,3956848,197659,01/10/2018,633.29,0,JEA,Senior Management,4809,Special Guardianship,Children'S Services
Blackpool Council,1110785,REDACTED PERSONAL DATA,3956849,197691,01/10/2018,633.29,0,JEA,Senior Management,4809,Special Guardianship,Children'S Services
Blackpool Council,1110785,REDACTED PERSONAL DATA,3956850,197692,01/10/2018,575.71,0,JEA,Senior Management,4809,Special Guardianship,Children'S Services
Blackpool Council,1110958,REDACTED PERSONAL DATA,3956851,197810,01/10/2018,575.71,0,JEA,Senior Management,4809,Special Guardianship,Children'S Services
Blackpool Council,1111024,REDACTED PERSONAL DATA,3956852,197843,01/10/2018,633.29,0,JEA,Senior Management,4809,Special Guardianship,Children'S Services
Blackpool Council,1111111,REDACTED PERSONAL DATA,3956853,197537,01/10/2018,633.29,0,JEA,Senior Management,4809,Special Guardianship,Children'S Services
Blackpool Council,1111111,REDACTED PERSONAL DATA,3956854,197536,01/10/2018,633.29,0,JEA,Senior Management,4809,Special Guardianship,Children'S Services
Blackpool Council,1111111,REDACTED PERSONAL DATA,3956855,197780,01/10/2018,633.29,0,JEA,Senior Management,4809,Special Guardianship,Children'S Services
Blackpool Council,1111143,REDACTED PERSONAL DATA,3956856,197690,01/10/2018,575.71,0,JEA,Senior Management,4809,Special Guardianship,Children'S Services
Blackpool Council,1111443,REDACTED PERSONAL DATA,3956857,197637,01/10/2018,633.29,0,JEA,Senior Management,4809,Special Guardianship,Children'S Services
Blackpool Council,1111443,REDACTED PERSONAL DATA,3956858,197636,01/10/2018,633.29,0,JEA,Senior Management,4809,Special Guardianship,Children'S Services
Blackpool Council,1111656,REDACTED PERSONAL DATA,3956859,197808,01/10/2018,633.29,0,JEA,Senior Management,4809,Special Guardianship,Children'S Services
Blackpool Council,1111672,REDACTED PERSONAL DATA,3956860,197660,01/10/2018,575.71,0,JEA,Senior Management,4809,Special Guardianship,Children'S Services
Blackpool Council,1111683,REDACTED PERSONAL DATA,3956861,197694,01/10/2018,633.29,0,JEA,Senior Management,4809,Special Guardianship,Children'S Services
